{"text_format":"1","workbook":"xlsx","n_sheets":6,"sheets":["データ入力","ファイルの種類1","ファイルの種類2","ファイルの種類3","ファイルの種類4","Sheet1"],"not_rendered":{"charts":0,"images":13,"macros":1,"external_links":0,"defined_names":2,"comments":0,"pivot_tables":0},"unopened":[],"bounds":{"document_bytes":16777216,"sheet_cells":100000,"rows_first":2000,"rows_last":500,"rows_between":2000,"halvings":0,"cell_chars":16384,"cell_head_chars":4096},"cells_cut":0,"cells_raw":0,"read":"whole","date_system":"1900"}

{"sheet":"データ入力","index":0,"n_rows":111,"n_cols":33,"rows_kept":111,"cut":false,"hidden":false,"merged":[[11,29,11,30],[11,31,11,32],[4,7,7,11],[13,1,13,2],[12,1,12,2],[11,13,11,14],[11,15,11,16],[11,27,11,28],[11,17,11,18],[11,19,11,20],[11,21,11,22],[11,23,11,24],[11,25,11,26]]}
[]
[]
[null,"指定したフォルダ内のﾌｧｲﾙを検索するマクロ（VBA)"]
[]
[null,"パス名は直接キーボードから入力しますが、コピーアンドペイスト（Copy　&　Paste)でも入力できます。",null,null,null,null,null,"ファイルの並べかえは番号のついたファイルをExcelの機能についている【並べ替え】では、番号順に並べかえられないため、VBAで処理する。"]
[null,"調べたい対象のパス名が分からない場合は、ドライブ名のみを指定してください。"]
[null,"指定したドライブのすべてのフォルダ名とファイル名一覧を出力できます。ただし、"]
[null,"フォルダ内の下位フォルダや下位フォルダ内のファイル名のリスト（一覧表）は作成できないので、"]
[null,"調査した結果のファルダ名を指定して再実行を行ってください。または、Explorer（エクスプローラ）"]
[null,"にて、調査対象のパス名を調査し、選択することになります。",null,null,null,null,null,null,null,"作業手順は"]
[null,null,null,null,null,null,null,null,null,"1.①ファイル調査",null,null,null,"各種ファイルの拡張子一覧表",null,null,null,"下記拡張子は主なものだけを示している。このため、必要に応じて拡張子の追加が行われても良いようにプログラムは考慮されている。"]
[null,null,null,null,null,null,null,null,null,"2.②並べ替え",null,null,null,"音声・音楽ファイル",null,"Wordファイル",null,"Excelファイル",null,"画像ファイル",null,"Webファイル",null,"動画ファイル",null,"Cadファイル",null,"プログラム開発",null,"Textファイル",null,"PDFファイル"]
[null,"ファイル調査対象のパス名",null,"D:\\",null,null,null,null,null,"3.変更後ファイル名を入力する。",null,null,null,1,"asf",1,"doc",1,"xlsx",1,"bmp",1,"ｈｔｍｌ",1,"mpeg",1,"ｄｘｆ",1,"for",1,"txt",1,"pdf"]
[null,"ファイル調査の種別",null,null,null,null,null,null,null,"4.③ファイル名変更の実行",null,null,null,2,"asx",2,"docx",2,"xlsm",2,"dib",2,"ｈｔｍ",2,"mp4",2,"ｊｗｃ",2,"vb"]
[null,null,null,null,null,null,null,null,null,"である。",null,null,null,3,"acd",3,"docm",3,"xls",3,"jpg",3,"xml",3,"avi",3,"ｊｗｗ",3,"vp"]
[null,"番号","フォルダ名","ファイル名","読み方","ファイルサイズ",null,"変更後ファイル名","並べ替え後",null,null,null,null,4,"au",4,"ｔｘｔ",4,"xml",4,"jpeg",null,null,4,"mov",4,"jwg",4,"bas"]
[null,1,null,"Area_Data.txt","Ａｒｅａ＿Ｄａｔａ",33,null,null,null,null,null,null,null,5,"avi",5,"ｐｄｆ",5,"txt",5,"jpe",null,null,5,"asf",null,null,5,"frm"]
[null,2,null,"HTML_1_BDZ-ET2000.txt","ＨＴＭＬ＿１＿ＢＤＺ－ＥＴ２０００",122204,null,null,null,null,null,null,null,6,"aif",6,"xps",6,"csv",6,"jfif",null,null,6,"gg"]
[null,3,null,"HTML_1_BDZ-EX3000.txt","ＨＴＭＬ＿１＿ＢＤＺ－ＥＸ３０００",93786,null,null,null,null,null,null,null,7,"dig",7,"rtf",7,"prn",7,"gif",null,null,7,"mkv"]
[null,4,null,"HTML_1_DMR-BXT3000.txt","ＨＴＭＬ＿１＿ＤＭＲ－ＢＸＴ３０００",90582,null,null,null,null,null,null,null,8,"iff",8,"xml",8,"dif",8,"tif",null,null,8,"mka"]
[null,5,null,"HTML_2_BDZ-ET2000.txt","ＨＴＭＬ＿２＿ＢＤＺ－ＥＴ２０００",136852,null,null,null,null,null,null,null,9,"lso",null,null,9,"sylk",9,"tiff",null,null,9,"mks"]
[null,6,null,"HTML_2_BDZ-EX3000.txt","ＨＴＭＬ＿２＿ＢＤＺ－ＥＸ３０００",141447,null,null,null,null,null,null,null,10,"mid",null,null,10,"xlam",10,"png",null,null,10,"divx"]
[null,7,null,"HTML_2_DMR-BXT3000.txt","ＨＴＭＬ＿２＿ＤＭＲ－ＢＸＴ３０００",137322,null,null,null,null,null,null,null,11,"midi",null,null,11,"pdf"]
[null,8,null,"Kensaku_1_22_BDZ-ET2000.txt","Ｋｅｎｓａｋｕ＿１＿２２＿ＢＤＺ－ＥＴ２０００",93489,null,null,null,null,null,null,null,12,"mov",null,null,12,"xps"]
[null,9,null,"Kensaku_1_22_BDZ-EX3000.txt","Ｋｅｎｓａｋｕ＿１＿２２＿ＢＤＺ－ＥＸ３０００",37896,null,null,null,null,null,null,null,13,"mp3",null,null,13,"xlsb"]
[null,10,null,"Kensaku_1_22_DMR-BXT3000.txt","Ｋｅｎｓａｋｕ＿１＿２２＿ＤＭＲ－ＢＸＴ３０００",62243,null,null,null,null,null,null,null,14,"mpg"]
[null,11,null,"Kensaku_1_23_DMR-BXT3000.txt","Ｋｅｎｓａｋｕ＿１＿２３＿ＤＭＲ－ＢＸＴ３０００",63025,null,null,null,null,null,null,null,15,"msf"]
[null,12,null,"Kensaku_1_24_DMR-BXT3000.txt","Ｋｅｎｓａｋｕ＿１＿２４＿ＤＭＲ－ＢＸＴ３０００",62252,null,null,null,null,null,null,null,16,"qt"]
[null,13,null,"Kensaku_1_25_BDZ-ET2000.txt","Ｋｅｎｓａｋｕ＿１＿２５＿ＢＤＺ－ＥＴ２０００",93467,null,null,null,null,null,null,null,17,"ra"]
[null,14,null,"Kensaku_1_25_BDZ-EX3000.txt","Ｋｅｎｓａｋｕ＿１＿２５＿ＢＤＺ－ＥＸ３０００",38647,null,null,null,null,null,null,null,18,"ram"]
[null,15,null,"Kensaku_1_25_DMR-BXT3000.txt","Ｋｅｎｓａｋｕ＿１＿２５＿ＤＭＲ－ＢＸＴ３０００",62237,null,null,null,null,null,null,null,19,"rm"]
[null,16,null,"Kensaku_1_26_BDZ-ET2000.txt","Ｋｅｎｓａｋｕ＿１＿２６＿ＢＤＺ－ＥＴ２０００",87985,null,null,null,null,null,null,null,20,"rpm"]
[null,17,null,"Kensaku_1_26_BDZ-EX3000.txt","Ｋｅｎｓａｋｕ＿１＿２６＿ＢＤＺ－ＥＸ３０００",49888,null,null,null,null,null,null,null,21,"sd"]
[null,18,null,"Kensaku_1_26_DMR-BXT3000.txt","Ｋｅｎｓａｋｕ＿１＿２６＿ＤＭＲ－ＢＸＴ３０００",50265,null,null,null,null,null,null,null,22,"sdn"]
[null,19,null,"Kensaku_1_27_BDZ-ET2000.txt","Ｋｅｎｓａｋｕ＿１＿２７＿ＢＤＺ－ＥＴ２０００",88796,null,null,null,null,null,null,null,23,"svx"]
[null,20,null,"Kensaku_1_27_BDZ-EX3000.txt","Ｋｅｎｓａｋｕ＿１＿２７＿ＢＤＺ－ＥＸ３０００",49919,null,null,null,null,null,null,null,24,"vqe"]
[null,21,null,"Kensaku_1_27_DMR-BXT3000.txt","Ｋｅｎｓａｋｕ＿１＿２７＿ＤＭＲ－ＢＸＴ３０００",67023,null,null,null,null,null,null,null,25,"vqf"]
[null,22,null,"Kensaku_1_28_BDZ-ET2000.txt","Ｋｅｎｓａｋｕ＿１＿２８＿ＢＤＺ－ＥＴ２０００",93030,null,null,null,null,null,null,null,26,"vql"]
[null,23,null,"Kensaku_1_28_BDZ-EX3000.txt","Ｋｅｎｓａｋｕ＿１＿２８＿ＢＤＺ－ＥＸ３０００",49935,null,null,null,null,null,null,null,27,"wav"]
[null,24,null,"Kensaku_1_28_DMR-BXT3000.txt","Ｋｅｎｓａｋｕ＿１＿２８＿ＤＭＲ－ＢＸＴ３０００",67812,null,null,null,null,null,null,null,28,"wma"]
[null,25,null,"Kensaku_1_29_BDZ-ET2000.txt","Ｋｅｎｓａｋｕ＿１＿２９＿ＢＤＺ－ＥＴ２０００",96498,null,null,null,null,null,null,null,29,"wrk"]
[null,26,null,"Kensaku_1_29_BDZ-EX3000.txt","Ｋｅｎｓａｋｕ＿１＿２９＿ＢＤＺ－ＥＸ３０００",49110,null,null,null,null,null,null,null,"注）拡張子一覧表の拡張子は全てを記載しているわけではないので利用者は適宜追加する必要が生じる場合がある。追加がある場合は、この一覧表に追加すればよい。"]
[null,27,null,"Kensaku_1_29_DMR-BXT3000.txt","Ｋｅｎｓａｋｕ＿１＿２９＿ＤＭＲ－ＢＸＴ３０００",67022,null,null,null,null,null,null,null,"追加された拡張子は、プログラムに反映されるようにしているので、この追加作業だけで良い。"]
[null,28,null,"Kensaku_1_30_BDZ-ET2000.txt","Ｋｅｎｓａｋｕ＿１＿３０＿ＢＤＺ－ＥＴ２０００",96406]
[null,29,null,"Kensaku_1_30_BDZ-EX3000.txt","Ｋｅｎｓａｋｕ＿１＿３０＿ＢＤＺ－ＥＸ３０００",49085]
[null,30,null,"Kensaku_1_30_DMR-BXT3000.txt","Ｋｅｎｓａｋｕ＿１＿３０＿ＤＭＲ－ＢＸＴ３０００",67827]
[null,31,null,"Kensaku_1_31_BDZ-ET2000.txt","Ｋｅｎｓａｋｕ＿１＿３１＿ＢＤＺ－ＥＴ２０００",90820]
[null,32,null,"Kensaku_1_31_BDZ-EX3000.txt","Ｋｅｎｓａｋｕ＿１＿３１＿ＢＤＺ－ＥＸ３０００",49128]
[null,33,null,"Kensaku_1_31_DMR-BXT3000.txt","Ｋｅｎｓａｋｕ＿１＿３１＿ＤＭＲ－ＢＸＴ３０００",67828]
[null,34,null,"Kensaku_1_32_BDZ-ET2000.txt","Ｋｅｎｓａｋｕ＿１＿３２＿ＢＤＺ－ＥＴ２０００",97210]
[null,35,null,"Kensaku_1_32_BDZ-EX3000.txt","Ｋｅｎｓａｋｕ＿１＿３２＿ＢＤＺ－ＥＸ３０００",32238]
[null,36,null,"Kensaku_1_32_DMR-BXT3000.txt","Ｋｅｎｓａｋｕ＿１＿３２＿ＤＭＲ－ＢＸＴ３０００",67020]
[null,37,null,"Kensaku_1_33_BDZ-ET2000.txt","Ｋｅｎｓａｋｕ＿１＿３３＿ＢＤＺ－ＥＴ２０００",96385]
[null,38,null,"Kensaku_1_33_BDZ-EX3000.txt","Ｋｅｎｓａｋｕ＿１＿３３＿ＢＤＺ－ＥＸ３０００",40670]
[null,39,null,"Kensaku_1_33_DMR-BXT3000.txt","Ｋｅｎｓａｋｕ＿１＿３３＿ＤＭＲ－ＢＸＴ３０００",67812]
[null,40,null,"Kensaku_1_34_BDZ-ET2000.txt","Ｋｅｎｓａｋｕ＿１＿３４＿ＢＤＺ－ＥＴ２０００",77025]
[null,41,null,"Kensaku_1_34_BDZ-EX3000.txt","Ｋｅｎｓａｋｕ＿１＿３４＿ＢＤＺ－ＥＸ３０００",49797]
[null,42,null,"Kensaku_1_34_DMR-BXT3000.txt","Ｋｅｎｓａｋｕ＿１＿３４＿ＤＭＲ－ＢＸＴ３０００",58871]
[null,43,null,"Kensaku_1_35_DMR-BXT3000.txt","Ｋｅｎｓａｋｕ＿１＿３５＿ＤＭＲ－ＢＸＴ３０００",58115]
[null,44,null,"Kensaku_2_22_BDZ-ET2000.txt","Ｋｅｎｓａｋｕ＿２＿２２＿ＢＤＺ－ＥＴ２０００",72380]
[null,45,null,"Kensaku_2_22_BDZ-EX3000.txt","Ｋｅｎｓａｋｕ＿２＿２２＿ＢＤＺ－ＥＸ３０００",68986]
[null,46,null,"Kensaku_2_22_DMR-BXT3000.txt","Ｋｅｎｓａｋｕ＿２＿２２＿ＤＭＲ－ＢＸＴ３０００",77263]
[null,47,null,"Kensaku_2_25_BDZ-ET2000.txt","Ｋｅｎｓａｋｕ＿２＿２５＿ＢＤＺ－ＥＴ２０００",72526]
[null,48,null,"Kensaku_2_25_BDZ-EX3000.txt","Ｋｅｎｓａｋｕ＿２＿２５＿ＢＤＺ－ＥＸ３０００",68986]
[null,49,null,"Kensaku_2_25_DMR-BXT3000.txt","Ｋｅｎｓａｋｕ＿２＿２５＿ＤＭＲ－ＢＸＴ３０００",77263]
[null,50,null,"Kensaku_2_26_BDZ-ET2000.txt","Ｋｅｎｓａｋｕ＿２＿２６＿ＢＤＺ－ＥＴ２０００",73487]
[null,51,null,"Kensaku_2_26_BDZ-EX3000.txt","Ｋｅｎｓａｋｕ＿２＿２６＿ＢＤＺ－ＥＸ３０００",71351]
[null,52,null,"Kensaku_2_26_DMR-BXT3000.txt","Ｋｅｎｓａｋｕ＿２＿２６＿ＤＭＲ－ＢＸＴ３０００",77534]
[null,53,null,"Kensaku_2_27_BDZ-ET2000.txt","Ｋｅｎｓａｋｕ＿２＿２７＿ＢＤＺ－ＥＴ２０００",73938]
[null,54,null,"Kensaku_2_27_BDZ-EX3000.txt","Ｋｅｎｓａｋｕ＿２＿２７＿ＢＤＺ－ＥＸ３０００",71450]
[null,55,null,"Kensaku_2_27_DMR-BXT3000.txt","Ｋｅｎｓａｋｕ＿２＿２７＿ＤＭＲ－ＢＸＴ３０００",77632]
[null,56,null,"Kensaku_2_28_BDZ-ET2000.txt","Ｋｅｎｓａｋｕ＿２＿２８＿ＢＤＺ－ＥＴ２０００",73938]
[null,57,null,"Kensaku_2_28_BDZ-EX3000.txt","Ｋｅｎｓａｋｕ＿２＿２８＿ＢＤＺ－ＥＸ３０００",71450]
[null,58,null,"Kensaku_2_28_DMR-BXT3000.txt","Ｋｅｎｓａｋｕ＿２＿２８＿ＤＭＲ－ＢＸＴ３０００",77534]
[null,59,null,"Kensaku_2_29_BDZ-ET2000.txt","Ｋｅｎｓａｋｕ＿２＿２９＿ＢＤＺ－ＥＴ２０００",73938]
[null,60,null,"Kensaku_2_29_BDZ-EX3000.txt","Ｋｅｎｓａｋｕ＿２＿２９＿ＢＤＺ－ＥＸ３０００",71450]
[null,61,null,"Kensaku_2_29_DMR-BXT3000.txt","Ｋｅｎｓａｋｕ＿２＿２９＿ＤＭＲ－ＢＸＴ３０００",77534]
[null,62,null,"Kensaku_2_30_BDZ-ET2000.txt","Ｋｅｎｓａｋｕ＿２＿３０＿ＢＤＺ－ＥＴ２０００",73938]
[null,63,null,"Kensaku_2_30_BDZ-EX3000.txt","Ｋｅｎｓａｋｕ＿２＿３０＿ＢＤＺ－ＥＸ３０００",71450]
[null,64,null,"Kensaku_2_30_DMR-BXT3000.txt","Ｋｅｎｓａｋｕ＿２＿３０＿ＤＭＲ－ＢＸＴ３０００",77534]
[null,65,null,"Kensaku_2_31_BDZ-ET2000.txt","Ｋｅｎｓａｋｕ＿２＿３１＿ＢＤＺ－ＥＴ２０００",104083]
[null,66,null,"Kensaku_2_31_BDZ-EX3000.txt","Ｋｅｎｓａｋｕ＿２＿３１＿ＢＤＺ－ＥＸ３０００",71450]
[null,67,null,"Kensaku_2_31_DMR-BXT3000.txt","Ｋｅｎｓａｋｕ＿２＿３１＿ＤＭＲ－ＢＸＴ３０００",77534]
[null,68,null,"Kensaku_2_32_BDZ-ET2000.txt","Ｋｅｎｓａｋｕ＿２＿３２＿ＢＤＺ－ＥＴ２０００",73938]
[null,69,null,"Kensaku_2_32_BDZ-EX3000.txt","Ｋｅｎｓａｋｕ＿２＿３２＿ＢＤＺ－ＥＸ３０００",71450]
[null,70,null,"Kensaku_2_32_DMR-BXT3000.txt","Ｋｅｎｓａｋｕ＿２＿３２＿ＤＭＲ－ＢＸＴ３０００",77534]
[null,71,null,"Kensaku_2_33_BDZ-ET2000.txt","Ｋｅｎｓａｋｕ＿２＿３３＿ＢＤＺ－ＥＴ２０００",74037]
[null,72,null,"Kensaku_2_33_BDZ-EX3000.txt","Ｋｅｎｓａｋｕ＿２＿３３＿ＢＤＺ－ＥＸ３０００",71450]
[null,73,null,"Kensaku_2_33_DMR-BXT3000.txt","Ｋｅｎｓａｋｕ＿２＿３３＿ＤＭＲ－ＢＸＴ３０００",77534]
[null,74,null,"Kensaku_2_34_BDZ-ET2000.txt","Ｋｅｎｓａｋｕ＿２＿３４＿ＢＤＺ－ＥＴ２０００",78399]
[null,75,null,"Kensaku_2_34_BDZ-EX3000.txt","Ｋｅｎｓａｋｕ＿２＿３４＿ＢＤＺ－ＥＸ３０００",74476]
[null,76,null,"Kensaku_2_34_DMR-BXT3000.txt","Ｋｅｎｓａｋｕ＿２＿３４＿ＤＭＲ－ＢＸＴ３０００",114682]
[null,77,null,"Kouten.txt","Ｋｏｕｔｅｎ",262]
[null,78,null,"Kouten1.txt","Ｋｏｕｔｅｎ１",293]
[null,79,null,"masFileRunData.txt","ｍａｓＦｉｌｅＲｕｎＤａｔａ",0]
[null,80,null,"mas_BerX-R.txt","マｓ＿ＢｅｒＸ－Ｒ",2360]
[null,81,null,"mas_BerX-R20130814.txt","マｓ＿ＢｅｒＸ－Ｒ２０１３０８１４",2470]
[null,82,null,"MDrive.txt","ＭＤｒｉｖｅ",5]
[null,83,null,"myFile.txt","ｍｙＦｉｌｅ",0]
[null,84,null,"myFile_M.txt","ｍｙＦｉｌｅ＿Ｍ",0]
[null,85,null,"UserPassWorD.txt","ＵｓｅｒＰａｓｓＷｏｒＤ",7]
[null,86,null,"XY_Data.txt","ＸＹ＿Ｄａｔａ",60]
[null,87,null,"YahooShop.txt","ＹａｈｏｏＳｈｏｐ",194480]
[null,88,null,"YahooShop_20130629.txt","ＹａｈｏｏＳｈｏｐ＿２０１３０６２９",164227]
[null,89,null,"Yahoo_Text.txt","Ｙａｈｏｏ＿Ｔエｘｔ",56675]
[null,90,null,"すべての商品オークション.txt","スベテノショウヒンオークション",2]
[null,91,null,"ヤフオク.txt","ヤフオク",76995]
[null,92,null,"ヤフオク_20130629.txt","ヤフオク＿２０１３０６２９",74521]
[null,93,null,"出品者（評価）.txt","シュッピンシャ（ヒョウカ）",28262]
[null,94,null,"東京.txt","トウキョウ",424]
[null,95,null,"調査回数.txt","チョウサカイスウ",26]

{"sheet":"ファイルの種類1","index":1,"n_rows":114,"n_cols":15,"rows_kept":114,"cut":false,"hidden":false,"merged":[]}
[null,null,null,null,null,null,null,null,null,null,null,null,null,"全てのファイル"]
[null,null,null,null,null,null,null,null,null,null,null,null,null,"WordFile","*.doc;*.docx"]
[null,null,null,null,null,null,null,null,null,null,null,null,null,"ExcelFile","*.xls,*.xlsm"]
[null,null,null,null,null,null,null,null,null,null,null,null,null,"画像ファイル","*.bmp,*.jpg,"]
[null,null,null,null,null,null,null,null,null,null,null,null,null,"CadFile"]
[null,"Word 文書",null,null,null,"Excel ブック",null,null,"24ビッドビットマップ(*.bmp;*.dib)",null,null,null,null,"TextFile"]
[null,"Word マクロ有効文書",null,null,null,"Excel マクロ有効ブック",null,null,"モノクロビットマップ(*.bmp:*.dib)"]
[null,"Word 97-2003 文書",null,null,null,"Exce バイナリブック",null,null,"16色ビットマップ(*.bmp;*.dib)"]
[null,"Word テンプレート",null,null,null,"Excel 97-2003ブック",null,null,"256色ビットマップ(*.bmp;*.dib)"]
[null,"Word マクロ有効テンプレート",null,null,null,"XMLデータ",null,null,"24色ビットビットマップ(*.bmp;*.dib)"]
[null,"Word 97-2003 文書テンプレート",null,null,null,"単一ファイルWebページ",null,null,"JPEG(*.jpg;*.jpeg;*.jpe;*.jfif)"]
[null,"PDF",null,null,null,"Webページ",null,null,"GIF(*.gif)"]
[null,"XPS 文書",null,null,null,"Excelテンプレート",null,null,"TIFF(*.tif;*.tiff)"]
[null,"単一ファイルWebページ",null,null,null,"Excelマクロ有効テンプレート",null,null,"PNG(*.png)"]
[null,"Webページ",null,null,null,"Excel 97-2003 テンプレート"]
[null,"Webページ（フィルター後）",null,null,null,"テキスト（タブ区切り）"]
[null,"リッチテキスト形式(RTF)",null,null,null,"Unicodeテキスト"]
[null,"書式なし",null,null,null,"XMLスプレッドシート2003"]
[null,"Word XML ドキュメント",null,null,null,"Microsoft Excel 5.0/95 ブック"]
[null,"Word 2003 XML ドキュメント",null,null,null,"CSV（カンマ区切り）"]
[null,"OpenDocument テキスト",null,null,null,"テキスト（スペース区切り）"]
[null,"Works 6-9 ドキュメント",null,null,null,"DIF"]
[null,null,null,null,null,"SYLK"]
[null,null,null,null,null,"Excelアドイン"]
[null,null,null,null,null,"PDF"]
[null,null,null,null,null,"XPSドキュメント"]
[null,null,null,null,null,"OpenDocumentスプレッドシート"]
[null,null,null,null,null,"Excelブック"]
[]
[]
[]
[]
[]
[]
[]
[]
[]
[]
[]
[]
[]
[]
[]
[]
[]
[]
[]
[null,"<link id=\"css-article-ns\" href=\"//officeimg.vo.msecnd.net/_layouts/article.noscript.css?b=5685%2E4010&upd=898242\" rel=\"stylesheet\"></link>"]
[]
[null,"Excel 形式"]
[]
[null,"ファイル形式","拡張子","説明"]
[null,"Excel ブック",".xlsx","Office Excel 2007 の既定の XML ベース ファイル形式。Microsoft Visual Basic for Applications (VBA) マクロ コードや Microsoft Office Excel 4.0 マクロ シート (.xlm) は保存できません。"]
[null,"Excel ブック (コード)",".xlsm","Office Excel 2007 XML ベースのマクロ有効ファイル形式。VBA マクロ コードや Excel 4.0 マクロ シート (.xlm) を保存します。"]
[null,"Excel バイナリ ブック",".xlsb","Office Excel 2007 バイナリ ファイル形式 (BIFF12)。"]
[null,"テンプレート",".xltx","Excel テンプレート用の Office Excel 2007 の既定のファイル形式。VBA マクロ コードや Excel 4.0 マクロ シート (.xlm) は保存できません。"]
[null,"テンプレート (コード)",".xltm","Excel テンプレート用の Office Excel 2007 マクロ有効ファイル形式。VBA マクロ コードや Excel 4.0 マクロ シート (.xlm) を保存します。"]
[null,"Excel 97 - Excel 2003 ブック",".xls","Excel 97 - Excel 2003 バイナリ ファイル形式 (BIFF8)。"]
[null,"Excel 97 - Excel 2003 テンプレート",".xlt","Excel テンプレート用の Excel 97 - Excel 2003 バイナリ ファイル形式 (BIFF8)。"]
[null,"Microsoft Excel 5.0/95 ブック",".xls","Excel 5.0/95 バイナリ ファイル形式 (BIFF5)。"]
[null,"XML スプレッドシート 2003",".xml","XML スプレッドシート 2003 ファイル形式 (XMLSS)。"]
[null,"XML データ",".xml","XML データ形式。"]
[null,"Excel アドイン",".xlam","Office Excel 2007 の XML ベースのマクロ有効アドイン。アドインは、追加のコードを実行するための補助プログラムです。VBA プロジェクトや Excel 4.0 マクロ シート (.xlm) の使用をサポートします。"]
[null,"Excel 97 ～ 2003 アドイン",".xla","Excel 97 ～ 2003 のアドイン。アドインは、追加のコードを実行するための補助プログラムです。VBA プロジェクトの使用をサポートします。"]
[null,"Excel 4.0 ブック",".xlw","ワークシート、グラフ シート、およびマクロ シートだけを保存する Excel 4.0 ファイル形式。Office Excel 2007 ではこのファイル形式のブックを開くことができますが、この形式で Excel ファイルを保存することはできません。"]
[]
[null,"ページの先頭へ"]
[]
[null,"テキスト形式",null,null,null,null,null,null,"Excel 形式"]
[]
[null,"ファイル形式","拡張子","説明"]
[null,"テキスト (スペース区切り)",".prn","Lotus のスペース区切りの形式。作業中のシートだけを保存します。"]
[null,"テキスト (タブ区切り)",".txt","Microsoft Windows オペレーティング システムでタブ、改行などの文字が正しく解釈されるタブ区切りのテキスト ファイルとして、作業中のワークシートだけを保存します。",null,null,null,null,"ファイル形式"]
[null,"テキスト (Macintosh)",".txt","Macintosh オペレーティング システムでタブ、改行などの文字が正しく解釈されるタブ区切りのテキスト ファイルとして、作業中のワークシートだけを保存します。"]
[null,"テキスト (MS-DOS)",".txt","MS-DOS オペレーティング システムでタブ、改行などの文字が正しく解釈されるタブ区切りのテキスト ファイルとして、作業中のワークシートだけを保存します。",null,null,null,null,"拡張子"]
[null,"Unicode テキスト",".txt","ブックを Unicode テキストとして保存します。Unicode は、Unicode Consortium で開発された文字エンコード標準です。"]
[null,"CSV (コンマ区切り)",".csv","Windows オペレーティング システムでタブ、改行などの文字が正しく解釈されるコンマ区切りのテキスト ファイルとして、作業中のワークシートだけを保存します。",null,null,null,null,"説明"]
[null,"CSV (Macintosh)",".csv","Macintosh オペレーティング システムでタブ、改行などの文字が正しく解釈されるコンマ区切りのテキスト ファイルとして、作業中のワークシートだけを保存します。"]
[null,"CSV (MS-DOS)",".csv","MS-DOS オペレーティング システムでタブ、改行などの文字が正しく解釈されるコンマ区切りのテキスト ファイルとして、作業中のワークシートだけを保存します。",null,null,null,null,"Excel ブック .xlsx Office Excel 2007 の既定の XML ベース ファイル形式。Microsoft Visual Basic for Applications (VBA) マクロ コードや Microsoft Office Excel 4.0 マクロ シート (.xlm) は保存できません。 "]
[null,"DIF",".dif","DIF (データ交換形式)。作業中のシートだけを保存します。",null,null,null,null,"Excel ブック (コード) .xlsm Office Excel 2007 XML ベースのマクロ有効ファイル形式。VBA マクロ コードや Excel 4.0 マクロ シート (.xlm) を保存します。  "]
[null,"SYLK",".slk","シンボリック リンク形式。作業中のシートだけを保存します。",null,null,null,null,"Excel バイナリ ブック .xlsb Office Excel 2007 バイナリ ファイル形式 (BIFF12)。  "]
[null,null,null,null,null,null,null,null,"テンプレート .xltx Excel テンプレート用の Office Excel 2007 の既定のファイル形式。VBA マクロ コードや Excel 4.0 マクロ シート (.xlm) は保存できません。 "]
[null,null,null,null,null,null,null,null,"テンプレート (コード) .xltm Excel テンプレート用の Office Excel 2007 マクロ有効ファイル形式。VBA マクロ コードや Excel 4.0 マクロ シート (.xlm) を保存します。 "]
[null,null,null,null,null,null,null,null,"Excel 97 - Excel 2003 ブック .xls Excel 97 - Excel 2003 バイナリ ファイル形式 (BIFF8)。 "]
[null,null,null,null,null,null,null,null,"Excel 97 - Excel 2003 テンプレート .xlt Excel テンプレート用の Excel 97 - Excel 2003 バイナリ ファイル形式 (BIFF8)。 "]
[null,null,null,null,null,null,null,null,"Microsoft Excel 5.0/95 ブック .xls Excel 5.0/95 バイナリ ファイル形式 (BIFF5)。 "]
[null,null,null,null,null,null,null,null,"XML スプレッドシート 2003 .xml XML スプレッドシート 2003 ファイル形式 (XMLSS)。 "]
[null,null,null,null,null,null,null,null,"XML データ .xml XML データ形式。 "]
[null,null,null,null,null,null,null,null,"Excel アドイン .xlam Office Excel 2007 の XML ベースのマクロ有効アドイン。アドインは、追加のコードを実行するための補助プログラムです。VBA プロジェクトや Excel 4.0 マクロ シート (.xlm) の使用をサポートします。 "]
[null,null,null,null,null,null,null,null,"Excel 97 ～ 2003 アドイン .xla Excel 97 ～ 2003 のアドイン。アドインは、追加のコードを実行するための補助プログラムです。VBA プロジェクトの使用をサポートします。 "]
[null,null,null,null,null,null,null,null,"Excel 4.0 ブック .xlw ワークシート、グラフ シート、およびマクロ シートだけを保存する Excel 4.0 ファイル形式。Office Excel 2007 ではこのファイル形式のブックを開くことができますが、この形式で Excel ファイルを保存することはできません。 "]
[]
[null,null,null,null,null,null,null,null,"ページの先頭へ ページの先頭へ"]
[]
[null,null,null,null,null,null,null,null,"テキスト形式"]
[]
[]
[]
[null,null,null,null,null,null,null,null,"ファイル形式"]
[]
[null,null,null,null,null,null,null,null,"拡張子"]
[]
[null,null,null,null,null,null,null,null,"説明"]
[]
[null,null,null,null,null,null,null,null,"テキスト (スペース区切り) .prn Lotus のスペース区切りの形式。作業中のシートだけを保存します。 "]
[null,null,null,null,null,null,null,null,"テキスト (タブ区切り) .txt Microsoft Windows オペレーティング システムでタブ、改行などの文字が正しく解釈されるタブ区切りのテキスト ファイルとして、作業中のワークシートだけを保存します。 "]
[null,null,null,null,null,null,null,null,"テキスト (Macintosh) .txt Macintosh オペレーティング システムでタブ、改行などの文字が正しく解釈されるタブ区切りのテキスト ファイルとして、作業中のワークシートだけを保存します。 "]
[null,null,null,null,null,null,null,null,"テキスト (MS-DOS) .txt MS-DOS オペレーティング システムでタブ、改行などの文字が正しく解釈されるタブ区切りのテキスト ファイルとして、作業中のワークシートだけを保存します。 "]
[null,null,null,null,null,null,null,null,"Unicode テキスト .txt ブックを Unicode テキストとして保存します。Unicode は、Unicode Consortium で開発された文字エンコード標準です。 "]
[null,null,null,null,null,null,null,null,"CSV (コンマ区切り)  .csv Windows オペレーティング システムでタブ、改行などの文字が正しく解釈されるコンマ区切りのテキスト ファイルとして、作業中のワークシートだけを保存します。 "]
[null,null,null,null,null,null,null,null,"CSV (Macintosh) .csv Macintosh オペレーティング システムでタブ、改行などの文字が正しく解釈されるコンマ区切りのテキスト ファイルとして、作業中のワークシートだけを保存します。 "]
[null,null,null,null,null,null,null,null,"CSV (MS-DOS) .csv MS-DOS オペレーティング システムでタブ、改行などの文字が正しく解釈されるコンマ区切りのテキスト ファイルとして、作業中のワークシートだけを保存します。 "]
[null,null,null,null,null,null,null,null,"DIF .dif DIF (データ交換形式)。作業中のシートだけを保存します。 "]
[null,null,null,null,null,null,null,null,"SYLK  .slk シンボリック リンク形式。作業中のシートだけを保存します。 "]

{"sheet":"ファイルの種類2","index":2,"n_rows":1866,"n_cols":20,"rows_kept":1866,"cut":false,"hidden":false,"merged":[[76,19,77,19],[78,19,79,19],[80,19,81,19],[82,17,83,17],[82,19,83,19],[84,18,85,18],[84,19,85,19],[68,17,68,19],[70,17,71,17],[70,19,71,19],[72,17,73,17],[72,19,73,19],[74,17,74,19],[55,17,55,19],[58,17,59,17],[58,19,59,19],[60,17,61,17],[60,19,61,19],[66,17,67,17],[66,19,67,19],[49,17,50,17],[49,19,50,19],[51,17,52,17],[51,19,52,19],[53,17,54,17],[53,19,54,19],[40,18,41,18],[40,19,41,19],[43,17,43,19],[45,17,46,17],[45,19,46,19],[47,17,48,17],[47,19,48,19],[31,17,31,19],[33,17,34,17],[33,19,34,19],[36,17,37,17],[36,19,37,19],[38,17,39,17],[38,19,39,19],[16,17,17,17],[16,19,17,19],[20,17,20,19],[23,17,24,17],[23,19,24,19],[25,17,26,17],[25,19,26,19],[3,17,3,19],[5,18,6,18],[5,19,6,19],[12,17,13,17],[12,19,13,19],[14,17,15,17],[14,19,15,19],[1858,1,1858,3],[1858,4,1858,6],[1859,1,1859,6],[1840,1,1840,3],[1840,4,1840,6],[1841,1,1841,6],[1842,1,1842,2],[1842,3,1842,6],[1843,1,1843,2],[1843,3,1843,6],[1832,1,1832,6],[1833,1,1833,2],[1833,3,1833,6],[1834,1,1834,2],[1834,3,1834,6],[1838,1,1839,1],[1838,2,1839,2],[1838,3,1838,4],[1860,1,1860,2],[1860,3,1860,6],[1861,1,1861,2],[1861,3,1861,6],[1850,1,1850,6],[1851,1,1851,2],[1851,3,1851,6],[1852,1,1852,2],[1852,3,1852,6],[1856,1,1857,1],[1856,2,1857,2],[1856,3,1856,4],[1856,5,1857,6],[1847,1,1848,1],[1847,2,1848,2],[1847,3,1847,4],[1847,5,1848,6],[1849,1,1849,3],[1849,4,1849,6],[1838,5,1839,6],[1829,1,1830,1],[1829,2,1830,2],[1829,3,1829,4],[1829,5,1830,6],[1831,1,1831,3],[1831,4,1831,6],[1819,1,1819,3],[1819,4,1819,6],[1820,1,1820,6],[1821,1,1821,2],[1821,3,1821,6],[1822,1,1822,2],[1822,3,1822,6],[1811,1,1811,6],[1812,1,1812,2],[1812,3,1812,6],[1813,1,1813,2],[1813,3,1813,6],[1817,1,1818,1],[1817,2,1818,2],[1817,3,1817,4],[1817,5,1818,6],[1808,1,1809,1],[1808,2,1809,2],[1808,3,1808,4],[1808,5,1809,6],[1810,1,1810,3],[1810,4,1810,6],[1801,1,1801,3],[1801,4,1801,6],[1802,1,1802,6],[1803,1,1803,2],[1803,3,1803,6],[1804,1,1804,2],[1804,3,1804,6],[1793,1,1793,6],[1794,1,1794,2],[1794,3,1794,6],[1795,1,1795,2],[1795,3,1795,6],[1799,1,1800,1],[1799,2,1800,2],[1799,3,1799,4],[1799,5,1800,6],[1790,1,1791,1],[1790,2,1791,2],[1790,3,1790,4],[1790,5,1791,6],[1792,1,1792,3],[1792,4,1792,6],[1783,1,1783,3],[1783,4,1783,6],[1784,1,1784,6],[1785,1,1785,2],[1785,3,1785,6],[1786,1,1786,2],[1786,3,1786,6],[1775,1,1775,6],[1776,1,1776,2],[1776,3,1776,6],[1777,1,1777,2],[1777,3,1777,6],[1781,1,1782,1],[1781,2,1782,2],[1781,3,1781,4],[1781,5,1782,6],[1772,1,1773,1],[1772,2,1773,2],[1772,3,1772,4],[1772,5,1773,6],[1774,1,1774,3],[1774,4,1774,6],[1765,1,1765,3],[1765,4,1765,6],[1766,1,1766,6],[1767,1,1767,2],[1767,3,1767,6],[1768,1,1768,2],[1768,3,1768,6],[1757,1,1757,6],[1758,1,1758,2],[1758,3,1758,6],[1759,1,1759,2],[1759,3,1759,6],[1763,1,1764,1],[1763,2,1764,2],[1763,3,1763,4],[1763,5,1764,6],[1754,1,1755,1],[1754,2,1755,2],[1754,3,1754,4],[1754,5,1755,6],[1756,1,1756,3],[1756,4,1756,6],[1747,1,1747,3],[1747,4,1747,6],[1748,1,1748,6],[1749,1,1749,2],[1749,3,1749,6],[1750,1,1750,2],[1750,3,1750,6],[1739,1,1739,6],[1740,1,1740,2],[1740,3,1740,6],[1741,1,1741,2],[1741,3,1741,6],[1745,1,1746,1],[1745,2,1746,2],[1745,3,1745,4],[1745,5,1746,6],[1736,1,1737,1],[1736,2,1737,2],[1736,3,1736,4],[1736,5,1737,6],[1738,1,1738,3],[1738,4,1738,6],[1729,1,1729,3],[1729,4,1729,6],[1730,1,1730,6],[1731,1,1731,2],[1731,3,1731,6],[1732,1,1732,2],[1732,3,1732,6],[1719,1,1719,6],[1720,1,1720,2],[1720,3,1720,6],[1721,1,1721,2],[1721,3,1721,6],[1727,1,1728,1],[1727,2,1728,2],[1727,3,1727,4],[1727,5,1728,6],[1716,1,1717,1],[1716,2,1717,2],[1716,3,1716,4],[1716,5,1717,6],[1718,1,1718,3],[1718,4,1718,6],[1709,1,1709,3],[1709,4,1709,6],[1710,1,1710,6],[1711,1,1711,2],[1711,3,1711,6],[1712,1,1712,2],[1712,3,1712,6],[1701,1,1701,6],[1702,1,1702,2],[1702,3,1702,6],[1703,1,1703,2],[1703,3,1703,6],[1707,1,1708,1],[1707,2,1708,2],[1707,3,1707,4],[1707,5,1708,6],[1698,1,1699,1],[1698,2,1699,2],[1698,3,1698,4],[1698,5,1699,6],[1700,1,1700,3],[1700,4,1700,6],[1691,1,1691,3],[1691,4,1691,6],[1692,1,1692,6],[1693,1,1693,2],[1693,3,1693,6],[1694,1,1694,2],[1694,3,1694,6],[1683,1,1683,6],[1684,1,1684,2],[1684,3,1684,6],[1685,1,1685,2],[1685,3,1685,6],[1689,1,1690,1],[1689,2,1690,2],[1689,3,1689,4],[1689,5,1690,6],[1680,1,1681,1],[1680,2,1681,2],[1680,3,1680,4],[1680,5,1681,6],[1682,1,1682,3],[1682,4,1682,6],[1673,1,1673,3],[1673,4,1673,6],[1674,1,1674,6],[1675,1,1675,2],[1675,3,1675,6],[1676,1,1676,2],[1676,3,1676,6],[1665,1,1665,6],[1666,1,1666,2],[1666,3,1666,6],[1667,1,1667,2],[1667,3,1667,6],[1671,1,1672,1],[1671,2,1672,2],[1671,3,1671,4],[1671,5,1672,6],[1662,1,1663,1],[1662,2,1663,2],[1662,3,1662,4],[1662,5,1663,6],[1664,1,1664,3],[1664,4,1664,6],[1655,1,1655,3],[1655,4,1655,6],[1656,1,1656,6],[1657,1,1657,2],[1657,3,1657,6],[1658,1,1658,2],[1658,3,1658,6],[1647,1,1647,6],[1648,1,1648,2],[1648,3,1648,6],[1649,1,1649,2],[1649,3,1649,6],[1653,1,1654,1],[1653,2,1654,2],[1653,3,1653,4],[1653,5,1654,6],[1644,1,1645,1],[1644,2,1645,2],[1644,3,1644,4],[1644,5,1645,6],[1646,1,1646,3],[1646,4,1646,6],[1637,1,1637,3],[1637,4,1637,6],[1638,1,1638,6],[1639,1,1639,2],[1639,3,1639,6],[1640,1,1640,2],[1640,3,1640,6],[1629,1,1629,6],[1630,1,1630,2],[1630,3,1630,6],[1631,1,1631,2],[1631,3,1631,6],[1635,1,1636,1],[1635,2,1636,2],[1635,3,1635,4],[1635,5,1636,6],[1626,1,1627,1],[1626,2,1627,2],[1626,3,1626,4],[1626,5,1627,6],[1628,1,1628,3],[1628,4,1628,6],[1619,1,1619,3],[1619,4,1619,6],[1620,1,1620,6],[1621,1,1621,2],[1621,3,1621,6],[1622,1,1622,2],[1622,3,1622,6],[1611,1,1611,6],[1612,1,1612,2],[1612,3,1612,6],[1613,1,1613,2],[1613,3,1613,6],[1617,1,1618,1],[1617,2,1618,2],[1617,3,1617,4],[1617,5,1618,6],[1608,1,1609,1],[1608,2,1609,2],[1608,3,1608,4],[1608,5,1609,6],[1610,1,1610,3],[1610,4,1610,6],[1601,1,1601,3],[1601,4,1601,6],[1602,1,1602,6],[1603,1,1603,2],[1603,3,1603,6],[1604,1,1604,2],[1604,3,1604,6],[1593,1,1593,6],[1594,1,1594,2],[1594,3,1594,6],[1595,1,1595,2],[1595,3,1595,6],[1599,1,1600,1],[1599,2,1600,2],[1599,3,1599,4],[1599,5,1600,6],[1590,1,1591,1],[1590,2,1591,2],[1590,3,1590,4],[1590,5,1591,6],[1592,1,1592,3],[1592,4,1592,6],[1583,1,1583,3],[1583,4,1583,6],[1584,1,1584,6],[1585,1,1585,2],[1585,3,1585,6],[1586,1,1586,2],[1586,3,1586,6],[1575,1,1575,6],[1576,1,1576,2],[1576,3,1576,6],[1577,1,1577,2],[1577,3,1577,6],[1581,1,1582,1],[1581,2,1582,2],[1581,3,1581,4],[1581,5,1582,6],[1572,1,1573,1],[1572,2,1573,2],[1572,3,1572,4],[1572,5,1573,6],[1574,1,1574,3],[1574,4,1574,6],[1565,1,1565,3],[1565,4,1565,6],[1566,1,1566,6],[1567,1,1567,2],[1567,3,1567,6],[1568,1,1568,2],[1568,3,1568,6],[1557,1,1557,6],[1558,1,1558,2],[1558,3,1558,6],[1559,1,1559,2],[1559,3,1559,6],[1563,1,1564,1],[1563,2,1564,2],[1563,3,1563,4],[1563,5,1564,6],[1554,1,1555,1],[1554,2,1555,2],[1554,3,1554,4],[1554,5,1555,6],[1556,1,1556,3],[1556,4,1556,6],[1547,1,1547,3],[1547,4,1547,6],[1548,1,1548,6],[1549,1,1549,2],[1549,3,1549,6],[1550,1,1550,2],[1550,3,1550,6],[1539,1,1539,6],[1540,1,1540,2],[1540,3,1540,6],[1541,1,1541,2],[1541,3,1541,6],[1545,1,1546,1],[1545,2,1546,2],[1545,3,1545,4],[1545,5,1546,6],[1536,1,1537,1],[1536,2,1537,2],[1536,3,1536,4],[1536,5,1537,6],[1538,1,1538,3],[1538,4,1538,6],[1529,1,1529,3],[1529,4,1529,6],[1530,1,1530,6],[1531,1,1531,2],[1531,3,1531,6],[1532,1,1532,2],[1532,3,1532,6],[1521,1,1521,6],[1522,1,1522,2],[1522,3,1522,6],[1523,1,1523,2],[1523,3,1523,6],[1527,1,1528,1],[1527,2,1528,2],[1527,3,1527,4],[1527,5,1528,6],[1518,1,1519,1],[1518,2,1519,2],[1518,3,1518,4],[1518,5,1519,6],[1520,1,1520,3],[1520,4,1520,6],[1511,1,1511,3],[1511,4,1511,6],[1512,1,1512,6],[1513,1,1513,2],[1513,3,1513,6],[1514,1,1514,2],[1514,3,1514,6],[1503,1,1503,6],[1504,1,1504,2],[1504,3,1504,6],[1505,1,1505,2],[1505,3,1505,6],[1509,1,1510,1],[1509,2,1510,2],[1509,3,1509,4],[1509,5,1510,6],[1500,1,1501,1],[1500,2,1501,2],[1500,3,1500,4],[1500,5,1501,6],[1502,1,1502,3],[1502,4,1502,6],[1493,1,1493,3],[1493,4,1493,6],[1494,1,1494,6],[1495,1,1495,2],[1495,3,1495,6],[1496,1,1496,2],[1496,3,1496,6],[1485,1,1485,6],[1486,1,1486,2],[1486,3,1486,6],[1487,1,1487,2],[1487,3,1487,6],[1491,1,1492,1],[1491,2,1492,2],[1491,3,1491,4],[1491,5,1492,6],[1482,1,1483,1],[1482,2,1483,2],[1482,3,1482,4],[1482,5,1483,6],[1484,1,1484,3],[1484,4,1484,6],[1475,1,1475,3],[1475,4,1475,6],[1476,1,1476,6],[1477,1,1477,2],[1477,3,1477,6],[1478,1,1478,2],[1478,3,1478,6],[1467,1,1467,6],[1468,1,1468,2],[1468,3,1468,6],[1469,1,1469,2],[1469,3,1469,6],[1473,1,1474,1],[1473,2,1474,2],[1473,3,1473,4],[1473,5,1474,6],[1464,1,1465,1],[1464,2,1465,2],[1464,3,1464,4],[1464,5,1465,6],[1466,1,1466,3],[1466,4,1466,6],[1457,1,1457,3],[1457,4,1457,6],[1458,1,1458,6],[1459,1,1459,2],[1459,3,1459,6],[1460,1,1460,2],[1460,3,1460,6],[1450,1,1450,6],[1451,1,1451,2],[1451,3,1451,6],[1451,7,1451,10],[1455,1,1456,1],[1455,2,1456,2],[1455,3,1455,4],[1455,5,1456,6],[1447,1,1448,1],[1447,2,1448,2],[1447,3,1447,4],[1447,5,1448,6],[1449,1,1449,3],[1449,4,1449,6],[1440,1,1440,3],[1440,4,1440,6],[1441,1,1441,6],[1442,1,1442,2],[1442,3,1442,6],[1443,1,1443,2],[1443,3,1443,6],[1432,1,1432,6],[1433,1,1433,2],[1433,3,1433,6],[1434,1,1434,2],[1434,3,1434,6],[1438,1,1439,1],[1438,2,1439,2],[1438,3,1438,4],[1438,5,1439,6],[1429,1,1430,1],[1429,2,1430,2],[1429,3,1429,4],[1429,5,1430,6],[1431,1,1431,3],[1431,4,1431,6],[1422,1,1422,3],[1422,4,1422,6],[1423,1,1423,6],[1424,1,1424,2],[1424,3,1424,6],[1425,1,1425,2],[1425,3,1425,6],[1414,1,1414,6],[1415,1,1415,2],[1415,3,1415,6],[1416,1,1416,2],[1416,3,1416,6],[1420,1,1421,1],[1420,2,1421,2],[1420,3,1420,4],[1420,5,1421,6],[1411,1,1412,1],[1411,2,1412,2],[1411,3,1411,4],[1411,5,1412,6],[1413,1,1413,3],[1413,4,1413,6],[1404,1,1404,3],[1404,4,1404,6],[1405,1,1405,6],[1406,1,1406,2],[1406,3,1406,6],[1407,1,1407,2],[1407,3,1407,6],[1396,1,1396,6],[1397,1,1397,2],[1397,3,1397,6],[1398,1,1398,2],[1398,3,1398,6],[1402,1,1403,1],[1402,2,1403,2],[1402,3,1402,4],[1402,5,1403,6],[1393,1,1394,1],[1393,2,1394,2],[1393,3,1393,4],[1393,5,1394,6],[1395,1,1395,3],[1395,4,1395,6],[1386,1,1386,3],[1386,4,1386,6],[1387,1,1387,6],[1388,1,1388,2],[1388,3,1388,6],[1389,1,1389,2],[1389,3,1389,6],[1378,1,1378,6],[1379,1,1379,2],[1379,3,1379,6],[1380,1,1380,2],[1380,3,1380,6],[1384,1,1385,1],[1384,2,1385,2],[1384,3,1384,4],[1384,5,1385,6],[1375,1,1376,1],[1375,2,1376,2],[1375,3,1375,4],[1375,5,1376,6],[1377,1,1377,3],[1377,4,1377,6],[1368,1,1368,3],[1368,4,1368,6],[1369,1,1369,6],[1370,1,1370,2],[1370,3,1370,6],[1371,1,1371,2],[1371,3,1371,6],[1360,1,1360,6],[1361,1,1361,2],[1361,3,1361,6],[1362,1,1362,2],[1362,3,1362,6],[1366,1,1367,1],[1366,2,1367,2],[1366,3,1366,4],[1366,5,1367,6],[1357,1,1358,1],[1357,2,1358,2],[1357,3,1357,4],[1357,5,1358,6],[1359,1,1359,3],[1359,4,1359,6],[1347,1,1347,3],[1347,4,1347,6],[1348,1,1348,6],[1349,1,1349,2],[1349,3,1349,6],[1350,1,1350,2],[1350,3,1350,6],[1339,1,1339,6],[1340,1,1340,2],[1340,3,1340,6],[1341,1,1341,2],[1341,3,1341,6],[1345,1,1346,1],[1345,2,1346,2],[1345,3,1345,4],[1345,5,1346,6],[1336,1,1337,1],[1336,2,1337,2],[1336,3,1336,4],[1336,5,1337,6],[1338,1,1338,3],[1338,4,1338,6],[1329,1,1329,3],[1329,4,1329,6],[1330,1,1330,6],[1331,1,1331,2],[1331,3,1331,6],[1332,1,1332,2],[1332,3,1332,6],[1321,1,1321,6],[1322,1,1322,2],[1322,3,1322,6],[1323,1,1323,2],[1323,3,1323,6],[1327,1,1328,1],[1327,2,1328,2],[1327,3,1327,4],[1327,5,1328,6],[1318,1,1319,1],[1318,2,1319,2],[1318,3,1318,4],[1318,5,1319,6],[1320,1,1320,3],[1320,4,1320,6],[1311,1,1311,3],[1311,4,1311,6],[1312,1,1312,6],[1313,1,1313,2],[1313,3,1313,6],[1314,1,1314,2],[1314,3,1314,6],[1303,1,1303,6],[1304,1,1304,2],[1304,3,1304,6],[1305,1,1305,2],[1305,3,1305,6],[1309,1,1310,1],[1309,2,1310,2],[1309,3,1309,4],[1309,5,1310,6],[1300,1,1301,1],[1300,2,1301,2],[1300,3,1300,4],[1300,5,1301,6],[1302,1,1302,3],[1302,4,1302,6],[1293,1,1293,3],[1293,4,1293,6],[1294,1,1294,6],[1295,1,1295,2],[1295,3,1295,6],[1296,1,1296,2],[1296,3,1296,6],[1285,1,1285,6],[1286,1,1286,2],[1286,3,1286,6],[1287,1,1287,2],[1287,3,1287,6],[1291,1,1292,1],[1291,2,1292,2],[1291,3,1291,4],[1291,5,1292,6],[1282,1,1283,1],[1282,2,1283,2],[1282,3,1282,4],[1282,5,1283,6],[1284,1,1284,3],[1284,4,1284,6],[1275,1,1275,3],[1275,4,1275,6],[1276,1,1276,6],[1277,1,1277,2],[1277,3,1277,6],[1278,1,1278,2],[1278,3,1278,6],[1267,1,1267,6],[1268,1,1268,2],[1268,3,1268,6],[1269,1,1269,2],[1269,3,1269,6],[1273,1,1274,1],[1273,2,1274,2],[1273,3,1273,4],[1273,5,1274,6],[1264,1,1265,1],[1264,2,1265,2],[1264,3,1264,4],[1264,5,1265,6],[1266,1,1266,3],[1266,4,1266,6],[1257,1,1257,3],[1257,4,1257,6],[1258,1,1258,6],[1259,1,1259,2],[1259,3,1259,6],[1260,1,1260,2],[1260,3,1260,6],[1249,1,1249,6],[1250,1,1250,2],[1250,3,1250,6],[1251,1,1251,2],[1251,3,1251,6],[1255,1,1256,1],[1255,2,1256,2],[1255,3,1255,4],[1255,5,1256,6],[1246,1,1247,1],[1246,2,1247,2],[1246,3,1246,4],[1246,5,1247,6],[1248,1,1248,3],[1248,4,1248,6],[1239,1,1239,3],[1239,4,1239,6],[1240,1,1240,6],[1241,1,1241,2],[1241,3,1241,6],[1242,1,1242,2],[1242,3,1242,6],[1231,1,1231,6],[1232,1,1232,2],[1232,3,1232,6],[1233,1,1233,2],[1233,3,1233,6],[1237,1,1238,1],[1237,2,1238,2],[1237,3,1237,4],[1237,5,1238,6],[1228,1,1229,1],[1228,2,1229,2],[1228,3,1228,4],[1228,5,1229,6],[1230,1,1230,3],[1230,4,1230,6],[1221,1,1221,3],[1221,4,1221,6],[1222,1,1222,6],[1223,1,1223,2],[1223,3,1223,6],[1224,1,1224,2],[1224,3,1224,6],[1213,1,1213,6],[1214,1,1214,2],[1214,3,1214,6],[1215,1,1215,2],[1215,3,1215,6],[1219,1,1220,1],[1219,2,1220,2],[1219,3,1219,4],[1219,5,1220,6],[1210,1,1211,1],[1210,2,1211,2],[1210,3,1210,4],[1210,5,1211,6],[1212,1,1212,3],[1212,4,1212,6],[1204,1,1204,3],[1204,4,1204,6],[1205,1,1205,6],[1206,1,1206,2],[1206,3,1206,6],[1206,7,1206,10],[1197,1,1197,6],[1198,1,1198,2],[1198,3,1198,6],[1198,7,1198,10],[1202,1,1203,1],[1202,2,1203,2],[1202,3,1202,4],[1202,5,1203,6],[1194,1,1195,1],[1194,2,1195,2],[1194,3,1194,4],[1194,5,1195,6],[1196,1,1196,3],[1196,4,1196,6],[1187,1,1187,3],[1187,4,1187,6],[1188,1,1188,6],[1189,1,1189,2],[1189,3,1189,6],[1190,1,1190,2],[1190,3,1190,6],[1179,1,1179,6],[1180,1,1180,2],[1180,3,1180,6],[1181,1,1181,2],[1181,3,1181,6],[1185,1,1186,1],[1185,2,1186,2],[1185,3,1185,4],[1185,5,1186,6],[1176,1,1177,1],[1176,2,1177,2],[1176,3,1176,4],[1176,5,1177,6],[1178,1,1178,3],[1178,4,1178,6],[1169,1,1169,3],[1169,4,1169,6],[1170,1,1170,6],[1171,1,1171,2],[1171,3,1171,6],[1172,1,1172,2],[1172,3,1172,6],[1161,1,1161,6],[1162,1,1162,2],[1162,3,1162,6],[1163,1,1163,2],[1163,3,1163,6],[1167,1,1168,1],[1167,2,1168,2],[1167,3,1167,4],[1167,5,1168,6],[1158,1,1159,1],[1158,2,1159,2],[1158,3,1158,4],[1158,5,1159,6],[1160,1,1160,3],[1160,4,1160,6],[1151,1,1151,3],[1151,4,1151,6],[1152,1,1152,6],[1153,1,1153,2],[1153,3,1153,6],[1154,1,1154,2],[1154,3,1154,6],[1143,1,1143,6],[1144,1,1144,2],[1144,3,1144,6],[1145,1,1145,2],[1145,3,1145,6],[1149,1,1150,1],[1149,2,1150,2],[1149,3,1149,4],[1149,5,1150,6],[1140,1,1141,1],[1140,2,1141,2],[1140,3,1140,4],[1140,5,1141,6],[1142,1,1142,3],[1142,4,1142,6],[1133,1,1133,3],[1133,4,1133,6],[1134,1,1134,6],[1135,1,1135,2],[1135,3,1135,6],[1136,1,1136,2],[1136,3,1136,6],[1125,1,1125,6],[1126,1,1126,2],[1126,3,1126,6],[1127,1,1127,2],[1127,3,1127,6],[1131,1,1132,1],[1131,2,1132,2],[1131,3,1131,4],[1131,5,1132,6],[1122,1,1123,1],[1122,2,1123,2],[1122,3,1122,4],[1122,5,1123,6],[1124,1,1124,3],[1124,4,1124,6],[1115,1,1115,3],[1115,4,1115,6],[1116,1,1116,6],[1117,1,1117,2],[1117,3,1117,6],[1118,1,1118,2],[1118,3,1118,6],[1107,1,1107,6],[1108,1,1108,2],[1108,3,1108,6],[1109,1,1109,2],[1109,3,1109,6],[1113,1,1114,1],[1113,2,1114,2],[1113,3,1113,4],[1113,5,1114,6],[1104,1,1105,1],[1104,2,1105,2],[1104,3,1104,4],[1104,5,1105,6],[1106,1,1106,3],[1106,4,1106,6],[1097,1,1097,3],[1097,4,1097,6],[1098,1,1098,6],[1099,1,1099,2],[1099,3,1099,6],[1100,1,1100,2],[1100,3,1100,6],[1089,1,1089,6],[1090,1,1090,2],[1090,3,1090,6],[1091,1,1091,2],[1091,3,1091,6],[1095,1,1096,1],[1095,2,1096,2],[1095,3,1095,4],[1095,5,1096,6],[1086,1,1087,1],[1086,2,1087,2],[1086,3,1086,4],[1086,5,1087,6],[1088,1,1088,3],[1088,4,1088,6],[1079,1,1079,3],[1079,4,1079,6],[1080,1,1080,6]],"merged_total":2310,"flags":["merged_cut"]}
[]
[]
[]
[null,null,null,null,null,null,null,null,null,"音楽ファイルの拡張子一覧",null,null,null,null,null,null,null,"Microsoft Office ファイル"]
[null,null,null,null,null,null,null,null,null,"取りあえず分かりづらかったらブラウザのページ内検索を使ってください。",null,null,null,null,null,null,null,"拡張子","ファイル形式","解説"]
[null,null,null,null,null,null,null,null,null,"あまり一般的でない形式(一部のMIDIシーケンスソフトなど)の拡張子も追加。",null,null,null,null,null,null,null,".doc","Word97-2003","Word97～2003のファイル形式。"]
[null,null,null,null,null,null,null,null,null,"*.asf",null,null,null,null,null,null,null,"（ﾄﾞｸ）"]
[null,null,null,null,null,null,null,null,null,"[ ActiveStreamingFormat ]",null,null,null,null,null,null,null,".docx","Word2007","Word2007の標準のファイル形式。セキュリティ向上のため、「マクロ」という特定の操作手順をプログラムとして自動化する機能を無効にしたファイル形式。（マクロ形式のコンピュータウィルスが多いため）"]
[null,null,null,null,null,null,null,null,null,"MicrosoftNetshowで使われるストリーミングファイルの形式。画像でも音声のみでも使えます",null,null,null,null,null,null,null,".docm","Word2007","Word2007のファイル形式。マクロを有効にしたファイル形式。"]
[null,"ＣＡＤ関係の拡張子",null,null,null,null,null,null,null,"*.asx",null,null,null,null,null,null,null,".xls","Excel97-2003","Excel97～2003のファイル形式。"]
[null,null,null,null,null,null,null,null,null,"ASFファイルのロケーターファイル",null,null,null,null,null,null,null,".xlsx","Excel2007","Excel2007の標準のファイル形式。セキュリティ向上のため、マクロを無効にしたファイル形式。"]
[null,null,"拡張子名","制定者",null,null,null,null,null,"ストリーミングするために必要",null,null,null,null,null,null,null,".xlsm","Excel2007","Excel2007のファイル形式。マクロを有効にしたファイル形式。"]
[null,null,null,"読み方","正式名称",null,null,null,null,"*.acd",null,null,null,null,null,null,null,".ppt","Power Point","Power Point97～2003のファイル形式。"]
[null,"ＭＩＭＥ",null,null,"解説ページ",null,null,null,null,"ACIDという作曲ソフトで使われる形式",null,null,null,null,null,null,null,null,"97-2003"]
[null,"内容",null,null,null,null,null,null,null,"*.au",null,null,null,null,null,null,null,".pptx","Power Point","Power Point2007の標準のファイル形式。セキュリティ向上のため、マクロを無効にしたファイル形式。"]
[null,"対応ソフト",null,"対応ソフトウェア",null,null,null,null,null,"[ NeXT/Sun(Java)File ]",null,null,null,null,null,null,null,null,2007]
[null,"プラグイン",null,"プラグイン",null,null,null,null,null,"NeXTおよびSunのコンピュータで使われます。さまざまなサウンドフォーマットをサポート",null,null,null,null,null,null,null,".pptm","Power Point","Power Point97～2003のファイル形式。マクロを有効にしたファイル形式。"]
[null,null,null,null,null,null,null,null,null,"*.avi",null,null,null,null,null,null,null,null,2007]
[null,null,null,null,null,null,null,null,null,"[ AVI ]",null,null,null,null,null,null,null,".mdb","Access97-2003","Access97～2003のデータベースファイル形式。"]
[null,null,".$$$","Ａｕｔｏ　Ｄｅｓｋ",null,null,null,null,null,"Windows標準のビデオファイルの形式",null,null,null,null,null,null,null,".accdb","Access2007","Access2007のデータベースファイル形式。"]
[null,null,null,"ダラースリー","(正式名称は不明)",null,null,null,null,"*.aif",null,null,null,null,null,null,null,"テキスト・ハイパーテキスト ファイル"]
[null,null,null,null,"だいおー's Home PageにはCAD関係の情報がそろっています。",null,null,null,null,"[ AudioIFF,AIFF ]",null,null,null,null,null,null,null,"拡張子","ファイル形式","解説"]
[null,"AutoCADの緊急時バックアップ用図面ファイルの拡張子",null,null,null,null,null,null,null,"Machintosh標準のサウンドファイルの形式でAIFF、AudioIFFなどと呼ばれます。内容的にはだいたいwavと同じ",null,null,null,null,null,null,null,".txt","テキスト形式","文字データだけのテキストファイル（プレーンテキスト）。 文字が使えるすべての環境で使える。"]
[null,"対応ソフト",null,"AutoCAD",null,null,null,null,null,"*.dig",null,null,null,null,null,null,null,".pdf","PDF形式","パソコンの機種やOS等の環境の影響をあまり受けないため、主にインターネット上で使用される文書ファイル。"]
[null,"プラグイン",null,"不明",null,null,null,null,null,"SoundDesignerという",null,null,null,null,null,null,null,null,"（ﾋﾟｰﾃﾞｨｰｴﾌ）"]
[null,"<--This Data Last Updated 2001/2/27-->",null,null,null,null,null,null,null,"編集ソフトで使われる形式",null,null,null,null,null,null,null,".csv","CSV形式","ひとつひとつのデータをカンマで区切ったテキストファイル。カンマで区切ると汎用性が高くなる。表計算ソフトやアプリケーションソフト間のデータ交換に多く使われる。"]
[null,null,null,null,null,null,null,null,null,"*.iff",null,null,null,null,null,null,null,null,"（ｼｰｴｽﾌﾞｲ）"]
[null,null,null,null,null,null,null,null,null,"[ AmigaSVX ]",null,null,null,null,null,null,null,".html／.htm","HTML形式","ハイパーテキストというウェブページ（ホームページ）のファイル形式。詳しくは、ウェブページの仕組み（1） で解説します。"]
[null,null,".0@@","キャダムシステム",null,null,null,null,null,"Amigaと言うコンピュータで使われているWAVと同じ様なタイプのファイル",null,null,null,null,null,null,null,".asp","HTML形式","電子商取引など、データベースと連動してデータをやり取りするような動的なウェブページのファイル形式。（アプリケーション サービス プロバイダのことではない）"]
[null,null,null,null,"(正式名称は不明)",null,null,null,null,"*.lso",null,null,null,null,null,null,null,".xml","XML形式","HTML形式の次世代形式。詳しくは、ウェブページの仕組み（2） で解説します。"]
[null,null,null,null,"だいおー's Home PageにはCAD関係の情報がそろっています。",null,null,null,null,"LOGICというMIDIシーケンスソフトで使われる形式",null,null,null,null,null,null,null,".css","スタイルシート","スタイルシートというウェブページのレイアウト表現の情報をまとめた雛形ファイル。HTMLファイルの装飾を指示する仕様。"]
[null,"MICRO CADAM HelixVer3.1のV3インデックス形式ファイル。基本的には隠しファイル。",null,null,null,null,null,null,null,"*.mid",null,null,null,null,null,null,null,"音声ファイル"]
[null,"対応ソフト",null,"MICRO CADAM Helix V5R1",null,null,null,null,null,"[ Musical Instrument Digital Interface ]",null,null,null,null,null,null,null,"拡張子","ファイル形式","解説"]
[null,"プラグイン",null,"不明",null,null,null,null,null,"MIDIファイルを扱います",null,null,null,null,null,null,null,".wav","WAVE形式","Windows標準の無圧縮音声形式。圧縮率が大変低いので音質の劣化がない（高音質）が、容量が大きい。"]
[null,"<--This Data Last Updated 2001/3/3-->",null,null,null,null,null,null,null,"*.midi",null,null,null,null,null,null,null,null,"（ｳｪｰﾌﾞ）"]
[null,null,null,null,null,null,null,null,null,"<上と同じ",null,null,null,null,null,null,null,".wma","WMA形式","Windows Media AudioというWindows標準の高圧縮音声形式。"]
[null,null,null,null,null,null,null,null,null,"*.mov",null,null,null,null,null,null,null,".mp3","MP3形式","最も普及している高圧縮音声形式。CD並の音質で、データ量を約10分の1（一律ではない）に圧縮できる。"]
[null,null,".1@@","キャダムシステム",null,null,null,null,null,"Apple社のQuickTimePlayerで動画を再生させるファイルです、",null,null,null,null,null,null,null,null,"（ｴﾑﾋﾟｰｽﾘｰ）"]
[null,null,null,null,"(正式名称は不明)",null,null,null,null,"MIDI形式やFLASH形式などいろいろあるようですが、Machintoshユーザー以外にはあんまり縁がないかな？",null,null,null,null,null,null,null,".ogg","Ogg Vorbis","MP3以上に高音質／高圧縮な音声圧縮ファイル。"]
[null,null,null,null,"だいおー's Home PageにはCAD関係の情報がそろっています。",null,null,null,null,"*.mp3",null,null,null,null,null,null,null,null,"（ｵｯｸﾞ ﾎﾞﾙﾋﾞｽ）"]
[null,"MICRO CADAM HelixVer4以降のV3インデックス形式ファイル。基本的には隠しファイル。",null,null,null,null,null,null,null,"[ MPEG? AudioLayer-3 ]",null,null,null,null,null,null,null,".m4a","AAC形式","MP3の次世代形式。MP3以上に高音質／高圧縮な音声圧縮ファイル。着うた・地上波デジタル放送等に使われている。ただし、拡張子は「m4a」のみではない。"]
[null,"対応ソフト",null,"MICRO CADAM Helix V5R1",null,null,null,null,null,"普通mp3と言ったらMPEG1のAudioLayer3をさします",null,null,null,null,null,null,null,"（ｴﾑﾌｫｰｴｰ）"]
[null,"プラグイン",null,"不明",null,null,null,null,null,"*.mpg",null,null,null,null,null,null,null,".cda","CD-DA形式","音楽CDの音声ファイル。エクスプローラ（フォルダ表示）でオーディオCDを開くと、この拡張子が表示されるが、収録されている音源へのショートカットファイルにすぎない。"]
[null,"<--This Data Last Updated 2001/3/3-->",null,null,null,null,null,null,null,"[ MovingPicturesExpertsGroup ]",null,null,null,null,null,null,null,"画像ファイル"]
[null,null,null,null,null,null,null,null,null,"MPEGファイルです。MP3をさす場合もます。 もとは動画としての形式",null,null,null,null,null,null,null,"拡張子","ファイル形式","解説"]
[null,null,null,null,null,null,null,null,null,"*.msf",null,null,null,null,null,null,null,".bmp","BMP形式","Windows標準の無圧縮画像形式。1677万色のフルカラー対応で高画質だが、容量が大きい。（フルカラーについては、出力装置とは（1） で詳しく解説します）"]
[null,null,".adc","率然エレクトロニクス",null,null,null,null,null,"Windowsのシーケンスソフト。MusicStudioStandartで使われる形式",null,null,null,null,null,null,null,null,"（ﾋﾞｯﾄﾏｯﾌﾟ）"]
[null,null,null,"エイビーシー","(正式名称は不明)",null,null,null,null,"*.qt",null,null,null,null,null,null,null,".gif","GIF形式","256色まで対応の画像ファイル形式。写真には不向き。画像の透明化や、アニメーション（動き）を設定できる。主にイラストやウェブ素材として使われる。"]
[null,null,null,null,"だいおー's Home PageにはCAD関係の情報がそろっています。",null,null,null,null,"[ QuickTime ]",null,null,null,null,null,null,null,null,"（ｼﾞﾌ）"]
[null,"率然エレクトロニクスのCADソフトAD-CADで使われる図面ファイル",null,null,null,null,null,null,null,"QuickTimeのファイル",null,null,null,null,null,null,null,".jpeg／.jpg","JPEG形式","フルカラー対応の画像形式。デジタルカメラの画像は、ほとんどこの形式。"]
[null,"対応ソフト",null,"AD-CAD",null,null,null,null,null,"*.ra",null,null,null,null,null,null,null,null,"（ｼﾞｪｲﾍﾟｸﾞ）"]
[null,"プラグイン",null,"不明",null,null,null,null,null,"[ RealAudioClip ]",null,null,null,null,null,null,null,".tiff／.tif","TIFF形式","主にスキャナの画像に使われる。解像度（画質の細かさを示す度合）を自由に設定できる。"]
[null,"<--This Data Last Updated 2001/3/4-->",null,null,null,null,null,null,null,"RealMediaで使う音声ファイルです。 RealPlayerG2では無くなりました（聞くことは可能)",null,null,null,null,null,null,null,null,"（ﾃｨﾌ）"]
[null,null,null,null,null,null,null,null,null,"*.ram",null,null,null,null,null,null,null,".png","PNG形式","フルカラー対応の画像形式。ウェブでの使用を目的にGIFの次世代形式として開発されたが、あまり普及していない。"]
[null,null,null,null,null,null,null,null,null,"[ RealPlayerFile ]",null,null,null,null,null,null,null,null,"（ﾋﾟﾝｸﾞ）"]
[null,null,".adx","生活産業研究所",null,null,null,null,null,"RealPlayerを使ってストリーミング再生をさせるためのファイル",null,null,null,null,null,null,null,"動画ファイル"]
[null,null,null,"エイディエックス","(正式名称は不明)",null,null,null,null,"*.rm",null,null,null,null,null,null,null,"拡張子","ファイル形式","解説"]
[null,null,null,null,"だいおー's Home PageにはCAD関係の情報がそろっています。",null,null,null,null,"[ RealMediaFile ]",null,null,null,null,null,null,null,".wmv","WMV形式","Windows Media VideoというWindows標準の高圧縮動画形式。ストリーミング再生（ダウンロードしながら再生）可能。"]
[null,"生活産業研究所の「統合型 日照・日影・斜線・逆日影計算システム」で使われる日影データのファイル形式",null,null,null,null,null,null,null,"RAの動画も扱えるファイルです。 RealPlayerG2では音声だけでもこれ",null,null,null,null,null,null,null,".avi","AVI形式","マイクロソフトがアップル社のQuick Timeに対抗するために開発。再生するには適切なコーデック（データを小さく圧縮し、元に戻すソフト）が必要。"]
[null,"対応ソフト",null,"ADSシリーズ",null,null,null,null,null,"*.rpm",null,null,null,null,null,null,null,null,"（ｴｰﾌﾞｲｱｲ）"]
[null,"プラグイン",null,"不明",null,null,null,null,null,"[ RealMediaFile ]",null,null,null,null,null,null,null,".mpeg／.mpg","MPEG1形式","MPEGには、「MPEG1」「MPEG2」「MPEG4」の3つの規格がある。MPEG1は、ビデオCD用の基準で低容量、MPEG2は、ハイビジョン放送やDVDビデオなどの基準で高画質、MPEG4は、ストリーミングビデオ（インターネット配信）や携帯電話などで使われている規格。"]
[null,"<--This Data Last Updated 2001/3/4-->",null,null,null,null,null,null,null,"Real Playerのプラグインを呼び出すファイル。 基本的なテキスト内容はramファイルとまったく同じ",null,null,null,null,null,null,null,null,"（ｴﾑﾍﾟｸﾞ）"]
[null,null,null,null,null,null,null,null,null,"*.sd",null,null,null,null,null,null,null,".vob","MPEG2形式","MPEG2形式で圧縮された動画ファイル。DVDビデオなど高画質の映像ファイルに使われる。"]
[null,null,null,null,null,null,null,null,null,"[ SoundDiginer1 ]",null,null,null,null,null,null,null,".ogm","Ogg Media","Oggの仕様を元に開発された動画形式。Ogg VorbisやAACを動画の音声部分に使える。"]
[null,null,".ajf","アークジャパン株式会社",null,null,null,null,null,"SoundDesignerという編集ソフトで使われる形式",null,null,null,null,null,null,null,".mov","MOV形式","アップル社によって開発された動画や音声の記録、再生ソフトであるQuick Timeのビデオファイル形式。"]
[null,null,null,"エージェイエフ","(正式名称は不明)",null,null,null,null,"*.sdn",null,null,null,null,null,null,null,".rm","Real Video","Real Networks社の開発したReal Mediaで圧縮された動画。主にストリーミングビデオなどの目的で使われる。"]
[null,null,null,null,"http://www.arcjapan.co.jp",null,null,null,null,"[ NeXT/Sun(Java)File ]",null,null,null,null,null,null,null,".divx","DIVX形式","DivXというコーデックを用いて圧縮された動画ファイル。"]
[null,"アークレンダーの標準フォーマット。３次元の図形情報とアニメーションなどの４Ｄ情報からなる。アークレンダーを利用する各種の３Ｄ-ＣＡＤから出力できる。",null,null,null,null,null,null,null,"NeXTおよびSunのコンピュータで使われます。 JAVAでの利用や圧縮した利用もあるみたいです。AUとの違いは…なんでしょ？",null,null,null,null,null,null,null,null,"（ﾃﾞｲﾋﾞｯｸｽ）"]
[null,"対応ソフト",null,"アークレンダーならびにアークレンダーを利用する各種の３Ｄ-ＣＡD",null,null,null,null,null,"*.svx",null,null,null,null,null,null,null,"ファイルアーカイブ（圧縮ファイル）"]
[null,"プラグイン",null,"不明",null,null,null,null,null,"[ AmigaSVX ]",null,null,null,null,null,null,null,"拡張子","ファイル形式","解説"]
[null,"<--This Data Last Updated 1999/5/6-->",null,null,null,null,null,null,null,"Amigaと言うコンピュータで使われている WAVと同じ様なタイプのファイルです",null,null,null,null,null,null,null,".lzh","LZH形式","日本で多く使われる圧縮ファイル形式。（圧縮については、圧縮／解凍とは で詳しく解説します）"]
[null,null,null,null,null,null,null,null,null,"*.vqe",null,null,null,null,null,null,null,null,"（ｴﾙｾﾞｯﾄｴｲﾁ）"]
[null,null,null,null,null,null,null,null,null,"[ SoundVQ File EnbedFile ]",null,null,null,null,null,null,null,".zip","ZIP形式","世界標準の圧縮ファイル形式。パスワードによる保護が可能。"]
[null,null,".asm","不明",null,null,null,null,null,"SoundVQ、TwinVQプレーヤを埋め込む場合に使用。 テキスト内容はvqlと変わりません",null,null,null,null,null,null,null,null,"（ｼﾞｯﾌﾟ）"]
[null,null,null,"エーエスエム","(正式名称は不明)",null,null,null,null,"*.vqf",null,null,null,null,null,null,null,"プログラムファイル・その他のファイル"]
[null,null,null,null,"だいおー's Home PageにはCAD関係の情報がそろっています。",null,null,null,null,"[ VQ File ]",null,null,null,null,null,null,null,"拡張子","ファイル形式","解説"]
[null,"IBMの3次元CADソフト「CATIA」・日本パラメトリック・テクノロジー株式会社の機械系ハイエンド3D CAD「Pro/ENGINEER」・UGSのCADソフト「Solid Edge」で使われるファイル形式。３つのソフトの形式が同形式なのかは現時点では不明。",null,null,null,null,null,null,null,"SoundVQ、TwinVQプレーヤで聞けるファイル",null,null,null,null,null,null,null,".exe","プログラム","実行可能なプログラムが収められたアプリケーションソフト等のファイル。この拡張子のウィルスが多い。"]
[null,"対応ソフト",null,"CATIA・Pro/ENGINEER・Solid Edge",null,null,null,null,null,"*.vql",null,null,null,null,null,null,null,"（ｴｸﾞｾﾞ）","ファイル"]
[null,"プラグイン",null,"不明",null,null,null,null,null,"[ SoundVQ LocaterFile ]",null,null,null,null,null,null,null,".com","プログラム","実行可能なプログラムが収められたファイル。サイズが64KB以内のプログラムに使われる。"]
[null,"<--This Data Last Updated 2001/3/4-->",null,null,null,null,null,null,null,"vqfをストリーミング再生させるファイル",null,null,null,null,null,null,null,"（ｺﾑ）","ファイル"]
[null,null,null,null,null,null,null,null,null,"*.wav",null,null,null,null,null,null,null,".bat","プログラム","複数の処理を順に列挙して登録（記述）し、その一連の処理を自動的に実行させるためのファイル。"]
[null,null,null,null,null,null,null,null,null,"[ Microsoft WAVE File ]",null,null,null,null,null,null,null,"（ﾊﾞｯﾁ）","ファイル"]
[null,null,".atc","不明",null,null,null,null,null,"Windows標準のサウンドファイルです。 多くのフォーマットをサポートしています",null,null,null,null,null,null,null,".dll","DLLファイル","様々なアプリケーションソフトが共通して利用できるプログラムを部品化して保存した汎用性の高いファイル。（各アプリケーションで同じプログラムを使用するにもかかわらず、別々に登録しておくのは効率が悪いため）"]
[null,null,null,"エイティシー","(正式名称は不明)",null,null,null,null,"*.wma",null,null,null,null,null,null,null,null,"（ﾃﾞｨｰｴﾙｴﾙ）"]
[null,null,null,null,"だいおー's Home PageにはCAD関係の情報がそろっています。",null,null,null,null,"WindowsMediaのファイル形式。ASFとの違いは拡張子のみ",null,null,null,null,null,null,null,".ini","テキスト形式","OSやアプリケーションソフトの初期設定を記録したファイル。"]
[null,"CADソフト「Archi-TREND-11」の図面ファイル。",null,null,null,null,null,null,null,"*.wrk",null,null,null,null,null,null,null,"（ｲﾆ）"]
[null,"対応ソフト",null,"Archi-TREND-11",null,null,null,null,null,"WindowsのMIDIシーケンスソフト、Cakewalkで使われるファイル形式"]
[null,"プラグイン",null,"不明",null,null,null,null,null,null,null,null,null,null,null,null,null,"画像・動画・音声ファイルについては、その他 で詳しく解説しています。"]
[null,"<--This Data Last Updated 2001/3/4-->"]
[]
[]
[null,null,".bdt","（有）プライムソフト"]
[null,null,null,"ビーディティ","(正式名称は不明)"]
[null,null,null,null,"だいおー's Home PageにはCAD関係の情報がそろっています。"]
[null,"（有）プライムソフトのCADソフトBeDrawで使われる図面ファイルの形式。"]
[null,"対応ソフト",null,"BeDraw（シェアウェア）"]
[null,"プラグイン",null,"不明"]
[null,"<--This Data Last Updated 2001/3/4-->"]
[]
[]
[null,null,".bed","（有）プライムソフト"]
[null,null,null,"ビーイーディ","(正式名称は不明)"]
[null,null,null,null,"だいおー's Home PageにはCAD関係の情報がそろっています。"]
[null,"（有）プライムソフトのCADソフトBeDrawで使われる図面ファイルの形式。"]
[null,"対応ソフト",null,"BeDraw（シェアウェア）"]
[null,"プラグイン",null,"不明"]
[null,"<--This Data Last Updated 2001/3/4-->"]
[]
[]
[null,null,".bfo","川田テクノシステム株式会社"]
[null,null,null,"ビーエフオー","(正式名称は不明)"]
[null,null,null,null,"だいおー's Home PageにはCAD関係の情報がそろっています。"]
[null,"土木系汎用CAD「V-nas」で使われる図面ファイル形式"]
[null,"対応ソフト",null,"V-nas"]
[null,"プラグイン",null,"不明"]
[null,"<--This Data Last Updated 2001/3/4-->"]
[]
[]
[null,null,".blc","富士通"]
[null,null,null,"ビーエルシー","(正式名称は不明)"]
[null,null,null,null,"富士通 Personal BLD Rel.4.0"]
[null,"富士通の建築CAD「Personal　BLD」で使われる図面ファイル形式"]
[null,"対応ソフト",null,"Personal BLD R4.0以降"]
[null,"プラグイン",null,"富士通からPersonal BLD Viewer Plug-Inというプラグインが配布されている。"]
[null,"<--This Data Last Updated 2001/3/4-->"]
[]
[]
[null,null,".bld","富士通"]
[null,null,null,"ビーエルディ","(正式名称は不明)"]
[null,null,null,null,"だいおー's Home PageにはCAD関係の情報がそろっています。"]
[null,"富士通の建築CAD「Personal　BLD」で使われる図面ファイル形式"]
[null,"対応ソフト",null,"Personal BLD R4.0以降"]
[null,"プラグイン",null,"富士通からPersonal BLD Viewer Plug-Inというプラグインが配布されている。"]
[null,"<--This Data Last Updated 2001/3/4-->"]
[]
[]
[null,null,".blp","富士通"]
[null,null,null,"ビーエルピー","(正式名称は不明)"]
[null,null,null,null,"だいおー's Home PageにはCAD関係の情報がそろっています。"]
[null,"富士通の建築CAD「Personal　BLD」で使われる部品データの図形ファイル形式"]
[null,"対応ソフト",null,"Personal BLD R4.0以降"]
[null,"プラグイン",null,"富士通からPersonal BLD Viewer Plug-Inというプラグインが配布されている。"]
[null,"<--This Data Last Updated 2001/3/4-->"]
[]
[]
[null,null,".bmi","不明"]
[null,null,null,"ビーエムアイ","(正式名称は不明)"]
[null,null,null,null,"だいおー's Home PageにはCAD関係の情報がそろっています。"]
[null,"CADソフト「Batch Model Interface」で使われる図面ファイル"]
[null,"対応ソフト",null,"Batch Model Interface"]
[null,"プラグイン",null,"不明"]
[null,"<--This Data Last Updated 2001/3/4-->"]
[]
[]
[null,null,".bpn","グラフィソフトジャパン"]
[null,null,null,"ビーピーエヌ","(正式名称は不明)"]
[null,null,null,null,"だいおー's Home PageにはCAD関係の情報がそろっています。"]
[null,"建築CADソフト「GRAPHSOFT」（欧米では「AichiCAD」）で使われる図面ファイル形式"]
[null,"対応ソフト",null,"GRAPHISOFT "]
[null,"プラグイン",null,"不明"]
[null,"<--This Data Last Updated 2001/3/4-->"]
[]
[]
[null,null,".bvf","(制定者不明)"]
[null,null,null,"ビーブィエフ","(正式名称は不明)"]
[null,null,null,null,"拡張子辞典への書きこみ"]
[null,"ＣＡＤソフト「おもしろＪＥＲＲＹ」で使われるファイル。"]
[null,"対応ソフト",null,"おもしろＪＥＲＲY"]
[null,"プラグイン",null,"なし"]
[null,"<--This Data Last Updated 2001/3/10-->"]
[]
[]
[null,null,".bvf","(制定者不明)"]
[null,null,null,"ビーブイエフ","(正式名称は不明)"]
[null,null,null,null,"だいおー's Home PageにはCAD関係の情報がそろっています。"]
[null,"ＣＡＤソフト「BV_CAD-LT」使われる図面ファイル"]
[null,"対応ソフト",null,"「BV CAD/LT」"]
[null,"プラグイン",null,"不明"]
[null,"<--This Data Last Updated 2001/3/4-->"]
[]
[]
[null,null,".c2d","株式会社ブレインストーム"]
[null,null,null,"シーツーディ","(正式名称は不明)"]
[null,null,null,null,"だいおー's Home PageにはCAD関係の情報がそろっています。"]
[null,"ＣＡＤソフトオフェリアで使われる図面ファイル。"]
[null,"対応ソフト",null,"オフェリア"]
[null,"プラグイン",null,"不明"]
[null,"<--This Data Last Updated 2001/3/4-->"]
[]
[]
[null,null,".c3","アイフォー"]
[null,null,null,"シーサン","(正式名称は不明)"]
[null,null,null,null,"だいおー's Home PageにはCAD関係の情報がそろっています。"]
[null,"アイフォーのパーソナルCADソフト「CANDY3」の図面データにつけられる拡張子。"]
[null,"対応ソフト",null,"CANDY3以降・CANDY8"]
[null,"プラグイン",null,"不明"]
[null,"<--This Data Last Updated 2001/3/4-->"]
[]
[]
[null,null,".c4","アイフォー"]
[null,null,null,"シーヨン","(正式名称は不明)"]
[null,null,null,null,"だいおー's Home PageにはCAD関係の情報がそろっています。"]
[null,"アイフォーのパーソナルCADソフト「CANDY4」の図面データにつけられる拡張子。"]
[null,"対応ソフト",null,"CANDY4以降・CANDY8"]
[null,"プラグイン",null,"不明"]
[null,"<--This Data Last Updated 2001/3/4-->"]
[]
[]
[null,null,".c5","アイフォー"]
[null,null,null,"シーゴ","(正式名称は不明)"]
[null,null,null,null,"だいおー's Home PageにはCAD関係の情報がそろっています。"]
[null,"アイフォーのパーソナルCADソフト「CANDY5」の図面データにつけられる拡張子。"]
[null,"対応ソフト",null,"CANDY5以降・CANDY8"]
[null,"プラグイン",null,"不明"]
[null,"<--This Data Last Updated 2001/3/4-->"]
[]
[]
[null,null,".c6","アイフォー"]
[null,null,null,"シーロク","(正式名称は不明)"]
[null,null,null,null,"だいおー's Home PageにはCAD関係の情報がそろっています。"]
[null,"アイフォーのパーソナルCADソフト「CANDY6」の図面データにつけられる拡張子。"]
[null,"対応ソフト",null,"CANDY6以降・CANDY8"]
[null,"プラグイン",null,"不明"]
[null,"<--This Data Last Updated 2001/3/4-->"]
[]
[]
[null,null,".c7","アイフォー"]
[null,null,null,"シーロク","(正式名称は不明)"]
[null,null,null,null,"だいおー's Home PageにはCAD関係の情報がそろっています。"]
[null,"アイフォーのパーソナルCADソフト「CANDY7」の図面データにつけられる拡張子。"]
[null,"対応ソフト",null,"CANDY7以降・CANDY8"]
[null,"プラグイン",null,"不明"]
[null,"<--This Data Last Updated 2001/3/4-->"]
[]
[]
[null,null,".cad","日本ＳＤＲＣ"]
[null,null,null,"キャド","(正式名称は不明)"]
[null,null,null,null,"だいおー's Home PageにはCAD関係の情報がそろっています。"]
[null,"CAD/CAMソフトウェアの「I-DEAS」の図面ファイル"]
[null,"対応ソフト",null,"プラグイン",null,null,null,"不明"]
[null,"<--This Data Last Updated 2001/3/4-->"]
[]
[]
[null,null,".cad","富士通愛媛情報システムズ・四電工"]
[null,null,null,"キャド","(正式名称は不明)"]
[null,null,null,null,"だいおー's Home PageにはCAD関係の情報がそろっています。"]
[null,"設備CAD「CADEWA」で使われる図面ファイル"]
[null,"対応ソフト",null,"CADEWA(四電工）"]
[null,"プラグイン",null,"不明"]
[null,"<--This Data Last Updated 2001/3/4-->"]
[]
[]
[]
[]
[null,null,".cad","2次元工房"]
[null,null,null,"キャド","(正式名称は不明)"]
[null,null,null,null,"だいおー's Home PageにはCAD関係の情報がそろっています。"]
[null,"2次元工房の「超簡単CAD」で使われる図面ファイル形式"]
[null,"対応ソフト",null,"超簡単CAD"]
[null,"プラグイン",null,"不明"]
[null,"<--This Data Last Updated 2001/3/4-->"]
[]
[]
[null,null,".cad","倉敷機械"]
[null,null,null,"キャド","(正式名称は不明)"]
[null,null,null,null,"だいおー's Home PageにはCAD関係の情報がそろっています。"]
[null,"倉敷機械の3次元CAD/CAM「MYPAC SUPER CAM」で使われるファイル形式。"]
[null,"対応ソフト",null,"「MYPAC SUPER CAM」"]
[null,"プラグイン",null,"不明"]
[null,"<--This Data Last Updated 2001/3/4-->"]
[]
[]
[null,null,".cda","デザイン・オートメーション株式会社"]
[null,null,null,"シーディエイ","(正式名称は不明)"]
[null,null,null,null,"だいおー's Home PageにはCAD関係の情報がそろっています。"]
[null,"デザイン・オートメーション株式会社の設備系ＣＡＤシステム「ＣＡＤＣＩＴＹ」の図面データファイル"]
[null,"対応ソフト",null,"CADCity"]
[null,"プラグイン",null,"不明"]
[null,"<--This Data Last Updated 2001/3/4-->"]
[]
[]
[null,null,".cel","AutoDesk"]
[null,null,null,"シーイーエル","Animator CELまたはAnimation Cel"]
[null,null,null,null,"拡張子辞典への書きこみ・拡張子辞典への書きこみ"]
[null,"ＡｕｔｏＤｅｓｋ社による、Animator Cel/Animation Cel Fileの略らしい。"]
[null,"対応ソフト"]
[null,"プラグイン",null,"不明"]
[null,"<--This Data Last Updated 1999/1/5-->"]
[]
[]
[null,null,".cpj","インフォマテックス"]
[null,null,null,"シーピージェイ","(正式名称は不明)"]
[null,null,null,null,"だいおー's Home PageにはCAD関係の情報がそろっています。"]
[null,"インフォマテックス社の汎用グループウエアCAD「MicroGDS」で使われる図面ファイル形式。"]
[null,"対応ソフト",null,"MicroGDS Professional"]
[null,"プラグイン",null,"不明"]
[null,"<--This Data Last Updated 2001/3/4-->"]
[]
[]
[null,null,".cvs","日本ポラロイド"]
[null,null,null,"シーブィエス","(正式名称は不明)"]
[null,null,null,null,"だいおー's Home PageにはCAD関係の情報がそろっています。"]
[null,"日本ポラロイド社のCanvas3.5で書かれた画像ファイル。"]
[null,"対応ソフト",null,"Canvas 3.5"]
[null,"プラグイン",null,"不明"]
[null,"<--This Data Last Updated 2001/3/4-->"]
[]
[]
[null,null,".cw","マックス"]
[null,null,null,"シーダブリュ","(正式名称は不明)"]
[null,null,null,null,"だいおー's Home PageにはCAD関係の情報がそろっています。"]
[null,"マックスのＣＡＤソフト「CAD WING for Windows」の図面ファイル"]
[null,"対応ソフト",null,"CADWING for Windows"]
[null,"プラグイン",null,"不明"]
[null,"<--This Data Last Updated 2001/3/4-->"]
[]
[]
[null,null,".cwz","生活産業研究所"]
[null,null,null,"シーダブリューゼット","(正式名称は不明)"]
[null,null,null,null,"だいおー's Home PageにはCAD関係の情報がそろっています。"]
[null,"生活産業研究所の「統合型 日照・日影・斜線・逆日影計算システム」で使われる日影データのファイル形式"]
[null,"対応ソフト",null,"ADSシリーズ"]
[null,"プラグイン",null,"不明"]
[null,"<--This Data Last Updated 2001/3/4-->"]
[]
[]
[null,null,".d20","三菱事務機械"]
[null,null,null,"デイニジュウ","(正式名称は不明)"]
[null,null,null,null,"だいおー's Home PageにはCAD関係の情報がそろっています。"]
[null,"三菱事務機械のCADソフト「CADEAN NT V5.0」で使われる図面ファイル"]
[null,"対応ソフト",null,"CADEAN NT V5.0"]
[null,"プラグイン",null,"不明"]
[null,"<--This Data Last Updated 2001/3/4-->"]
[]
[]
[null,null,".d3d","米国MetaCreations社"]
[null,null,null,"デイサンディ","(正式名称は不明)"]
[null,null,null,null,"だいおー's Home PageにはCAD関係の情報がそろっています。"]
[null,"３DCGソフト「Ray Dream 3」の図面ファイル形式"]
[null,"対応ソフト",null,"Ray Dream Studio 5"]
[null,"プラグイン",null,"不明"]
[null,"<--This Data Last Updated 2001/3/4-->"]
[]
[]
[null,null,".dat","アンドール"]
[null,null,null,"ダット、ディーエーティー","(正式名称は不明)"]
[null,null,null,null,"だいおー's Home PageにはCAD関係の情報がそろっています。"]
[null,"アンドール社のCADソフト「CADSUPER JX」で使われる図面ファイル形式"]
[null,"対応ソフト",null,"CADSUPER FX"]
[null,"プラグイン",null,"不明"]
[null,"<--This Data Last Updated 2001/3/4-->"]
[]
[]
[null,null,".dat","マックス"]
[null,null,null,"ダット、ディーエーティー","(正式名称は不明)"]
[null,null,null,null,"だいおー's Home PageにはCAD関係の情報がそろっています。"]
[null,"マックスのＣＡＤソフト「CAD WING for Windows」の図面ファイル"]
[null,"対応ソフト",null,"CADWING for Windows"]
[null,"プラグイン",null,"不明"]
[null,"<--This Data Last Updated 2001/3/4-->"]
[]
[]
[null,null,".db","(制定者不明)"]
[null,null,null,"ディービー","(正式名称は不明)"]
[null,null,null,null,"だいおー's Home PageにはCAD関係の情報がそろっています。"]
[null,"ＣＡＤソフト「U/KIT(EG/KIT)で使われる図面ファイル"]
[null,"対応ソフト",null,"U/KIT(EG/KIT)図面ファイル"]
[null,"プラグイン",null,"不明"]
[null,"<--This Data Last Updated 2001/3/4-->"]
[]
[]
[null,null,".db","（株）フソウシステム研究所"]
[null,null,null,"ディービー","(正式名称は不明)"]
[null,null,null,null,"だいおー's Home PageにはCAD関係の情報がそろっています。"]
[null,"（株）フソウシステム研究所社製建築設備CADの図面ファイル"]
[null,"対応ソフト",null,"U/KIT・EG/KITシリーズ"]
[null,"プラグイン",null,"不明"]
[null,"<--This Data Last Updated 2001/3/4-->"]
[]
[]
[null,null,".db","フソウシステム研究所"]
[null,null,null,"デイビー","(正式名称は不明)"]
[null,null,null,null,"だいおー's Home PageにはCAD関係の情報がそろっています。"]
[null,"フソウシステム研究所のCAD「U/KIT(EG/KIT)」の図面ファイル。"]
[null,"対応ソフト",null,"U/KIT(EG/KIT)"]
[null,"プラグイン",null,"不明"]
[null,"<--This Data Last Updated 2001/3/4-->"]
[]
[]
[null,null,".dc","エリント"]
[null,null,null,"デイシー","(正式名称は不明)"]
[null,null,null,null,"だいおー's Home PageにはCAD関係の情報がそろっています。"]
[null,"「DesignCAD 2D/３D」のVer9.0以降でつかわれる図面ファイル形式"]
[null,"対応ソフト",null,"DesignCAD 2D/３D"]
[null,"プラグイン",null,"不明"]
[null,"<--This Data Last Updated 2001/3/4-->"]
[]
[]
[null,null,".dc2","エリント"]
[null,null,null,"ディシーツー","(正式名称は不明)"]
[null,null,null,null,"だいおー's Home PageにはCAD関係の情報がそろっています。"]
[null,"「DesignCAD 2D」でつかわれる図面ファイル形式。２D図面をアスキー形式で保存したもの。"]
[null,"対応ソフト",null,"DesignCAD 2D/３D"]
[null,"プラグイン",null,"不明"]
[null,"<--This Data Last Updated 2001/3/4-->"]
[]
[]
[null,null,".dc2","株式会社ダイナウェア"]
[null,null,null,"ディシーツー","(正式名称は不明)"]
[null,null,null,null,"だいおー's Home PageにはCAD関係の情報がそろっています。"]
[null,"ダイナウェア社のWindows対応 2次元汎用CADソフト「DynaCAD２」で使われるファイル形式。"]
[null,"対応ソフト",null,"DynaCAD4またはオフェリア"]
[null,"プラグイン",null,"不明"]
[null,"<--This Data Last Updated 2001/3/4-->"]
[]
[]
[null,null,".dc3","株式会社ダイナウェア"]
[null,null,null,"ディーシースリー","DynaCAD3"]
[null,null,null,null,"Dyna CADデータ互換"]
[null,"ダイナウェア社のWindows対応 2次元汎用CADソフト「DynaCAD3」で使われるファイル形式。"]
[null,"対応ソフト",null,"DynaCAD4またはオフェリア"]
[null,"プラグイン",null,"不明"]
[null,"<--This Data Last Updated 2001/2/18-->"]
[]
[]
[null,null,".dc3","エリント"]
[null,null,null,"ディシースリー","(正式名称は不明)"]
[null,null,null,null,"だいおー's Home PageにはCAD関係の情報がそろっています。"]
[null,"「DesignCAD ３D」でつかわれる図面ファイル形式。３D図面をアスキー形式で保存したもの。"]
[null,"対応ソフト",null,"DesignCAD 2D/３D"]
[null,"プラグイン",null,"不明"]
[null,"<--This Data Last Updated 2001/3/4-->"]
[]
[]
[null,null,".dc4","株式会社ダイナウェア"]
[null,null,null,"ディシーフォー","(正式名称は不明)"]
[null,null,null,null,"だいおー's Home PageにはCAD関係の情報がそろっています。"]
[null,"DynaCAD2における倍精度版の図面ファイル"]
[null,"対応ソフト",null,"DynaCAD4"]
[null,"プラグイン",null,"不明"]
[null,"<--This Data Last Updated 2001/3/4-->"]
[]
[]
[null,null,".dcc","（株）ダイテック"]
[null,null,null,"ディシーシー","(正式名称は不明)"]
[null,null,null,null,"（株）ダイテック"]
[null,"設備ＣＡＤ　ＣＡＤＷＥＬＬ　ＣＡＰＥで使用される図面ファイル"]
[null,"対応ソフト",null,"ＣＡＰＥ以外にＡＲＣＤＲＥＷ２０００"]
[null,"プラグイン",null,"不明"]
[null,"<--This Data Last Updated 2001/2/9-->"]
[]
[]
[null,null,".dcw","株式会社ダイナウェア"]
[null,null,null,"ディシーダブリュー","(正式名称は不明)"]
[null,null,null,null,"Dyna CADデータ互換"]
[null,"ダイナウェア社のWindows対応 2次元汎用CADソフト「DynaCAD４」で使われるファイル形式。"]
[null,"対応ソフト",null,"DynaCAD4またはオフェリア"]
[null,"プラグイン",null,"不明"]
[null,"<--This Data Last Updated 2001/2/17-->"]
[]
[]
[null,null,".ddf","(制定者不明)"]
[null,null,null,"ディディエフ","(正式名称は不明)"]
[null,null,null,null,"拡張子辞典への書きこみ"]
[null,"「製図道具plus」あるいは「〃photo」というCADで使われている拡張子。"]
[null,"対応ソフト",null,"製図道具plus、〃photo"]
[null,"プラグイン",null,"不明"]
[null,"<--This Data Last Updated 2001/1/24-->"]
[]
[]
[null,null,".ddw","日立製作所"]
[null,null,null,"ディディダブリュー","(正式名称は不明)"]
[null,null,null,null,"拡張子辞典への書きこみ"]
[null,"日立のCADソフト「ACROVA　GMM」や「ＤＲＡＷＭＡＮ」の図面ファイル形式。"]
[null,"対応ソフト",null,"ACROVA GMM"]
[null,"<--This Data Last Updated 2004/12/15-->"]
[]
[]
[null,null,".dft","ユニグラフィックス・ソリューションズ・ジャパン"]
[null,null,null,"ディエフティ","(正式名称は不明)"]
[null,null,null,null,"だいおー's Home PageにはCAD関係の情報がそろっています。"]
[null,"UGSのCADソフト「Solid Edge」で使われるファイル形式。"]
[null,"対応ソフト",null,"Solid Edge"]
[null,"プラグイン",null,"不明"]
[null,"<--This Data Last Updated 2001/3/4-->"]
[]
[]
[null,null,".dgn","Bentley社"]
[null,null,null,"ディージーエヌ","design"]
[null,null,null,null,"MicroStation/J FAQ"]
[null,"Bentley社の汎用CAD、マイクロステーションで作成されるデザインファイルの拡張子。バイナリ。"]
[null,"対応ソフト",null,"MicroStationSE， MicroStation J"]
[null,"プラグイン",null,"不明"]
[null,"<--This Data Last Updated 2000/7/25-->"]
[]
[]
[null,null,".dmf","ユニグラフィックス・ソリューションズ・ジャパン"]
[null,null,null,"ディエムエフ","(正式名称は不明)"]
[null,null,null,null,"だいおー's Home PageにはCAD関係の情報がそろっています。"]
[null,"UGSの統合CAD・CAMシステム「Unigraphics」で使われるファイル形式。"]
[null,"対応ソフト",null,"Unigraphics"]
[null,"プラグイン",null,"不明"]
[null,"<--This Data Last Updated 2001/2/27-->"]
[]
[]
[null,null,".dmf","株式会社オーエスケイ"]
[null,null,null,"ディエムエフ","(正式名称は不明)"]
[null,null,null,null,"だいおー's Home PageにはCAD関係の情報がそろっています。"]
[null,"統合型2次元汎用CAD「EXPERT-CAD」の図面ファイル"]
[null,"対応ソフト",null,"プラグイン",null,null,null,"不明"]
[null,"<--This Data Last Updated 2001/3/3-->"]
[]
[]
[null,null,".dpsg","フォーラムエイト"]
[null,null,null,"ディピーエスジー","(正式名称は不明)"]
[null,null,null,null,"だいおー's Home PageにはCAD関係の情報がそろっています。"]
[null,"UC-CAD 図面ファイル"]
[null,"対応ソフト",null,"UC-CAD"]
[null,"プラグイン",null,"不明"]
[null,"<--This Data Last Updated 2001/3/4-->"]
[]
[]
[null,null,".dra","竹内 正幸"]
[null,null,null,"ディアールエイ","(正式名称は不明)"]
[null,null,null,null,"Mtcadのホームページ"]
[null,"MTcad 図面ファイル"]
[null,"対応ソフト",null,"Mtcad(シェアウェア)"]
[null,"プラグイン",null,"不明"]
[null,"<--This Data Last Updated 2001/2/17-->"]
[]
[]
[null,null,".dra","ジャストシステム"]
[null,null,null,"ディアールエイ","(正式名称は不明)"]
[null,null,null,null,"だいおー's Home PageにはCAD関係の情報がそろっています。"]
[null,"花子Ver1の図面ファイル。"]
[null,"対応ソフト",null,"花子 Ver1以降"]
[null,"プラグイン",null,"不明"]
[null,"<--This Data Last Updated 2001/3/4-->"]
[]
[]
[null,null,".dra","ジャストシステム"]
[null,null,null,"ディアールエイ","(正式名称は不明)"]
[null,null,null,null,"だいおー's Home PageにはCAD関係の情報がそろっています。"]
[null,"花子Ver1の図面ファイル。"]
[null,"対応ソフト",null,"花子 Ver1以降"]
[null,"プラグイン",null,"不明"]
[null,"<--This Data Last Updated 2001/3/4-->"]
[]
[]
[null,null,".drc","ダイテック"]
[null,null,null,"ディーアールシー","(正式名称は不明)"]
[null,null,null,null,"拡張子辞典への書きこみ"]
[null,"CADソフト「ARCDRAW」の図面ファイル"]
[null,"対応ソフト",null,"ARCDRAW"]
[null,"プラグイン",null,"不明"]
[null,"<--This Data Last Updated 2001/2/28-->"]
[]
[]
[null,null,".drh","ジャストシステム"]
[null,null,null,"ディアールエイチ","(正式名称は不明)"]
[null,null,null,null,"だいおー's Home PageにはCAD関係の情報がそろっています。"]
[null,"ジャストシステムの図面作成ソフト「花子 Ver1」で作成されたファイル。"]
[null,"対応ソフト",null,"花子Ver1以降"]
[null,"プラグイン",null,"不明"]
[null,"<--This Data Last Updated 2001/2/25-->"]
[]
[]
[null,null,".drm","日本パラメトリック・テクノロジー株式会社"]
[null,null,null,"ディアールエム","(正式名称は不明)"]
[null,null,null,null,"だいおー's Home PageにはCAD関係の情報がそろっています。"]
[null,"日本パラメトリック・テクノロジー株式会社の機械系ハイエンド3D CAD「Pro/ENGINEER」で使われるファイル形式。"]
[null,"対応ソフト",null,"Pro/ENGINEER"]
[null,"プラグイン",null,"不明"]
[null,"<--This Data Last Updated 2001/3/4-->"]
[]
[]
[null,null,".drt","ダイテック"]
[null,null,null,"ディアールティ","(正式名称は不明)"]
[null,null,null,null,"だいおー's Home PageにはCAD関係の情報がそろっています。"]
[null,"2次元汎用CADシステム「ARC DRAW」のテンプレートファイル"]
[null,"対応ソフト",null,"Pro/ENGINEER"]
[null,"プラグイン",null,"不明"]
[null,"<--This Data Last Updated 2001/3/4-->"]
[]
[]
[null,null,".drw","ベルソフトウェア"]
[null,null,null,"ディアールダブリュー","(正式名称は不明)"]
[null,null,null,null,"だいおー's Home PageにはCAD関係の情報がそろっています。"]
[null,"ベルソフトウェアのCADである「BELL　DESIGN」シリーズで使われる図面ファイル。"]
[null,"対応ソフト",null,"BELL　DESIGNシリーズ"]
[null,"プラグイン",null,"不明"]
[null,"<--This Data Last Updated 2001/3/4-->"]
[]
[]
[null,null,".drw","オーエスケイ"]
[null,null,null,"ディアールダブリュー","(正式名称は不明)"]
[null,null,null,null,"だいおー's Home PageにはCAD関係の情報がそろっています。"]
[null,"統合型2次元汎用CAD「EXPERT-CAD」の図面ファイル"]
[null,"対応ソフト",null,"プラグイン",null,null,null,"不明"]
[null,"<--This Data Last Updated 2001/3/4-->"]
[]
[]
[null,null,".drw","セイコーインストルメンツ"]
[null,null,null,"ディアールダブリュー","(正式名称は不明)"]
[null,null,null,null,"だいおー's Home PageにはCAD関係の情報がそろっています。"]
[null,"汎用２次元ＣＡＤ「PRICAD」の図面ファイル"]
[null,"対応ソフト",null,"PRICAD"]
[null,"プラグイン",null,"不明"]
[null,"<--This Data Last Updated 2001/3/4-->"]
[]
[]
[null,null,".drx","ダイテック"]
[null,null,null,"ディアールエックス","(正式名称は不明)"]
[null,null,null,null,"だいおー's Home PageにはCAD関係の情報がそろっています。"]
[null,"建築設備ＣＡＤ、建築ＣＡＤ、土木ＣＡＤ、見積積算ソフトである「CADWe'llシリーズ」の図面ファイル"]
[null,"対応ソフト",null,"CAD We'll"]
[null,"プラグイン",null,"不明"]
[null,"<--This Data Last Updated 2001/3/4-->"]
[]
[]
[null,null,".drx","セイコーインストルメンツ"]
[null,null,null,"ディアールエックス","(正式名称は不明)"]
[null,null,null,null,"だいおー's Home PageにはCAD関係の情報がそろっています。"]
[null,"汎用２次元ＣＡＤ「PRICAD-21」の図面ファイル"]
[null,"対応ソフト",null,"PRICAD-21"]
[null,"プラグイン",null,"不明"]
[null,"<--This Data Last Updated 2001/3/4-->"]
[]
[]
[null,null,".dw2","エリント"]
[null,null,null,"ディダブリューツー","(正式名称は不明)"]
[null,null,null,null,"だいおー's Home PageにはCAD関係の情報がそろっています。"]
[null,"「DesignCAD 2D」でつかわれる２D形式の図面ファイル形式"]
[null,"対応ソフト",null,"DesignCAD 2D/３D"]
[null,"プラグイン",null,"不明"]
[null,"<--This Data Last Updated 2001/3/4-->"]
[]
[]
[null,null,".dw3","エリント"]
[null,null,null,"ディダブリュースリー","(正式名称は不明)"]
[null,null,null,null,"だいおー's Home PageにはCAD関係の情報がそろっています。"]
[null,"「DesignCAD ３D」でつかわれる３D形式の図面ファイル形式"]
[null,"対応ソフト",null,"DesignCAD 2D/３D"]
[null,"プラグイン",null,"不明"]
[null,"<--This Data Last Updated 2001/3/4-->"]
[]
[]
[null,null,".dwf","AutoDesk"]
[null,null,null,"ディダブリューエフ","(正式名称は不明)"]
[null,"drawing/x-dwf",null,null,"だいおー's Home PageにはCAD関係の情報がそろっています。"]
[null,"ＡｕｔｏＤｅｓｋ社のＡｕｔｏＣＡＤというＣＡＤソフトで作成した３Ｄのベクター形式の画像データをインターネット上で共有するためのフォーマット形式。「ドローイング・ウェブ・フォーマット」の略。"]
[null,"対応ソフト",null,"AutoCADなど"]
[null,"プラグイン",null,"ＡｕｔｏＤｅｓｋ社のＷＨＩＰを使用すればブラウザ内で表示が可能。"]
[null,"<--This Data Last Updated 2001/3/4-->"]
[]
[]
[null,null,".dwg","(制定者不明)"]
[null,null,null,"ディーダブリュージー","(正式名称は不明)"]
[null,"image/x-dwg",null,null,"だいおー's Home PageにはCAD関係の情報がそろっています。"]
[null,"２次元ＣＡＤソフトＡｕｔｏＣＡＤで使われるベクター形式の画像フォーマット形式。"]
[null,"対応ソフト",null,"AutoCADなど"]
[null,"プラグイン",null,"ＳｏｆｔＳｏｕｒｃｅ社のＤＷＧ／ＤＸＦＰｌｕｇ－Ｉｎを使用すればブラウザ内で表示が可能。ちなみに、このツールは名前のとおりｄｘｆフォーマット形式のファイルにも対応。"]
[null,"<--This Data Last Updated 2001/3/4-->"]
[]
[]
[null,null,".dwt","Ａｕｔｏ　Ｄｅｓｋ"]
[null,null,null,"ディダブリューティ","(正式名称は不明)"]
[null,null,null,null,"だいおー's Home PageにはCAD関係の情報がそろっています。"]
[null,"AutoCADのテンプレートファイル"]
[null,"対応ソフト",null,"AutoCAD"]
[null,"プラグイン",null,"不明"]
[null,"<--This Data Last Updated 2001/3/4-->"]
[]
[]
[null,null,".dwx","（株）ダイテック"]
[null,null,null,"ディダブリュエックス","(正式名称は不明)"]
[null,null,null,null,"だいおー's Home PageにはCAD関係の情報がそろっています。"]
[null,"建築設備ＣＡＤ、建築ＣＡＤ、土木ＣＡＤ、見積積算ソフトである「CADWe'llシリーズ」Ver5以降での図面ファイル"]
[null,"対応ソフト",null,"CAD We'll ver5"]
[null,"プラグイン",null,"不明"]
[null,"<--This Data Last Updated 2001/3/4-->"]
[]
[]
[null,null,".dxf","AutoDesk"]
[null,null,null,"ディーエックスエフ","Drawing Interchange Format"]
[null,"image/x-dxf",null,null,"だいおー's Home PageにはCAD関係の情報がそろっています。"]
[null,"Ａｕｔｏｄｅｓｋ社のＣＡＤソフトＡｕｔｏＣＡＤで使われるファイル形式。ＡｕｔｏＣＡＤの内部ファイルはＤＷＧフォーマットで、これを他のソフトと共有化するために定義されたのがこのＤＸＦフォーマット。"]
[null,"前はアスキー形式といってテキストファイルであったが、ＡｕｔｏＣＡＤリリー ス１０からはバイナリ形式もサポートされている"]
[null,"対応ソフト",null,"Ａｕｔｏｄｅｓｋ社のＡｕｔｏＣＡＤ（市販ソフト）"]
[null,"プラグイン",null,"ＳｏｆｔＳｏｕｒｃｅ社のＤＷＧ／ＤＸＦＰｌｕｇ－Ｉｎを使用すればブラウザ内で表示が可能。ちなみに、このツールは名前のとおりｄｗｇフォーマット形式のファイルにも対応。"]
[null,"<--This Data Last Updated 2001/3/4-->"]
[]
[]
[null,null,".e20","三菱事務機械"]
[null,null,null,"イーニジュウ","(正式名称は不明)"]
[null,null,null,null,"だいおー's Home PageにはCAD関係の情報がそろっています。"]
[null,"建築設備総合ＣＡＤシステム　「ＡRCADE」 で使われるファイル形式"]
[null,"対応ソフト",null,"ＡRCADE"]
[null,"プラグイン",null,"不明"]
[null,"<--This Data Last Updated 2001/2/27-->"]
[]
[]
[null,null,".ecd","福井コンピュータ"]
[null,null,null,"イーシーディ","(正式名称は不明)"]
[null,null,null,null,"だいおー's Home PageにはCAD関係の情報がそろっています。"]
[null,"建築設計支援システム「Archi-TREND-21」で使われる図面ファイル"]
[null,"対応ソフト",null,"ARCHITREND 21"]
[null,"プラグイン",null,"不明"]
[null,"<--This Data Last Updated 2001/3/4-->"]
[]
[]
[null,null,".ed","アンドール"]
[null,null,null,"イーディ","(正式名称は不明)"]
[null,null,null,null,"だいおー's Home PageにはCAD関係の情報がそろっています。"]
[null,"汎用2次元CADソフト「EASY DRAW」で使われる図面ファイル"]
[null,"対応ソフト",null,"EASY DRAW 2001"]
[null,"プラグイン",null,"不明"]
[null,"<--This Data Last Updated 2001/3/4-->"]
[]
[]
[null,null,".edif","(制定者不明)"]
[null,null,null,"イーディーアイエフ","Electric Design Interchange Format"]
[null,null,null,null,"だいおー's Home PageにはCAD関係の情報がそろっています。"]
[null,"異なるECADの間で回路設計データを交換するためのフォーマットEDIFで記述されたファイル"]
[null,"対応ソフト",null,"不明"]
[null,"プラグイン",null,"不明"]
[null,"<--This Data Last Updated 2001/3/4-->"]
[]
[]
[null,null,".fda","（株）四電工"]
[null,null,null,"エフディエー","(正式名称は不明)"]
[null,"text/x-fortran",null,null,"CADEWAのホームページ（開発元:四電工，発売元:富士通愛媛情報システムズ）"]
[null,"建築設備CADソフト『CADEWA for Windows』で使われる図面ファイル形式"]
[null,"対応ソフト",null,"CADEWA for Windows（開発元:四電工，発売元:富士通愛媛情報システムズ）"]
[null,"プラグイン",null,"不明"]
[null,"<--This Data Last Updated 2000/8/1-->"]
[]
[]
[null,null,".fda","デザイン・オートメーション株式会社"]
[null,null,null,"エフディエー","(正式名称は不明)"]
[null,null,null,null,"だいおー's Home PageにはCAD関係の情報がそろっています。"]
[null,"製造業向け2D3D融合型CAD「CADPAC-FUSION２」で使われる図面ファイル形式"]
[null,"対応ソフト",null,"CADPAC-FUSION２"]
[null,"プラグイン",null,"プラグインはCADVIEWERがある。"]
[null,"<--This Data Last Updated 2001/3/4-->"]
[]
[]
[null,null,".fdb","倉敷機械"]
[null,null,null,"エフディビー","(正式名称は不明)"]
[null,null,null,null,"だいおー's Home PageにはCAD関係の情報がそろっています。"]
[null,"倉敷機械の3次元CAD/CAM「MYPAC SUPER CAM」で使われるファイル形式。"]
[null,"対応ソフト",null,"「MYPAC SUPER CAM」"]
[null,"プラグイン",null,"不明"]
[null,"<--This Data Last Updated 2001/2/27-->"]
[]
[]
[null,null,".fdb","デザイン・オートメーション株式会社"]
[null,null,null,"エフディビー","(正式名称は不明)"]
[null,null,null,null,"だいおー's Home PageにはCAD関係の情報がそろっています。"]
[null,"製造業向け2D3D融合型CAD「CADPAC-FUSION２」で使われる図面ファイル形式"]
[null,"対応ソフト",null,"CADPAC-FUSION２"]
[null,"プラグイン",null,"プラグインはCADVIEWERがある。"]
[null,"<--This Data Last Updated 2001/3/4-->"]
[]
[]
[null,null,".fig","デザイン・オートメーション株式会社"]
[null,null,null,"フィグ","(正式名称は不明)"]
[null,null,null,null,"だいおー's Home PageにはCAD関係の情報がそろっています。"]
[null,"CADPAC SPS/StationというＣＡＤ関係ソフトで使われる図面ファイル形式"]
[null,"対応ソフト",null,"CADPAC SPS/Station(サポート切れ)"]
[null,"プラグイン",null,"不明"]
[null,"<--This Data Last Updated 2001/3/4-->"]
[]
[]
[null,null,".fig","デザイン・オートメーション株式会社"]
[null,null,null,"フィグ","(正式名称は不明)"]
[null,null,null,null,"だいおー's Home PageにはCAD関係の情報がそろっています。"]
[null,"CADPAC SPS/StationというＣＡＤ関係ソフトで使われる図面ファイル形式"]
[null,"対応ソフト",null,"CADPAC SPS/Station(サポート切れ)"]
[null,"プラグイン",null,"不明"]
[null,"<--This Data Last Updated 2001/3/4-->"]
[]
[]
[null,null,".flc","AutoDesk"]
[null,null,null,"エフエルシー","Animator Pro Flic Files"]
[null,null,null,null,"だいおー's Home PageにはCAD関係の情報がそろっています。"]
[null,"Ａｕｔｏｄｅｓｋ社のＡｎｉｍａｔｏｒＰｒｏで使われる動画ファイル。ＡｕｔｏＤｅｓｋ「Ｆｌｉｃｋ」形式。Ａｎｉｍａｔｉｏｎ Ｆｉｌｅ。ｆｌｉ形式を拡張したのがｆｌｃ形式。"]
[null,"対応ソフト",null,"不明"]
[null,"プラグイン",null,"不明"]
[null,"<--This Data Last Updated 2001/3/4-->"]
[]
[]
[null,null,".fli","AutoDesk"]
[null,null,null,"エフエルアイ","Original Animator Flic Files"]
[null,null,null,null,"だいおー's Home PageにはCAD関係の情報がそろっています。"]
[null,"Ａｕｔｏｄｅｓｋ社のＡｎｉｍａｔｏｒで使われた動画ファイル。ＡｕｔｏＤｅｓｋ「Ｆｌｉｃｋ」形式。Ａｎｉｍａｔｉｏｎ Ｆｉｌｅ。ｆｌｉ形式を拡張したのがｆｌｃ形式。"]
[null,"対応ソフト",null,"不明"]
[null,"プラグイン",null,"不明"]
[null,"<--This Data Last Updated 2001/3/4-->"]
[]
[]
[null,null,".flx","ケーエスエス"]
[null,null,null,"フィックス","(正式名称は不明)"]
[null,null,null,null,"だいおー's Home PageにはCAD関係の情報がそろっています。"]
[null,"FelixCADで使われる図面ファイル形式"]
[null,"対応ソフト",null,"FelixCAD"]
[null,"プラグイン",null,"不明"]
[null,"<--This Data Last Updated 2001/3/4-->"]
[]
[]
[null,null,".fmz","イメージワン"]
[null,null,null,"エフエムゼット","(正式名称は不明)"]
[null,null,null,null,"だいおー's Home PageにはCAD関係の情報がそろっています。"]
[null,"統合型三次元デザインツールとして定番となっているauto*des*sys社のform・Zで使われるファイル形式。"]
[null,"対応ソフト",null,"form・Z"]
[null,"プラグイン",null,"不明"]
[null,"<--This Data Last Updated 2001/3/4-->"]
[]
[]
[null,null,".frm","（株）フソウシステム研究所"]
[null,null,null,"エフアールエム","(正式名称は不明)"]
[null,null,null,null,"だいおー's Home PageにはCAD関係の情報がそろっています。"]
[null,"（株）フソウシステム研究所社製建築設備CADの図枠ファイル"]
[null,"対応ソフト",null,"U/KIT(EG/KIT)図枠ファイル"]
[null,"プラグイン",null,"不明"]
[null,"<--This Data Last Updated 2001/3/4-->"]
[]
[]
[null,null,".fxc","アンドール"]
[null,null,null,"エフエックスシー","(正式名称は不明)"]
[null,null,null,null,"だいおー's Home PageにはCAD関係の情報がそろっています。"]
[null,"アンドール社のCADソフト「CADSUPER FX」で使われる図面ファイル形式"]
[null,"対応ソフト",null,"CADSUPER FX"]
[null,"プラグイン",null,"不明"]
[null,"<--This Data Last Updated 2001/3/4-->"]
[]
[]
[null,null,".fxd","アンドール"]
[null,null,null,"エフエックスディ","(正式名称は不明)"]
[null,null,null,null,"だいおー's Home PageにはCAD関係の情報がそろっています。"]
[null,"アンドール社のCADソフト「CADSUPER FX」で使われる図面ファイル形式"]
[null,"対応ソフト",null,"CADSUPER FX"]
[null,"プラグイン",null,"不明"]
[null,"<--This Data Last Updated 2001/3/4-->"]
[]
[]
[null,null,".gda","デザイン・オートメーション株式会社"]
[null,null,null,"ジーディエー","(正式名称は不明)"]
[null,null,null,null,"だいおー's Home PageにはCAD関係の情報がそろっています。"]
[null,"CADFORCEというＣＡＤ関係ソフトで使われる図面ファイル形式"]
[null,"対応ソフト",null,"CADFORCE(サポート切れ)"]
[null,"プラグイン",null,"プラグインはCADVIEWERがある。"]
[null,"<--This Data Last Updated 2001/3/4-->"]
[]
[]
[null,null,".gdb","デザイン・オートメーション株式会社"]
[null,null,null,"ジーディビー","(正式名称は不明)"]
[null,null,null,null,"だいおー's Home PageにはCAD関係の情報がそろっています。"]
[null,"CADFORCEというＣＡＤ関係ソフトで使われる図面ファイル形式"]
[null,"対応ソフト",null,"CADFORCE(サポート切れ)"]
[null,"プラグイン",null,"プラグインはCADVIEWERがある。"]
[null,"<--This Data Last Updated 2001/3/4-->"]
[]
[]
[null,null,".ged","(制定者不明)"]
[null,null,null,"ギーイーディ","(正式名称は不明)"]
[null,null,null,null,"拡張子辞典への書きこみ"]
[null,"ジオメトリーファイル。ＣＡＤ／ＣＡＭ関係のファイルと思われる"]
[null,"対応ソフト",null,"MicrografxのVisual Reality 2.0。"]
[null,"プラグイン",null,"不明"]
[null,"<--This Data Last Updated 1999/1/5-->"]
[]
[]
[null,null,".glf","(制定者不明)"]
[null,null,null,"ジーエルエフ","Graphics Interchange Format"]
[null,null,null,null,"拡張子辞典への書きこみ"]
[null,"ＣＡＤソフトであるＭＩＣＲＯ　ＣＡＤＡＭで使われるファイル形式。"]
[null,"対応ソフト",null,"ＭＩＣＲＯ　ＣＡＤＡＭ"]
[null,"プラグイン",null,"不明"]
[null,"<--This Data Last Updated 1999/1/5-->"]
[]
[]
[null,null,".hda","デザイン・オートメーション株式会社"]
[null,null,null,"エイチディエイ","(正式名称は不明)"]
[null,null,null,null,"だいおー's Home PageにはCAD関係の情報がそろっています。"]
[null,"デザイン・オートメーション株式会社の設備系ＣＡＤシステム「ＣＡＤＣＩＴＹ」の図面データファイル"]
[null,"対応ソフト",null,"CADCity"]
[null,"プラグイン",null,"プラグインはCADVIEWERがある。"]
[null,"<--This Data Last Updated 2001/3/4-->"]
[]
[]
[null,null,".hdb","デザイン・オートメーション株式会社"]
[null,null,null,"エイチディビー","(正式名称は不明)"]
[null,null,null,null,"だいおー's Home PageにはCAD関係の情報がそろっています。"]
[null,"デザイン・オートメーション株式会社の設備系ＣＡＤシステム「ＣＡＤＣＩＴＹ」の図面データファイル"]
[null,"対応ソフト",null,"CADCity"]
[null,"プラグイン",null,"プラグインはCADVIEWERがある。"]
[null,"<--This Data Last Updated 2001/3/4-->"]
[]
[]
[null,null,".hmm","キャダムシステム"]
[null,null,null,"エイチエムエム","(正式名称は不明)"]
[null,null,null,null,"だいおー's Home PageにはCAD関係の情報がそろっています。"]
[null,"MICRO CADAM Helixで使われる図面ファイル。"]
[null,"対応ソフト",null,"MICRO CADAM Helix V5R1"]
[null,"プラグイン",null,"不明"]
[null,"<--This Data Last Updated 2001/3/4-->"]
[]
[]
[null,null,".hoc","HO_CADのページ"]
[null,null,null,"エイチオーシー","(正式名称は不明)"]
[null,null,null,null,"HO_CAD入門講座"]
[null,"JW_CADと１００％の互換性を持ちつつ、Ｗｉｎ３２ならではの機能を満載した汎用ＣＡＤ「ＨＯ_ＣＡD」のファイル形式。"]
[null,"対応ソフト",null,"HO_CAD"]
[null,"プラグイン",null,"不明"]
[null,"<--This Data Last Updated 2001/2/23-->"]
[]
[]
[null,null,".icd","FUJITSU"]
[null,null,null,"アイシーディ","(正式名称は不明)"]
[null,null,null,null,"拡張子辞典への書きこみ"]
[null,"富士通製のＣＡＤ　ＩＣＡＤ　ＳＸ／ＰＣで使われるファイル形式"]
[null,"対応ソフト",null,"ＣＡＤ　ＩＣＡＤ　ＳＸ／ＰＣ。または別売りのＩＣＡＤからＤＸＦへの変換ソフトを使えばＤＸＦ形式へ変換可能。"]
[null,"プラグイン",null,"特に無し（追加情報募集中）"]
[null,"<--This Data Last Updated 2001/2/5-->"]
[]
[]
[null,null,".iges","ISO"]
[null,null,null,"アイギーイーエス","Initial Graphics Exchange Specification"]
[null,null,null,null,"拡張子辞典への書きこみ"]
[null,"図形記録フォーマットの一種。図形情報をコンピュータ内で記録し、システム間で交換するための中間ファイルの国際的な標準フォーマットとして作成された。米国国家規格協会(ANSI)のCADデータ移植のための中間ファイル規格として制定した。"]
[null,"対応ソフト",null,"詳細不明だが多くのCADソフトで読めるらしい。"]
[null,"プラグイン",null,"不明"]
[null,"<--This Data Last Updated 2001/2/27-->"]
[]
[]
[null,null,".igr","インターグラフジャパン"]
[null,null,null,"アイジーアール","(正式名称は不明)"]
[null,null,null,null,"だいおー's Home PageにはCAD関係の情報がそろっています。"]
[null,"低価格な２Ｄドローイング及びデザイン用のソフトウェアである「Imagination Engineer」でつかわれる図面ファイル。"]
[null,"対応ソフト",null,"Imagination Engineer"]
[null,"プラグイン",null,"不明"]
[null,"<--This Data Last Updated 2001/2/25-->"]
[]
[]
[null,null,".igr","インターグラフジャパン"]
[null,null,null,"アイジーアール","(正式名称は不明)"]
[null,null,null,null,"だいおー's Home PageにはCAD関係の情報がそろっています。"]
[null,"図面作成ソフト「Smart Sketch」でつかわれる図面ファイル。"]
[null,"対応ソフト",null,"Smart Sketch"]
[null,"プラグイン",null,"不明"]
[null,"<--This Data Last Updated 2001/2/25-->"]
[]
[]
[null,null,".igs","ISO"]
[null,null,null,"アイジーエス","Initial Graphics Exchange Specification"]
[null,null,null,null,"拡張子辞典への書きこみ"]
[null,"図形記録フォーマットの一種。図形情報をコンピュータ内で記録し、システム間で交換するための中間ファイルの国際的な標準フォーマットとして作成された。米国国家規格協会(ANSI)のCADデータ移植のための中間ファイル規格として制定した。"]
[null,"対応ソフト",null,"詳細不明だが多くのCADソフトで読めるらしい。"]
[null,"プラグイン",null,"不明"]
[null,"<--This Data Last Updated 2001/3/2-->"]
[]
[]
[null,null,".jah","ジャストシステム"]
[null,null,null,"ジェイエイエイチ","(正式名称は不明)"]
[null,null,null,null,"拡張子辞典への書きこみ"]
[null,"（株）ジャストシステム社の花子Ｖｅｒ３のファイル形式。"]
[null,"対応ソフト",null,"（株）ジャストシステムの花子郎（市販ソフト）Ｖｅｒ３以降"]
[null,"プラグイン",null,"不明"]
[null,"<--This Data Last Updated 1999/1/5-->"]
[]
[]
[null,null,".jbh","ジャストシステム"]
[null,null,null,"ジェイビーエイチ","(正式名称は不明)"]
[null,null,null,null,"だいおー's Home PageにはCAD関係の情報がそろっています。"]
[null,"ジャストシステムの図面作成ソフト「花子 Ver3.1」で作成された図面ファイル。"]
[null,"対応ソフト",null,"花子Ver3.1以降"]
[null,"プラグイン",null,"不明"]
[null,"<--This Data Last Updated 2001/2/25-->"]
[]
[]
[null,null,".jcd","ジパング"]
[null,null,null,"ジェイシーディ","(正式名称は不明)"]
[null,null,null,null,"だいおー's Home PageにはCAD関係の情報がそろっています。"]
[null,"ジパングという会社の建築専用CAD「CADrafter-J」の図面ファイル。"]
[null,"対応ソフト",null,"CADrafter-J"]
[null,"プラグイン",null,"不明"]
[null,"<--This Data Last Updated 2001/2/25-->"]
[]
[]
[null,null,".jhd","ジャストシステム"]
[null,null,null,"ジェイエイチディ","(正式名称は不明)"]
[null,null,null,null,"だいおー's Home PageにはCAD関係の情報がそろっています。"]
[null,"ジャストシステムの図面作成ソフト「花子９および花子１０」で作成された図面ファイル。"]
[null,"対応ソフト",null,"花子9以降"]
[null,"プラグイン",null,"不明"]
[null,"<--This Data Last Updated 2001/2/25-->"]
[]
[]
[null,null,".jhw","ジャストシステム"]
[null,null,null,"ジェイエイチダブリュー","(正式名称は不明)"]
[null,null,null,null,"だいおー's Home PageにはCAD関係の情報がそろっています。"]
[null,"（株）ジャストシステム社の花子のバージョン３で作成されたファイルにつけられる。"]
[null,"対応ソフト",null,"（株）ジャストシステムの花子（市販ソフト）Ｖｅｒ３以降。"]
[null,"プラグイン",null,"不明"]
[null,"<--This Data Last Updated 2001/3/4-->"]
[]
[]
[null,null,".jsh","ジャストシステム"]
[null,null,null,"ジェイエスエイチ","(正式名称は不明)"]
[null,null,null,null,"だいおー's Home PageにはCAD関係の情報がそろっています。"]
[null,"（株）ジャストシステム社の花子バージョン２で作成されたファイルにつけられる。"]
[null,"対応ソフト",null,"（株）ジャストシステムの花子（市販ソフト）Ｖｅｒ２以降"]
[null,"プラグイン",null,"不明"]
[null,"<--This Data Last Updated 2001/3/4-->"]
[]
[]
[null,null,".jth","ジャストシステム"]
[null,null,null,"ジェイテイエイチ","(正式名称は不明)"]
[null,null,null,null,"だいおー's Home PageにはCAD関係の情報がそろっています。"]
[null,"ジャストシステムの図面作成ソフト「花子 Ver3」で作成された定型図面ファイル。"]
[null,"対応ソフト",null,"花子Ver3以降"]
[null,"プラグイン",null,"不明"]
[null,"<--This Data Last Updated 2001/2/25-->"]
[]
[]
[null,null,".juh","ジャストシステム"]
[null,null,null,"ジェイユーエイチ","(正式名称は不明)"]
[null,null,null,null,"だいおー's Home PageにはCAD関係の情報がそろっています。"]
[null,"ジャストシステムの図面作成ソフト「花子 Ver3.1」で作成された定型図面ファイル。"]
[null,"対応ソフト",null,"花子Ver3.1以降"]
[null,"プラグイン",null,"不明"]
[null,"<--This Data Last Updated 2001/2/25-->"]
[]
[]
[null,null,".jwb","JWBホームページ"]
[null,null,null,"ジェイダビリュービー","(正式名称は不明)"]
[null,null,null,null,"JWBホームページ"]
[null,"フリーのCADソフである「JWB32およびJWB2000」の図面ファイル形式。"]
[null,"対応ソフト",null,"JWBホームページ"]
[null,"プラグイン",null,"不明"]
[null,"<--This Data Last Updated 2001/2/25-->"]
[]
[]
[null,null,".jwc","清水治郎＆田中善文"]
[null,null,null,"ジェイダブルシー","(正式名称は不明)"]
[null,null,null,null,"フリーのCADソフト「JW_CAD」16Bit版でつかわれる図面ファイル。"]
[null,"対応ソフト",null,"ＪＷ＿ＣＡＤ"]
[null,"プラグイン",null,"富士通からPersonal BLD Viewer Plug-Inというプラグインが配布されている。"]
[null,"<--This Data Last Updated 2001/3/2-->"]
[]
[]
[null,null,".jwf","清水治郎＆田中善文"]
[null,null,null,"ジェイダブリューエフ","(正式名称は不明)"]
[null,null,null,null,"フリーのCADソフト「JW_CAD」でつかわれる環境設定ファイル。"]
[null,"対応ソフト",null,"JW_CAD(DOS版）"]
[null,"プラグイン",null,"不明"]
[null,"<--This Data Last Updated 2001/2/25-->"]
[]
[]
[null,null,".jwk","清水治郎＆田中善文"]
[null,null,null,"ジェイダブリューケイ","(正式名称は不明)"]
[null,null,null,null,"フリーのCADソフト「JW_CAD」16Bit版でつかわれる図形ファイル。"]
[null,"対応ソフト",null,"JW_CAD(DOS版）"]
[null,"プラグイン",null,"富士通からPersonal BLD Viewer Plug-Inというプラグインが配布されている。"]
[null,"<--This Data Last Updated 2001/3/2-->"]
[]
[]
[null,null,".jww","清水治郎＆田中善文"]
[null,null,null,"ジェイダブリューダブリュー","Jw_cad for Windows"]
[null,null,null,null,"だいおー's Home PageにはCAD関係の情報がそろっています。"]
[null,"フリーのCADソフト「JW_CAD for Windows」32Bit版でつかわれる図面ファイル。バージョンアップに従い、後のバージョンで作成した物はまえのバージョンのソフトで読めなくなっている。"]
[null,"対応ソフト",null,"JW_CADforWin"]
[null,"プラグイン",null,"不明"]
[null,"<--This Data Last Updated 2001/3/2-->"]
[]
[]
[null,null,".lcd","らんゆうソフト"]
[null,null,null,"エルシーディ","(正式名称は不明)"]
[null,null,null,null,"だいおー's Home PageにはCAD関係の情報がそろっています。"]
[null,"フリーの2DのCAD「Lillicad」の図面ファイル"]
[null,"対応ソフト",null,"Lillicad"]
[null,"プラグイン",null,"不明"]
[null,"<--This Data Last Updated 2001/2/25-->"]
[]
[]
[null,null,".ldo","株式会社 I CLインフォメーションアンドコントロール研究所"]
[null,null,null,"エルディゼロ","(正式名称は不明)"]
[null,null,null,null,"だいおー's Home PageにはCAD関係の情報がそろっています。"]
[null,"ICL社の「PC－CAD」の図面ファイル形式。データの内容を保管したファイルでデータ属性を保管したlm0ファイルとセット"]
[null,"対応ソフト",null,"PC-CAD　Delux"]
[null,"プラグイン",null,"不明"]
[null,"<--This Data Last Updated 2001/3/3-->"]
[]
[]
[null,null,".lht","ジャストシステム"]
[null,null,null,"エルエイチティ","(正式名称は不明)"]
[null,null,null,null,"だいおー's Home PageにはCAD関係の情報がそろっています。"]
[null,"ジャストシステムの図面作成ソフト「花子9および花子10」で作成された定型図面ファイル。"]
[null,"対応ソフト",null,"花子9以降"]
[null,"プラグイン",null,"不明"]
[null,"<--This Data Last Updated 2001/2/25-->"]
[]
[]
[null,null,".lm0","株式会社 I CLインフォメーションアンドコントロール研究所"]
[null,null,null,"エルエムゼロ","(正式名称は不明)"]
[null,null,null,null,"だいおー's Home PageにはCAD関係の情報がそろっています。"]
[null,"ICL社の「PC－CAD」の図面ファイル形式。データの属性を保管したファイルでデータ内容を保管したld0ファイルとセット"]
[null,"対応ソフト",null,"PC-CAD　Delux"]
[null,"プラグイン",null,"不明"]
[null,"<--This Data Last Updated 2001/3/3-->"]
[]
[]
[null,null,".m7","博山氏"]
[null,null,null,"エムナナ","(正式名称は不明)"]
[null,null,null,null,"stm WEB"]
[null,"プレゼンテーション機能の充実した２次元CAD「M7」の図面ファイル"]
[null,"対応ソフト",null,"M7(シェアウェア)"]
[null,"プラグイン",null,"不明"]
[null,"<--This Data Last Updated 2001/2/25-->"]
[]
[]
[null,null,".m7g","博山氏"]
[null,null,null,"エムナナジー","(正式名称は不明)"]
[null,null,null,null,"stm WEB"]
[null,"プレゼンテーション機能の充実した２次元CAD「M7」の部品ファイル"]
[null,"対応ソフト",null,"M7(シェアウェア)"]
[null,"プラグイン",null,"不明"]
[null,"<--This Data Last Updated 2001/2/25-->"]
[]
[]
[null,null,".m7t","博山氏"]
[null,null,null,"エムナナティ","(正式名称は不明)"]
[null,null,null,null,"stm WEB"]
[null,"プレゼンテーション機能の充実した２次元CAD「M7」のテンプレートファイル"]
[null,"対応ソフト",null,"M7(シェアウェア)"]
[null,"プラグイン",null,"不明"]
[null,"<--This Data Last Updated 2001/2/25-->"]
[]
[]
[null,null,".man","インフォマテックス"]
[null,null,null,"マン","(正式名称は不明)"]
[null,null,null,null,"Micro GDS Professionalマニュアル"]
[null,"インフォマテックス社の汎用グループウエアCAD「MicroGDSCompact」で使われる図面ファイル形式。"]
[null,"対応ソフト",null,"MicroGDS Compact"]
[null,"プラグイン",null,"不明"]
[null,"<--This Data Last Updated 2001/2/25-->"]
[]
[]
[null,null,".mc3","株式会社ダイナウェア"]
[null,null,null,"エムシースリー","(正式名称は不明)"]
[null,null,null,null,"だいおー's Home PageにはCAD関係の情報がそろっています。"]
[null,"ダイナウェア社の「MALTSCAD-3D」の図面ファイル。"]
[null,"対応ソフト",null,"MALTSCAD-3D"]
[null,"プラグイン",null,"不明"]
[null,"<--This Data Last Updated 2001/2/25-->"]
[]
[]
[null,null,".mcd","エーアンドエー株式会社"]
[null,null,null,"エムシーディ","(正式名称は不明)"]
[null,null,null,null,"拡張子辞典への書きこみ"]
[null,"「VectorWorks」で使われる図面ファイル。「VectorWorks 」の前身は「MiniCAD」であり本来はこの「MiniCAD」で使われた拡張子であった。"]
[null,"対応ソフト",null,"VectorWorks"]
[null,"プラグイン",null,"不明"]
[null,"<--This Data Last Updated 2001/3/2-->"]
[]
[]
[null,null,".mcd","キャダムシステム株式会社"]
[null,null,null,"エムシーディ","(正式名称は不明)"]
[null,"application/x-mathcad",null,null,"拡張子辞典への書きこみ"]
[null,"MICRO CADAM Helixで使われる図面ファイル。"]
[null,"対応ソフト",null,"MICRO CADAM Helix V5R1"]
[null,"プラグイン",null,"不明"]
[null,"<--This Data Last Updated 2001/3/2-->"]
[]
[]
[null,null,".mcs","もともとは米国 MathSoft Inc社の製品。国内の代理店は住友金属システムソリューションズ"]
[null,null,null,"エムシーエス","(正式名称は不明)"]
[null,null,null,null,"だいおー's Home PageにはCAD関係の情報がそろっています。"]
[null,"「Math CAD」で使われる図面ファイル"]
[null,"対応ソフト",null,"MathCAD2000"]
[null,"プラグイン",null,"不明"]
[null,"<--This Data Last Updated 2001/2/25-->"]
[]
[]
[null,null,".mdl","米国IMSI社。日本での代理店は "]
[null,null,null,"エムディエル","(正式名称は不明)"]
[null,null,null,null,"だいおー's Home PageにはCAD関係の情報がそろっています。"]
[null,"住友金属システム開発が発売している「TURBO SKETCH」の３Dモデルファイル"]
[null,"対応ソフト",null,"TURBO CADシリーズ"]
[null,"プラグイン",null,"不明"]
[null,"<--This Data Last Updated 2001/3/3-->"]
[]
[]
[null,null,".mf1","日本ＳＤＲＣ"]
[null,null,null,"エムエフワン","(正式名称は不明)"]
[null,null,null,null,"だいおー's Home PageにはCAD関係の情報がそろっています。"]
[null,"CAD/CAMソフトウェアの「I-DEAS」の図面ファイル"]
[null,"対応ソフト",null,"プラグイン",null,null,null,"不明"]
[null,"<--This Data Last Updated 2001/2/25-->"]
[]
[]
[null,null,".mf2","日本ＳＤＲＣ"]
[null,null,null,"エムエフツー","(正式名称は不明)"]
[null,null,null,null,"だいおー's Home PageにはCAD関係の情報がそろっています。"]
[null,"CAD/CAMソフトウェアの「I-DEAS」の図面ファイル"]
[null,"対応ソフト",null,"プラグイン",null,null,null,"不明"]
[null,"<--This Data Last Updated 2001/2/25-->"]
[]
[]
[null,null,".mi","CoCreate"]
[null,null,null,"エムアイエフ","(正式名称は不明)"]
[null,null,null,null,"ME-10ユーザーズページ"]
[null,"機械系の二次元ＣＡＤ「ＭＥ－１０］のＭＩ形式図面ファイル。"]
[null,"対応ソフト",null,"ME10"]
[null,"プラグイン",null,"不明"]
[null,"<--This Data Last Updated 2001/3/2-->"]
[]
[]
[null,null,".model","IBM"]
[null,null,null,"モデル","(正式名称は不明)"]
[null,null,null,null,"だいおー's Home PageにはCAD関係の情報がそろっています。"]
[null,"IBMの3次元CADソフト「CATIA」で使われるファイル形式。"]
[null,"対応ソフト",null,"CATIA"]
[null,"プラグイン",null,"不明"]
[null,"<--This Data Last Updated 2001/2/25-->"]
[]
[]
[null,null,".mpp","構造システム"]
[null,null,null,"エムピーピー","(正式名称は不明)"]
[null,"application/vnd.ms-project",null,null,"MPP/MPW形式"]
[null,"構造システム社の設計・製図用ＣＡＤソフト「DRA-CAD2 V2」の図面ファイル形式。"]
[null,"対応ソフト",null,"DRA-CADVer3"]
[null,"プラグイン",null,"構造システムからDRA-CAD-Viewerが配布されている。"]
[null,"<--This Data Last Updated 2001/3/4-->"]
[]
[]
[null,null,".mpw","(制定者不明)"]
[null,null,null,"エムピーダブリュー","(正式名称は不明)"]
[null,null,null,null,"MPP/MPW形式"]
[null,"構造システム社の汎用製図CAD「DRA-CAD2α」の図面ファイル形式。"]
[null,"対応ソフト",null,"DRA-CADα"]
[null,"プラグイン",null,"構造システムからDRA-CAD-Viewerが配布されている。"]
[null,"<--This Data Last Updated 2001/3/4-->"]
[]
[]
[null,null,".mpz","構造システム"]
[null,null,null,"エムピーゼット","(正式名称は不明)"]
[null,null,null,null,"拡張子辞典への書きこみ"]
[null,"構造システム社の設計・製図用ＣＡＤソフト「DRA-CAD」の図面ファイル形式。"]
[null,"対応ソフト",null,"DRA-CADVer3"]
[null,"プラグイン",null,"不明"]
[null,"<--This Data Last Updated 2001/3/4-->"]
[]
[]
[null,null,".op2","株式会社ダイナウェア"]
[null,null,null,"オーピーツー","(正式名称は不明)"]
[null,null,null,null,"だいおー's Home PageにはCAD関係の情報がそろっています。"]
[null,"ダイナウェアがホームページからオンライン販売していた「DW-CAD」の拡張子。「LJ-CAD」はＡｕｔｏ－ＣａｄＬＴ用アドオンLJ-Pack」に同梱されている２Ｄ－ＣＡＤだが基本的には「DW-CAD」と同じもの。"]
[null,"対応ソフト",null,"DynaCADあたりで読めるのではないだろうか？"]
[null,"プラグイン",null,"不明"]
[null,"<--This Data Last Updated 2001/2/25-->"]
[]
[]
[null,null,".op2","株式会社ブレインストーム"]
[null,null,null,"オーピーツー","(正式名称は不明)"]
[null,null,null,null,"だいおー's Home PageにはCAD関係の情報がそろっています。"]
[null,"ＣＡＤソフトオフェリアで使われる図面ファイル。"]
[null,"対応ソフト",null,"オフェリア"]
[null,"プラグイン",null,"不明"]
[null,"<--This Data Last Updated 2001/2/25-->"]
[]
[]
[null,null,".par","竹内正幸"]
[null,null,null,"ピーエーアール","(正式名称は不明)"]
[null,null,null,null,"Mtcadのホームページ"]
[null,"シェアウェアの汎用 2次元CADである「Mtcad」の部品ファイル"]
[null,"対応ソフト",null,"Mtcad(シェアウェア)"]
[null,"プラグイン",null,"不明"]
[null,"<--This Data Last Updated 2001/2/25-->"]
[]
[]
[null,null,".par","ユニグラフィックス・ソリューションズ・ジャパン"]
[null,null,null,"ピーエーアール","(正式名称は不明)"]
[null,null,null,null,"だいおー's Home PageにはCAD関係の情報がそろっています。"]
[null,"UGSのCADソフト「Solid Edge」で使われるファイル形式。"]
[null,"対応ソフト",null,"Solid Edge"]
[null,"プラグイン",null,"不明"]
[null,"<--This Data Last Updated 2001/2/27-->"]
[]
[]
[null,null,".pat","デザイン・オートメーション株式会社"]
[null,null,null,"ピーエーティ","(正式名称は不明)"]
[null,null,null,null,"だいおー's Home PageにはCAD関係の情報がそろっています。"]
[null,"CADPAC SPS/StationというＣＡＤ関係ソフトで使われる部品ファイル形式"]
[null,"対応ソフト",null,"CADPAC SPS/Station(サポート切れ)"]
[null,"プラグイン",null,"不明"]
[null,"<--This Data Last Updated 2001/2/25-->"]
[]
[]
[null,null,".pc0","株式会社 I CLインフォメーションアンドコントロール研究所"]
[null,null,null,"ピーシーゼロ","(正式名称は不明)"]
[null,null,null,null,"だいおー's Home PageにはCAD関係の情報がそろっています。"]
[null,"ICL社の「PC－CAD　Wx」の図面ファイル形式"]
[null,"対応ソフト",null,"PC-CAD　Wx"]
[null,"プラグイン",null,"不明"]
[null,"<--This Data Last Updated 2001/3/3-->"]
[]
[]
[null,null,".pcs","日本パーソナルコンピューターソフトウェア協会"]
[null,null,null,"ピーシーエス","(正式名称は不明)"]
[null,null,null,null,"だいおー's Home PageにはCAD関係の情報がそろっています。"]
[null,"日本パーソナルコンピューターソフトウェア協会が開発したCADデータ交換用中間ファイル"]
[null,"対応ソフト",null,"詳細は不明"]
[null,"プラグイン",null,"不明"]
[null,"<--This Data Last Updated 2001/2/25-->"]
[]
[]
[null,null,".pcs","（株）システムズナカシマ"]
[null,null,null,"ピーシーエス","アンデス・ビクトファイル"]
[null,null,null,null,"だいおー's Home PageにはCAD関係の情報がそろっています。"]
[null,"（株）システムズナカシマ製　CADデータのファイル拡張子"]
[null,"対応ソフト",null,"ANDES Pro2，ANDES Pro Win"]
[null,"プラグイン",null,"不明"]
[null,"<--This Data Last Updated 2001/3/4-->"]
[]
[]
[null,null,".pi1","武藤工業株式会社"]
[null,null,null,"ピーアイワン","(正式名称は不明)"]
[null,null,null,null,"だいおー's Home PageにはCAD関係の情報がそろっています。"]
[null,"武藤工業株式会社の二次元汎用CADソフト「M-Draf Wiseman」で使われる図面ファイル"]
[null,"対応ソフト",null,"M-Draf Wiseman Ver 6"]
[null,"プラグイン",null,"不明"]
[null,"<--This Data Last Updated 2001/3/2-->"]
[]
[]
[null,null,".pi2","武藤工業株式会社"]
[null,null,null,"ピーアイツー","(正式名称は不明)"]
[null,null,null,null,"だいおー's Home PageにはCAD関係の情報がそろっています。"]
[null,"武藤工業株式会社の二次元汎用CADソフト「M-Draf Wiseman」で使われる図面ファイル"]
[null,"対応ソフト",null,"M-Draf Wiseman Ver 6"]
[null,"プラグイン",null,"不明"]
[null,"<--This Data Last Updated 2001/3/2-->"]
[]
[]
[null,null,".pi3","武藤工業株式会社"]
[null,null,null,"ピーアイスリー","(正式名称は不明)"]
[null,null,null,null,"だいおー's Home PageにはCAD関係の情報がそろっています。"]
[null,"武藤工業株式会社の二次元汎用CADソフト「M-Draf Wiseman」で使われる図面ファイル"]
[null,"対応ソフト",null,"M-Draf Wiseman Ver 6"]
[null,"プラグイン",null,"不明"]
[null,"<--This Data Last Updated 2001/3/2-->"]
[]
[]
[null,"[an error occurred while processing this directive]"]
[]
[]
[null,null,".pla","グラフィソフトジャパン"]
[null,null,null,"ピーエルエイ","(正式名称は不明)"]
[null,null,null,null,"だいおー's Home PageにはCAD関係の情報がそろっています。"]
[null,"建築CADソフト「GRAPHSOFT」（欧米では「AichiCAD」）で使われる図面ファイル形式"]
[null,"対応ソフト",null,"GRAPHISOFT "]
[null,"プラグイン",null,"不明"]
[null,"<--This Data Last Updated 2001/2/25-->"]
[]
[]
[null,null,".pln","パルティオソフト株式会社"]
[null,null,null,"ピーエルエヌ","(正式名称は不明)"]
[null,null,null,null,"だいおー's Home PageにはCAD関係の情報がそろっています。"]
[null,"建築デザイン・製図用CADソフト「PALTIO4」の図面ファイル"]
[null,"対応ソフト",null,"PALTIO3"]
[null,"プラグイン",null,"不明"]
[null,"<--This Data Last Updated 2001/2/25-->"]
[]
[]
[null,null,".pln","グラフィソフトジャパン"]
[null,null,null,"ピーエルエヌ","(正式名称は不明)"]
[null,null,null,null,"だいおー's Home PageにはCAD関係の情報がそろっています。"]
[null,"建築CADソフト「GRAPHSOFT」（欧米では「AichiCAD」）で使われる図面ファイル形式"]
[null,"対応ソフト",null,"GRAPHISOFT "]
[null,"プラグイン",null,"不明"]
[null,"<--This Data Last Updated 2001/2/25-->"]
[]
[]
[null,null,".plt","(制定者不明)"]
[null,null,null,"プロット","(正式名称は不明)"]
[null,null,null,null,"だいおー's Home PageにはCAD関係の情報がそろっています。"]
[null,"プロッタのファイル。"]
[null,"対応ソフト",null,"不明"]
[null,"プラグイン",null,"不明"]
[null,"<--This Data Last Updated 2001/2/25-->"]
[]
[]
[null,null,".plt","AutoDesk"]
[null,null,null,"ピーエルティ","(正式名称は不明)"]
[null,null,null,null,"だいおー's Home PageにはCAD関係の情報がそろっています。"]
[null,"Ａｕｔｏｄｅｓｋ社のＡｕｔｏＣＡＤのPlot形式のファイル。"]
[null,"対応ソフト",null,"SMI Soft(住友金属システム開発株式会社)の TURBO CAD という製品が対応している。"]
[null,"プラグイン",null,"不明"]
[null,"<--This Data Last Updated 2001/3/4-->"]
[]
[]
[null,null,".pov","POV-Ray"]
[null,null,null,"ピーオーブィ","(正式名称は不明)"]
[null,null,null,null,"http://www.koganet.ne.jp/~sylow/pov/webring/index.htmlPOV-Ray PORTExpan"]
[null,"フリーの３Dレンダリングソフト「POV-Ray」での図形ソースファイル"]
[null,"対応ソフト",null,"POV-Ray"]
[null,"プラグイン",null,"不明"]
[null,"<--This Data Last Updated 2001/2/25-->"]
[]
[]
[null,null,".prm","吉浜 一雄"]
[null,null,null,"ピーアールエム","(正式名称は不明)"]
[null,null,null,null,"BeDraawDesign"]
[null,"シェアウェアの二次元CADである「BeDraw」のパラメトリック部品（図形）ファイル"]
[null,"対応ソフト",null,"BeDraw"]
[null,"プラグイン",null,"不明"]
[null,"<--This Data Last Updated 2001/3/2-->"]
[]
[]
[null,null,".prt","MEGATECH社 (ドイツ)・日本での販売代理店はジャパンハイテック"]
[null,null,null,"ピーアールティ","(正式名称は不明)"]
[null,null,null,null,"だいおー's Home PageにはCAD関係の情報がそろっています。"]
[null,"汎用CADソフト「MEGACAD」の図面ファイル"]
[null,"対応ソフト",null,"MEGACADプロフェッショナル"]
[null,"プラグイン",null,"不明"]
[null,"<--This Data Last Updated 2001/2/25-->"]
[]
[]
[null,null,".prt","ジャストシステム"]
[null,null,null,"ピーアールティ","(正式名称は不明)"]
[null,null,null,null,"だいおー's Home PageにはCAD関係の情報がそろっています。"]
[null,"ジャストシステムの図面作成ソフト「花子Ver1」の部品ファイル。"]
[null,"対応ソフト",null,"花子Ver1"]
[null,"プラグイン",null,"不明"]
[null,"<--This Data Last Updated 2001/2/25-->"]
[]
[]
[null,null,".prt","日本パラメトリック・テクノロジー株式会社"]
[null,null,null,"ピーアールティ","(正式名称は不明)"]
[null,null,null,null,"だいおー's Home PageにはCAD関係の情報がそろっています。"]
[null,"日本パラメトリック・テクノロジー株式会社の機械系ハイエンド3D CAD「Pro/ENGINEER」で使われるファイル形式。"]
[null,"対応ソフト",null,"Pro/ENGINEER"]
[null,"プラグイン",null,"不明"]
[null,"<--This Data Last Updated 2001/2/25-->"]
[]
[]
[null,null,".prt","オーエスケイ"]
[null,null,null,"ピーアールティ","(正式名称は不明)"]
[null,null,null,null,"だいおー's Home PageにはCAD関係の情報がそろっています。"]
[null,"統合型2次元汎用CAD「EXPERT-CAD」の図面ファイル"]
[null,"対応ソフト",null,"プラグイン",null,null,null,"不明"]
[null,"<--This Data Last Updated 2001/2/27-->"]
[]
[]
[null,null,".psm","ユニグラフィックス・ソリューションズ・ジャパン"]
[null,null,null,"ピーエスエム","(正式名称は不明)"]
[null,null,null,null,"だいおー's Home PageにはCAD関係の情報がそろっています。"]
[null,"UGSのCADソフト「Solid Edge」で使われるファイル形式。"]
[null,"対応ソフト",null,"Solid Edge"]
[null,"プラグイン",null,"不明"]
[null,"<--This Data Last Updated 2001/2/25-->"]
[]
[]
[null,null,".pt","吉浜 一雄"]
[null,null,null,"ピーティ","(正式名称は不明)"]
[null,null,null,null,"BeDraawDesign"]
[null,"シェアウェアの二次元CADである「BeDraw」の部品（図形）ファイル"]
[null,"対応ソフト",null,"BeDraw"]
[null,"プラグイン",null,"不明"]
[null,"<--This Data Last Updated 2001/3/2-->"]
[]
[]
[null,null,".pt3","ジャストシステム"]
[null,null,null,"ピーティスリー","(正式名称は不明)"]
[null,null,null,null,"だいおー's Home PageにはCAD関係の情報がそろっています。"]
[null,"ジャストシステムの図面作成ソフト「花子 Ver3」で使われる部品ファイル。"]
[null,"対応ソフト",null,"花子Ver3以降"]
[null,"プラグイン",null,"不明"]
[null,"<--This Data Last Updated 2001/2/25-->"]
[]
[]
[null,null,".pts","ジャストシステム"]
[null,null,null,"ピーティエス","(正式名称は不明)"]
[null,null,null,null,"だいおー's Home PageにはCAD関係の情報がそろっています。"]
[null,"ジャストシステムの図面作成ソフト「花子 Ver2」で使われる部品ファイル。"]
[null,"対応ソフト",null,"花子Ver2以降"]
[null,"プラグイン",null,"不明"]
[null,"<--This Data Last Updated 2001/2/25-->"]
[]
[]
[null,null,".rd3","米国MetaCreations社"]
[null,null,null,"アールディサン","(正式名称は不明)"]
[null,null,null,null,"だいおー's Home PageにはCAD関係の情報がそろっています。"]
[]
[null,"対応ソフト",null,"Ray Dream Studio 5"]
[null,"プラグイン",null,"不明"]
[null,"<--This Data Last Updated 2001/2/25-->"]
[]
[]
[null,null,".rd4","米国MetaCreations社"]
[null,null,null,"アールディヨン","(正式名称は不明)"]
[null,null,null,null,"だいおー's Home PageにはCAD関係の情報がそろっています。"]
[null,"３DCGソフト「Ray Dream 4」の図面ファイル形式"]
[null,"対応ソフト",null,"Ray Dream Studio 5"]
[null,"プラグイン",null,"不明"]
[null,"<--This Data Last Updated 2001/2/25-->"]
[]
[]
[null,null,".rdd","米国MetaCreations社"]
[null,null,null,"アールディディ","(正式名称は不明)"]
[null,null,null,null,"だいおー's Home PageにはCAD関係の情報がそろっています。"]
[null,"３DCGソフト「Ray Dream 5」の図面ファイル形式"]
[null,"対応ソフト",null,"Ray Dream Studio 5"]
[null,"プラグイン",null,"不明"]
[null,"<--This Data Last Updated 2001/2/25-->"]
[]
[]
[null,null,".rds","米国MetaCreations社"]
[null,null,null,"アールディエス","(正式名称は不明)"]
[null,null,null,null,"だいおー's Home PageにはCAD関係の情報がそろっています。"]
[null,"３DCGソフト「Ray Dream 5」の図面ファイル形式"]
[null,"対応ソフト",null,"Ray Dream Studio 5"]
[null,"プラグイン",null,"不明"]
[null,"<--This Data Last Updated 2001/2/25-->"]
[]
[]
[null,null,".rnd","AutoDesk"]
[null,null,null,"アールエヌディー","(正式名称は不明)"]
[null,null,null,null,"だいおー's Home PageにはCAD関係の情報がそろっています。"]
[null,"ＡｕｔｏＤｅｓｋ　ＡｕｔｏＳｈａｄｅで作成されたファイル"]
[null,"対応ソフト",null,"ＡｕｔｏＤｅｓｋ　Ａｕｔｏｓｈａｄｅ"]
[null,"プラグイン",null,"不明"]
[null,"<--This Data Last Updated 2001/3/4-->"]
[]
[]
[null,null,".sab","スペイシャルテクノロジー社(イアン・ブレイド博士)"]
[null,null,null,"エスエイビー","オープンソリッドモデリングカーネル"]
[null,null,null,null,"オープン・ソリッドモデリング・カーネルACISのご紹介"]
[null,"ACISと呼ばれるモデリングカーネルの標準バイナリファイル形式。モデリングカーネルとは、CADに代表される３次元アプリケーションの心臓部である、モデリング機能を提供するライブラリのこと。ACISを採用しているアプリケーションは基本的にSATファイルを読書きすることができ、３次元のモデルデータを相互運用することができる。"]
[null,"対応ソフト",null,"AutoCAD，Mechanical Desktop，CADKEY，form・z，Vellum Solids， Space-E，K-CAM-Solid，MYPAC Super CAM Solid，CAMMAGIC MS-20，Paltio，モールド図換3Dなど、全世界約220種で対応"]
[null,"プラグイン",null,"不明"]
[null,"<--This Data Last Updated 2001/2/25-->"]
[]
[]
[null,null,".sat","Spatial Technology Inc"]
[null,null,null,"サット、エスエーティー","Save As Text"]
[null,null,null,null,"だいおー's Home PageにはCAD関係の情報がそろっています。"]
[null,"ACISと呼ばれるモデリングカーネルの標準ソースファイル形式。モデリングカーネルとは、CADに代表される３次元アプリケーションの心臓部である、モデリング機能を提供するライブラリのこと。ACISを採用しているアプリケーションは基本的にSATファイルを読書きすることができ、３次元のモデルデータを相互運用することができる。"]
[null,"対応ソフト",null,"AutoCAD，Mechanical Desktop，CADKEY，form・z，Vellum Solids， Space-E，K-CAM-Solid，MYPAC Super CAM Solid，CAMMAGIC MS-20，Paltio，モールド図換3Dなど、全世界約220種で対応"]
[null,"プラグイン",null,"不明"]
[null,"<--This Data Last Updated 2001/3/2-->"]
[]
[]
[null,null,".sch","「フォトロン社"]
[null,null,null,"エスシーエイチ","(正式名称は不明)"]
[null,null,null,null,"だいおー's Home PageにはCAD関係の情報がそろっています。"]
[null,"フォトロン社の「図脳α」の図面ファイル。"]
[null,"対応ソフト",null,"図脳RAPID9"]
[null,"プラグイン",null,"不明"]
[null,"<--This Data Last Updated 2001/2/25-->"]
[]
[]
[null,null,".sdac","CoCreate"]
[null,null,null,"エスダック","(正式名称は不明)"]
[null,null,null,null,"だいおー's Home PageにはCAD関係の情報がそろっています。"]
[null,"CoCreate社のエンジニアリング・ソリューションシステムである「SolidDesigner」で使われるファイル。"]
[null,"対応ソフト",null,"SolidDesigner"]
[null,"プラグイン",null,"不明"]
[null,"<--This Data Last Updated 2001/2/25-->"]
[]
[]
[null,null,".sdl","倉敷機械"]
[null,null,null,"エスディエル","(正式名称は不明)"]
[null,null,null,null,"だいおー's Home PageにはCAD関係の情報がそろっています。"]
[null,"倉敷機械の3次元CAD/CAM「MYPAC SUPER CAM」で使われるファイル形式。"]
[null,"対応ソフト",null,"「MYPAC SUPER CAM」"]
[null,"プラグイン",null,"不明"]
[null,"<--This Data Last Updated 2001/2/27-->"]
[]
[]
[null,null,".sdpc","CoCreate"]
[null,null,null,"エスディピーシー","(正式名称は不明)"]
[null,null,null,null,"だいおー's Home PageにはCAD関係の情報がそろっています。"]
[null,"CoCreate社のエンジニアリング・ソリューションシステムである「SolidDesigner」で使われるファイル。"]
[null,"対応ソフト",null,"SolidDesigner"]
[null,"プラグイン",null,"不明"]
[null,"<--This Data Last Updated 2001/2/25-->"]
[]
[]
[null,null,".sdwc","CoCreate"]
[null,null,null,"エスディダブリューシー","(正式名称は不明)"]
[null,null,null,null,"だいおー's Home PageにはCAD関係の情報がそろっています。"]
[null,"CoCreate社のエンジニアリング・ソリューションシステムである「SolidDesigner」で使われるファイル。"]
[null,"対応ソフト",null,"SolidDesigner"]
[null,"プラグイン",null,"不明"]
[null,"<--This Data Last Updated 2001/2/25-->"]
[]
[]
[null,null,".session","IBM"]
[null,null,null,"セッション","(正式名称は不明)"]
[null,null,null,null,"だいおー's Home PageにはCAD関係の情報がそろっています。"]
[null,"IBMの3次元CADソフト「CATIA」で使われるファイル形式。"]
[null,"対応ソフト",null,"CATIA"]
[null,"プラグイン",null,"不明"]
[null,"<--This Data Last Updated 2001/2/25-->"]
[]
[]
[null,null,".shd","ExpressionTools, Inc"]
[null,null,null,"エスエイチディ","Ｓhadeファイル"]
[null,null,null,null,"だいおー's Home PageにはCAD関係の情報がそろっています。"]
[null,"３ＤモデリングソフトＳhadeのデータファイル"]
[null,"対応ソフト",null,"Shade"]
[null,"プラグイン",null,"不明"]
[null,"<--This Data Last Updated 2001/3/4-->"]
[]
[]
[null,null,".shp","光栄"]
[null,null,null,"エスエイチピー","(正式名称は不明)"]
[null,null,null,null,"だいおー's Home PageにはCAD関係の情報がそろっています。"]
[null,"光栄の3次元CGツール「サイクロンSolid/Luster/Mover」のファイル形式。"]
[null,"対応ソフト",null,"サイクロンSolid"]
[null,"プラグイン",null,"不明"]
[null,"<--This Data Last Updated 2001/2/27-->"]
[]
[]
[null,null,".skd","AutoDesk"]
[null,null,null,"エスケィディ","(正式名称は不明)"]
[null,null,null,null,"だいおー's Home PageにはCAD関係の情報がそろっています。"]
[null,"Autodesk社の「AutoSketch」の図面ファイル"]
[null,"対応ソフト",null,"今はサポート切れとなったのでＡｕｔｏＣＡＤで扱うしかない。"]
[null,"プラグイン",null,"不明"]
[null,"<--This Data Last Updated 2001/2/25-->"]
[]
[]
[null,null,".sldasm","SolidWorks"]
[null,null,null,"ソリッドアセンブラ","(正式名称は不明)"]
[null,null,null,null,"だいおー's Home PageにはCAD関係の情報がそろっています。"]
[null,"3次元ソリッドモデラーSolidWorksのファイル形式"]
[null,"対応ソフト",null,"SolidWorks2000"]
[null,"プラグイン",null,"不明"]
[null,"<--This Data Last Updated 2001/2/25-->"]
[]
[]
[null,null,".sldprt","SolidWorks"]
[null,null,null,"ソリッドプリント","(正式名称は不明)"]
[null,null,null,null,"だいおー's Home PageにはCAD関係の情報がそろっています。"]
[null,"3次元ソリッドモデラーSolidWorksのファイル形式"]
[null,"対応ソフト",null,"SolidWorks2000"]
[null,"プラグイン",null,"不明"]
[null,"<--This Data Last Updated 2001/2/25-->"]
[]
[]
[null,null,".sldrw","SolidWorks"]
[null,null,null,"ソリッドアールダブリュー","(正式名称は不明)"]
[null,null,null,null,"だいおー's Home PageにはCAD関係の情報がそろっています。"]
[null,"3次元ソリッドモデラーSolidWorksのファイル形式"]
[null,"対応ソフト",null,"SolidWorks2000"]
[null,"プラグイン",null,"不明"]
[null,"<--This Data Last Updated 2001/2/25-->"]
[]
[]
[null,null,".srh","ジャストシステム"]
[null,null,null,"エスアールエイチ","(正式名称は不明)"]
[null,null,null,null,"だいおー's Home PageにはCAD関係の情報がそろっています。"]
[null,"ジャストシステムの図面作成ソフト「花子 Ver1」でシルエットファイル。"]
[null,"対応ソフト",null,"花子Ｖｅｒ１"]
[null,"プラグイン",null,"不明"]
[null,"<--This Data Last Updated 2001/2/25-->"]
[]
[]
[null,null,".stc","(制定者不明)"]
[null,null,null,"エスティシー","(正式名称は不明)"]
[null,null,null,null,"だいおー's Home PageにはCAD関係の情報がそろっています。"]
[null,"SUTARというソフトの図面ファイルらしいのですが詳細は不明です。"]
[null,"対応ソフト",null,"詳細不明"]
[null,"プラグイン",null,"不明"]
[null,"<--This Data Last Updated 2001/2/25-->"]
[]
[]
[null,null,".stl","(制定者不明)"]
[null,null,null,"エスティエル","(StereoLithography"]
[null,null,null,null,"だいおー's Home PageにはCAD関係の情報がそろっています。"]
[null,"３次元積層造形ファイルの拡張子。"]
[null,"対応ソフト",null,"詳細は不明"]
[null,"プラグイン",null,"不明"]
[null,"<--This Data Last Updated 2001/2/27-->"]
[]
[]
[null,null,".sxd","アンドール"]
[null,null,null,"エスエックスディ","(正式名称は不明)"]
[null,null,null,null,"だいおー's Home PageにはCAD関係の情報がそろっています。"]
[null,"アンドール社のCADソフト「CADSUPER SXIII」で使われる図面ファイル形式"]
[null,"対応ソフト",null,"CADSUPER FX"]
[null,"プラグイン",null,"不明"]
[null,"<--This Data Last Updated 2001/2/25-->"]
[]
[]
[null,null,".tct","米国IMSI社。日本での代理店は "]
[null,null,null,"ティシーティ","(正式名称は不明)"]
[null,null,null,null,"だいおー's Home PageにはCAD関係の情報がそろっています。"]
[null,"住友金属システム開発が発売している「TURBO SKETCH」のテンプレートファイル"]
[null,"対応ソフト",null,"TURBO CADシリーズ"]
[null,"プラグイン",null,"不明"]
[null,"<--This Data Last Updated 2001/3/3-->"]
[]
[]
[null,null,".tcw","米国IMSI社。日本での代理店は "]
[null,null,null,"ティシーダブリュー","(正式名称は不明)"]
[null,null,null,null,"だいおー's Home PageにはCAD関係の情報がそろっています。"]
[null,"住友金属システム開発が発売している「TURBO SKETCH」および「TURBO CAD」の図面ファイル"]
[null,"対応ソフト",null,"TURBO CADシリーズ"]
[null,"プラグイン",null,"不明"]
[null,"<--This Data Last Updated 2001/2/25-->"]
[]
[]
[null,null,".tcx","米国IMSI社。日本での代理店は "]
[null,null,null,"ティシーエックス","(正式名称は不明)"]
[null,null,null,null,"だいおー's Home PageにはCAD関係の情報がそろっています。"]
[null,"住友金属システム開発が発売している「TURBO SKETCH」のアスキー形式の図面ファイル"]
[null,"対応ソフト",null,"TURBO CADシリーズ"]
[null,"プラグイン",null,"不明"]
[null,"<--This Data Last Updated 2001/3/3-->"]
[]
[]
[]
[]
[null,null,".vct","川崎重工業野田工場生産技術課"]
[null,null,null,"ヴェクト","KASTL-CAD（かすとるきゃど）二次元図形ファイル"]
[null,null,null,null,"だいおー's Home PageにはCAD関係の情報がそろっています。"]
[null,"川崎重工業野田工場生産技術課が開発したCADシステムKASTL（カストル）の２次元図形データファイル。"]
[null,"対応ソフト",null,"KASTL"]
[null,"プラグイン",null,"不明"]
[null,"<--This Data Last Updated 2001/3/4-->"]
[]
[]
[null,null,".vlm","ファモティク株式会社 "]
[null,null,null,"ブィエルエム","(正式名称は不明)"]
[null,null,null,null,"だいおー's Home PageにはCAD関係の情報がそろっています。"]
[null,"２D/3D汎用CADである「Vellum Pro」および「Vellum CAD Standard」で使われる図面ファイル"]
[null,"対応ソフト",null,"Vellum Pro、「Vellum CAD Standard"]
[null,"プラグイン",null,"ファモテックからHotVellumというプラグインが配布されている。"]
[null,"<--This Data Last Updated 2001/3/4-->"]
[]
[]
[null,null,".wkc","株式会社シーピーユー"]
[null,null,null,"ダブリューケーシー","(正式名称は不明)"]
[null,null,null,null,"だいおー's Home PageにはCAD関係の情報がそろっています。"]
[null,"2次元図面作成CAD「KING・CAD」の図面ファイル"]
[null,"対応ソフト",null,"KING・CAD"]
[null,"プラグイン",null,"不明"]
[null,"<--This Data Last Updated 2001/2/25-->"]
[]
[]
[null,null,".wnd","インフォマテックス"]
[null,null,null,"ダブリューエヌディ","(正式名称は不明)"]
[null,null,null,null,"Micro GDS Professionalマニュアル"]
[null,"インフォマテックス社の汎用グループウエアCAD「MicroGDS」で使われる図面ファイル形式。"]
[null,"対応ソフト",null,"MicroGDS Professional"]
[null,"プラグイン",null,"不明"]
[null,"<--This Data Last Updated 2001/2/25-->"]
[]
[]
[null,null,".x_b","ユニグラフィックス・ソリューションズ・ジャパン"]
[null,null,null,"エックスアンダービー","(正式名称は不明)"]
[null,null,null,null,"だいおー's Home PageにはCAD関係の情報がそろっています。"]
[null,"ソリッドモデリングカーネル「Parasolid」の図面ファイル"]
[null,"対応ソフト",null,"Parasolid"]
[null,"プラグイン",null,"不明"]
[null,"<--This Data Last Updated 2001/2/25-->"]
[]
[]
[null,null,".x_t","ユニグラフィックス・ソリューションズ・ジャパン"]
[null,null,null,"エックスアンダーティ","(正式名称は不明)"]
[null,null,null,null,"だいおー's Home PageにはCAD関係の情報がそろっています。"]
[null,"ソリッドモデリングカーネル「Parasolid」の図面ファイル"]
[null,"対応ソフト",null,"Parasolid"]
[null,"プラグイン",null,"不明"]
[null,"<--This Data Last Updated 2001/2/25-->"]
[]
[]
[null,null,".xdw","ファモティク株式会社 "]
[null,null,null,"エックスディダブリュー","(正式名称は不明)"]
[null,null,null,null,"だいおー's Home PageにはCAD関係の情報がそろっています。"]
[null,"ファモテックの「XCAD」の図面ファイルらしい。"]
[null,"対応ソフト",null,"詳細不明"]
[null,"プラグイン",null,"不明"]
[null,"<--This Data Last Updated 2001/2/27-->"]
[]
[]
[null,null,".xxx","キャダムシステム"]
[null,null,null,null,"(正式名称は不明)"]
[null,null,null,null,"だいおー's Home PageにはCAD関係の情報がそろっています。"]
[null,"MICRO CADAM HelixVer2のV3インデックス形式ファイル。基本的には隠しファイル。"]
[null,"対応ソフト",null,"MICRO CADAM Helix V5R1"]
[null,"プラグイン",null,"不明"]
[null,"<--This Data Last Updated 2001/3/3-->"]
[]
[]
[null,null,".z3d","「フォトロン社"]
[null,null,null,"ゼットサンディ","(正式名称は不明)"]
[null,null,null,null,"だいおー's Home PageにはCAD関係の情報がそろっています。"]
[null,"フォトロン社の「図脳RAPID　３D」の図面ファイル。"]
[null,"対応ソフト",null,"図脳RAPID9"]
[null,"プラグイン",null,"不明"]
[null,"<--This Data Last Updated 2001/2/25-->"]
[]
[]
[null,null,".zed","「フォトロン社"]
[null,null,null,"ゼットイーディ","(正式名称は不明)"]
[null,null,null,null,"だいおー's Home PageにはCAD関係の情報がそろっています。"]
[null,"フォトロン社の「図脳RAPID/Century」の図面ファイル。"]
[null,"対応ソフト",null,"図脳RAPID9"]
[null,"プラグイン",null,"不明"]
[null,"<--This Data Last Updated 2001/2/25-->"]
[]
[]
[null,null,".zmn","進和電機株式会社"]
[null,null,null,"ゼットエムエヌ","ZMN"]
[null,null,null,null,"だいおー's Home PageにはCAD関係の情報がそろっています。"]
[null,"各種PLCメーカーのPCデータを双方向リンクし、ハード回路、入出力回路、ソフト回路を1ファイルで作成可能にした電気CADソフト「UniDraf」のファイル形式。"]
[null,"対応ソフト",null,"UniDarf、UDLitePro、UDLiteProPC、UDView Ver.5.0"]
[null,"プラグイン",null,"不明"]
[null,"<--This Data Last Updated 2001/3/4-->"]
[]
[]
[null,"[an error occurred while processing this directive]"]
[]
[]
[null,null,".znt","「フォトロン社"]
[null,null,null,"ゼットエヌティ","(正式名称は不明)"]
[null,null,null,null,"だいおー's Home PageにはCAD関係の情報がそろっています。"]
[null,"フォトロン社の「図脳WinCAD/NT」「図脳デジタルシート」の図面ファイル。"]
[null,"対応ソフト",null,"図脳RAPID9"]
[null,"プラグイン",null,"不明"]
[null,"<--This Data Last Updated 2001/3/2-->"]
[]
[]
[null,null,".zrd","「フォトロン社"]
[null,null,null,"ゼットアールディ","(正式名称は不明)"]
[null,null,null,null,"拡張子辞典への書きこみ"]
[null,"フォトロン社の「図脳ＲＡＰＩＤ」の図面ファイル。"]
[null,"対応ソフト",null,"「図脳RAPID"]
[null,"プラグイン",null,"RAPIDViewer"]
[null,"<--This Data Last Updated 2001/3/2-->"]
[]
[]
[null,null,".zum","株式会社エーティ"]
[null,null,null,"ゼットユーエム","(正式名称は不明)"]
[null,null,null,null,"だいおー's Home PageにはCAD関係の情報がそろっています。"]
[null,"汎用二次元CAD「WINSTAR CAD」および同社の「PE-CAD」（発売停止）の図面ファイル"]
[null,"対応ソフト",null,"WINSTAR CAD"]
[null,"プラグイン",null,"不明"]
[null,"<--This Data Last Updated 2001/2/25-->"]
[]
[]
[null,null,".zwd","「フォトロン社"]
[null,null,null,"フォトロン","(正式名称は不明)"]
[null,null,null,null,"だいおー's Home PageにはCAD関係の情報がそろっています。"]
[null,"フォトロン社の「図脳WINCAD」の図面ファイル。"]
[null,"対応ソフト",null,"図脳RAPID9"]
[null,"プラグイン",null,"不明"]
[null,"<--This Data Last Updated 2001/3/2-->"]
[]
[]
[null,"このページについてのご意見・ご感想、そして拡張子やツールについての各種 情報は、是非是非「 拡張子辞典掲示板 」に書き込みください！お待ちしております。"]

{"sheet":"ファイルの種類3","index":3,"n_rows":34,"n_cols":4,"rows_kept":34,"cut":false,"hidden":false,"merged":[]}
[]
[]
[]
[null,"取りあえず分かりづらかったらブラウザのページ内検索を使ってください。"]
[null,"あまり一般的でない形式(一部のMIDIシーケンスソフトなど)の拡張子も追加。"]
[null,"*.asf","[ ActiveStreamingFormat ]","MicrosoftNetshowで使われるストリーミングファイルの形式。画像でも音声のみでも使えます"]
[null,"*.asx","ASFファイルのロケーターファイル","ストリーミングするために必要"]
[null,"*.acd","ACIDという作曲ソフトで使われる形式"]
[null,"*.au","[ NeXT/Sun(Java)File ]","NeXTおよびSunのコンピュータで使われます。さまざまなサウンドフォーマットをサポート"]
[null,"*.avi","[ AVI ]","Windows標準のビデオファイルの形式"]
[null,"*.aif","[ AudioIFF,AIFF ]","Machintosh標準のサウンドファイルの形式でAIFF、AudioIFFなどと呼ばれます。内容的にはだいたいwavと同じ"]
[null,"*.dig","SoundDesignerという","編集ソフトで使われる形式"]
[null,"*.iff","[ AmigaSVX ]","Amigaと言うコンピュータで使われているWAVと同じ様なタイプのファイル"]
[null,"*.lso","LOGICというMIDIシーケンスソフトで使われる形式"]
[null,"*.mid","[ Musical Instrument Digital Interface ]","MIDIファイルを扱います"]
[null,"*.midi","[ Musical Instrument Digital Interface ]","MIDIファイルを扱います"]
[null,"*.mov","Apple社のQuickTimePlayerで動画を再生させるファイルです、","MIDI形式やFLASH形式などいろいろあるようですが、Machintoshユーザー以外にはあんまり縁がないかな？"]
[null,"*.mp3","[ MPEG? AudioLayer-3 ]","普通mp3と言ったらMPEG1のAudioLayer3をさします"]
[null,"*.mpg","[ MovingPicturesExpertsGroup ]","MPEGファイルです。MP3をさす場合もます。 もとは動画としての形式"]
[null,"*.msf","Windowsのシーケンスソフト。MusicStudioStandartで使われる形式"]
[null,"*.qt","[ QuickTime ]","QuickTimeのファイル"]
[null,"*.ra","[ RealAudioClip ]","RealMediaで使う音声ファイルです。 RealPlayerG2では無くなりました（聞くことは可能)"]
[null,"*.ram","[ RealPlayerFile ]","RealPlayerを使ってストリーミング再生をさせるためのファイル"]
[null,"*.rm","[ RealMediaFile ]","RAの動画も扱えるファイルです。 RealPlayerG2では音声だけでもこれ"]
[null,"*.rpm","[ RealMediaFile ]","Real Playerのプラグインを呼び出すファイル。 基本的なテキスト内容はramファイルとまったく同じ"]
[null,"*.sd","[ SoundDiginer1 ]","SoundDesignerという編集ソフトで使われる形式"]
[null,"*.sdn","[ NeXT/Sun(Java)File ]","NeXTおよびSunのコンピュータで使われます。 JAVAでの利用や圧縮した利用もあるみたいです。AUとの違いは…なんでしょ？"]
[null,"*.svx","[ AmigaSVX ]","Amigaと言うコンピュータで使われている WAVと同じ様なタイプのファイルです"]
[null,"*.vqe","[ SoundVQ File EnbedFile ]","SoundVQ、TwinVQプレーヤを埋め込む場合に使用。 テキスト内容はvqlと変わりません"]
[null,"*.vqf","[ VQ File ]","SoundVQ、TwinVQプレーヤで聞けるファイル"]
[null,"*.vql","[ SoundVQ LocaterFile ]","vqfをストリーミング再生させるファイル"]
[null,"*.wav","[ Microsoft WAVE File ]","Windows標準のサウンドファイルです。 多くのフォーマットをサポートしています"]
[null,"*.wma","WindowsMediaのファイル形式。ASFとの違いは拡張子のみ"]
[null,"*.wrk","WindowsのMIDIシーケンスソフト、Cakewalkで使われるファイル形式"]

{"sheet":"ファイルの種類4","index":4,"n_rows":242,"n_cols":2,"rows_kept":242,"cut":false,"hidden":false,"merged":[]}
[]
[null,"動画ファイル ～ 主なファイル形式と特徴 ～"]
[]
[null,"スポンサード リンク："]
[null,"仲間と繋がるオンラインゲーム"]
[]
[null,"DMM.comアイドル動画"]
[]
[]
[null,"動画ファイルの形式も画像や音声ファイルのように多くの種類があり、同様に目的や用途によって選択、決定されます。"]
[]
[null,"また、動画ファイルには画像や音声ファイルも絡んでくるため、理解するのはより複雑になってきます。（したがって、本項を学習する前に、まず前項の 音声ファイル を学習してください）"]
[]
[null,"前項でも解説のとおり、動画ファイルは「映像」と「音声」の大きな2つのファイル形式をその中に格納しなければなりません。また、それぞれに多くの形式があるため、その組み合せも考慮しなければならないのです。"]
[]
[null,"さて、では動画というものを理解するためのポイントとして、やはり最も重要なのが、"]
[]
[null,"コーデック"]
[]
[null,"になります。コーデックとファイルフォーマットについては、前項でも解説しましたが、両者は全くの別物と考えなければなりません。"]
[]
[null,"コーデックとは、映像や音声を記録したアナログ信号をデジタル化した素のデータを、様々な形式で利用できるように符号化するためのプログラムで、ほとんどの場合は、圧縮されて符号化されます。"]
[]
[null,"コーデックによって符号化されたデータは、様々な機器やアプリケーションソフトで取り扱うことのできるファイルフォーマットに格納されます。"]
[]
[null,"音声の場合は、格納するファイルが音声だけのため、コーデックで符号化したデータをそのままフォーマットに格納して形式化することもできるし、複数の符号化データを格納することができる「コンテナ」に格納することもできます。"]
[]
[null,"動画の場合は、音声と映像の最低2つの符号化データを格納しなければならないので、基本的にすべてコンテナファイルになります。"]
[]
[null,"こうして、ファイルフォーマットとして形式化された動画や音声のファイルを再生するためには、そのフォーマットに対応した「プレーヤーソフト」と、圧縮されて納められている符号化データを伸張するための「圧縮に使用したコーデック」の両方が必要になります。"]
[]
[null,"動画を再生するプレーヤーには、「MediaPlayer」「RealPlayer」「QuickTime」「GOM Player」などがありますが、動画の再生には、圧縮に使われたコーデックを用いて再生時にファイルを解凍（伸張）なければなりません。（プレーヤーソフトには、代表的な多くのコーデックが事前にインストールされています）"]
[]
[null,"ただし、前項でも解説のとおり、コーデックはフォーマットの拡張子では判断できない場合があります。なぜなら、コーデックとフォーマットは1対1の関係ではない場合があり、拡張子はファイルフォーマットを表しているにすぎないからです。"]
[]
[null,"例えば、複数のコーデックで符号化したデータを格納できるコンテナファイルの拡張子からは、符号化に使われているコーデックが何かまで判断することはできません。"]
[]
[null,"よくあるケースに、2つの同じ拡張子の動画ファイルがあるとして、一方のファイルは再生できるのに、もう一方のファイルは再生できないといったケース、また、映像は見れるのに音がでない、音だけが流れて映像は真っ黒というケースもよくあります。"]
[]
[null,"こういった場合は、再生できないファイル（音声・映像・または両方）の圧縮に使われたコーデックを探してインストールしなければなりません。"]
[]
[null,"ファイルフォーマットとコーデックは、とかく混同されやすく区分があいまいな表現も多いので、両者の違いについてはしっかり理解しておくことが大切です。（詳しくは、前項を参照してください）"]
[]
[null,"では、実際の動画コンテナフォーマットとコーデックについて解説していきましょう。"]
[]
[null,"動画も画像や音声と同様に、「非可逆圧縮」と「可逆圧縮」に分類することができますが、動画の場合、膨大なデータ量になるので圧縮が必須であり、「非圧縮」は当然として「可逆圧縮」も現実的ではありません。"]
[]
[null,"そのため、ほとんどすべての動画フォーマットは「非可逆圧縮」となります。非可逆圧縮の基本的な仕組みは、映像の中で変化の少ない部分の情報を減らすこと、また連続する映像の前後で、動きのある部分だけを記録することによってファイルサイズを縮小するというものです。"]
[]
[null,"また、非可逆か可逆かというのはファイルフォーマットで決まるのではなく、コーデックによって決まります。ファイルフォーマットはコーデックで圧縮した符号化データの入れ物にすぎません。以下は、代表的なファイルフォーマット（コンテナ）とそれに対応するコーデックを解説しています。"]
[]
[null,"MPEG（エムペグ）"]
[]
[null,"MPEGは「Moving Picture Experts Group」の略で、ISOにおけるカラー動画の符号化方式の標準化を進めるワーキンググループの名称がそのまま使われており、そのグループで規定された符号化方式および符号化形式の総称を「MPEG」と言います。"]
[]
[null,"MPEGには、「MPEG-1」「MPEG-2」「MPEG-4」の代表的な3タイプがありますが、拡張子は、MPEG-1とMPEG-2では、それぞれに統一した規格がないため「.mpg」が使われます。MPEG-4については後述します。"]
[]
[null,"符号化方式というと「コーデック」の意味で使われますが、MPEGは「総称」と解説したとおり、動画や音声の符号化形式、それらの連結システム、復号化の手順、ファイルフォーマットなどを規定した「規格」になります。"]
[]
[null,"MPEG-4に至っては、動画・音声全般が対象で規定範囲が広いため、複数の符号化形式や新たなコンテナ形式が規定されており、現在も追加・拡張が続いています。"]
[]
[null,"つまり、動画に関するトータル的な規格であり、例えば「MPEG-1」であるなら、MPEG-1に規定されている形式に圧縮された音声や動画の符号化形式を、MPEG-1に既定されているコンテナに格納したファイル形式と考えれば良いと思います。"]
[]
[null,"ただし、復号化方式が規定されているため、符号化方法については自由度が高く（または規定がなく）、最終的な符号化形式がMPEG規格に適合していれば良いという特徴があります。"]
[]
[null,"そのため、他の形式のような任意のコーデックを必要とせず、エンコーダ（詳しくは、前項を参照してください）や、テレビを録画するためのビデオキャプチャ等で、MPEG規格に適合（変換）させてしまえば、対応するプレーヤーで再生することが可能になります。"]
[]
[null,"また、符号化の自由度が高いということは、ビットレートの選択など、エンコーダの性能によって圧縮後の画質が大きく左右されるということでもあります。（MPEGエンコーダは様々な種類のものが販売・提供されています）"]
[]
[null,"MPEG-1（エムペグ ワン）"]
[]
[null,"ビデオCDなどでの使用を想定して標準化された符号化形式の規格で、拡張子は「.mpg」になります。"]
[]
[null,"ビットレート（詳しくは、前項を参照してください）は1MB程度で、CDに1時間程度の動画を記録することができます。CDの容量は700MB程度なので、1時間の動画が約700MB程度に圧縮できる形式になります。"]
[]
[null,"画質はVHSビデオ程度で、動画の音声部分には、MP2～MP3が規定されていますが、MP3が使われるのが一般的です。"]
[]
[null,"MPEG-2（エムペグ ツー）"]
[]
[null,"テレビ放送やDVDビデオなどでの使用を想定して標準化された符号化形式の規格で、拡張子はMPEG-1と同じ「.mpg」になります。"]
[]
[null,"厳密には復号化の手順のみが規定されている規格であり、つまり、符号化については、最終的な符号化形式がMPEG-2規格に適合していればどのような手順で符号化しても良いということになります。"]
[]
[null,"ビットレートの制限がなくなり、高画質化した規格で、動画の音声部分には、AACやDolby Digital（拡張子「.ac3」）が使われます。"]
[]
[null,"ただし、DVDビデオに記録されているMPEG-2形式のファイルは、VOB（ブイオービー）というコンテナファイルに格納されている場合が多く、拡張子も「.vob」となっています。VOB形式は動画や音声の他に、メニューや字幕、プロテクト情報なども格納することができます。"]
[]
[null,"MPEG-2は著作権保護の機能を持っていないため（MPEG-1もそうですが）、映画などをDVDビデオで販売するためには、VOBに格納するメリットが高いと言えます。"]
[]
[null,"また、地上波デジタル放送などの高精細テレビ放送用にMPEG-3が策定される予定でしたが、基本技術が同じであるため、MPEG-2に吸収され、高精細テレビ放送もMPEG-2が利用されています。"]
[]
[null,"MPEG-4（エムペグ フォー）"]
[]
[null,"MPEG-1とMPEG-2は、CDやDVDのビデオ動画を規定するものですが、MPEG-4は、主にモバイル機器によるネットワークでの動画利用に主眼をおいて規定された規格になります。"]
[]
[null,"そのため、ストリーミング再生に対応しており、高圧縮ですが画質の劣化が少なく、CPU負荷も比較的小さいと言う特徴があります。"]
[]
[null,"ただし、その規定範囲はとても広範囲に及び、ネットワークでの利用はもちろん、3Dグラフィックスや合成、テキストなども規格しており、携帯電話用のコンテンツから、ハイビジョン動画の配信、さらには映像以外の画像やテキストといった広いニーズに対応できるように設計された柔軟な規格です。"]
[]
[null,"そのため、MPEG-1、MPEG-2とは異なり、複数の符号化形式、コーデックが明確に規定されています。また、MPEG-4では、ファイルフォーマットとして、MPEG-4で規定された動画や音声の符号化形式を格納するコンテナファイル「MP4（エムピー フォー）」が規定されています。"]
[]
[null,"ビットレートは、携帯端末等でのネットワークを介した動画再生を目的とした低いビットレートに注目されがちですが、実際にはMPEG-2以上のビットレートを範囲を含んでいます。"]
[]
[null,"具体的には、MPEG-4は、MPEG-1、MPEG-2よりも低いビットレートで同質の画質に圧縮することができ、2時間程度の動画をCD1枚に収める事ができます。"]
[]
[null,"また、デジカメや携帯の動画機能もMotion JPEG（詳しくは、前項を参照してください）から、MPEG-4が主流になりつつあります。"]
[]
[null,"ただし、MPEG-4では様々な符号化形式（コーデック）が規定されているため、画質はコーデックやエンコーダの性能に左右されます。（デジカメなどでは、画質はMotion JPEGの方が良いようです）MPEG-4のコーデック等については、以下のMP4で後述します。"]
[]
[null,"このように、とても広範囲に対応する規格であるため、モバイル環境を主に、あらゆる分野で普及していると言いたいところですが、実際にはそこまで普及していません。"]
[]
[null,"この他、MPEGでは、SVGのようにXMLをベースとしたマルチメディア用のメタデータの記述方式を規定した「MPEG-7（エムペグ セブン）」や、マルチメディアの著作権保護について規定した「MPEG-21（エムペグ トゥウェンティーワン）」が策定されています。"]
[]
[null,"MPEG-21の「21」は、21世紀に重要になるとの意味で付けられています。また、MPEG-5とMPEG-6は欠番になっています。（SVGについては、画像ファイル を参照してください）"]
[]
[null,"MP4（エムピー フォー）"]
[]
[null,"MP4は、MPEG-4で規定されているコンテナフォーマットです。したがって、MPEG-4の一部ですが、MPEG-4とイコールではないので注意が必要です。"]
[]
[null,"MPEG-1、MPEG-2と異なり、MPEG-4はその規定範囲が広いために、複数の符号化形式が規定されています。そのため、それらを格納するためのコンテナ形式が規定されているのです。"]
[]
[null,"MP4は、AppleのQuickTimeフォーマットをベースに開発されており、Apple社製品ではよく利用されていて、相性が良いようです。"]
[]
[null,"MP4コンテナには、音声符号化形式（コーデック）として、主にAACが使用され、他にもMP3など多くの符号化形式を格納することができます。また、音声コーデックのみを格納することもできます。"]
[]
[null,"コーデックには、MPEG-4コーデック、 H.264（エイチ ニーロクヨン）などが主に使用されますが、音声同様に多くの符号化形式を格納することができます。したがって、どのような符号化形式が格納されているかは内部を解析してみないとわかりません。"]
[]
[null,"※ H.264は、ITU（国際電気通信連合）によって規定された映像データの符号化方式で、携帯から高精細テレビ放送までカバーする高圧縮率のコーデックです。MPEG-4規格では「MPEG-4 AVC」という別名で規定されているため、「H.264／AVC」と併記する場合があります。"]
[]
[null,"共通の拡張子は「.mp4」ですが、これでは音声ファイルなのか動画ファイルなのか区別がつかないため、音声ファイル「.m4a」、動画ファイル「.m4v」とすることが多いです。"]
[]
[null,"AVI（エーブイアイ）"]
[]
[null,"AVIは「Audio Video Interleave」の略で、AppleのQuickTime（MOV）に対抗するために開発されたWindows標準の動画コンテナフォーマットです。拡張子は「.avi」となります。"]
[]
[null,"複数のコーデックで符号化された形式に対応しており、そのため、再生には圧縮に使用されているコーデックを用意する必要があります。しかし、ファイルの拡張子ではコーデックを判断することができません。コーデックによる再生トラブルが多い形式です。"]
[]
[null,"AVIは比較的古い形式であり、ファイルの内容が不完全な状態（例えば、ダウンロードが完了していないファイルなど）では再生ができないため、修復を行わなければならず、ストリーミング配信には向いていません。また、AVI1.0では、最大2GBまでのサイズ制限があります。（AVI2.0では解決）"]
[]
[null,"AVIコンテナは、多くの符号化形式に対応しており（無圧縮形式を格納することも可能）、使われるコーデックは多数ありますが、主に音声コーデックでは、MP3やAAC、動画コーデックでは、DivX（デイビックス）、Xvid（エックスビッド）、MPEG-4、 H.264などが使われています。（Divx、Xvidについては後述します）"]
[]
[null,"MOV（エムオーブイ）"]
[]
[null,"Appleのマルチメディア技術であるQuickTime（クイックタイム）によって作成された符号化形式を格納するコンテナフォーマットで、拡張子は「.mov」になります。"]
[]
[null,"QuickTimeと言えば、ファイルを再生する「QuickTime Player」を指すことが一般的ですが、iTunes（アイチューンズ）の音楽ファイルの再生や管理に使われたり、こうしたアプリケーションソフトやマルチメディアに使われている技術の総称になります。"]
[]
[null,"前述のとおり、MOVはMP4のベースとなっており、MPEG-4もQuickTimeをベースとしています。したがって、MPEG-4規格の符号化形式を格納することもできます。主に音声コーデックでは、MP3やAAC、動画コーデックでは、MPEG-4、 H.264などが使われています。"]
[]
[null,"ASF（エーエスエフ）"]
[]
[null,"ASFは「Advanced Systems Format」の略で、Microsoft社が開発したAVIの後継にあたるコンテナフォーマットです。"]
[]
[null,"AVIとは異なり、ストリーミングに対応しており、プレーヤーソフトとして「Windows Media Player」が提供されています。ASFには、MP4やVOBと同様に音声や動画の符号化形式の他に、字幕やメタデータなども格納することができます。"]
[]
[null,"多くのコーデックに対応しており、音声コーデックでは、WMA（Windows Media Audio）やMP3、動画コーデックでは、MS-MPEG4、WMV（Windows Media Video）コーデック、DivXなどが使われています。"]
[]
[null,"※ MS-MPEG4は、ISOによるMPEG-4規格の策定が長引いたことから、Microsoft社が独自に策定した動画コーデックで、正式なMPEG-4（ISO）とは互換性のない別の規格になります。その後、MS-MPEG4をベースにしたWMVが開発されました。"]
[]
[null,"拡張子は「.asf」ですが、一般的には、WMA（Windows Media Audio）コーデックで符号化したデータを格納している音声ファイルの場合は「.wma」、WMV（Windows Media Video）コーデックで符号化したデータを格納している動画ファイルの場合は「.wmv」となり、Windows Mediaコーデックを使用していない場合のみ「.asf」となります。"]
[]
[null,"Ogg（オッグ）"]
[]
[null,"Oggは、ライセンスフリーのコンテナフォーマットで、最も代表的な内容物は、音声コーデックのVorbisで符号化した形式で、それを格納したOggは「Ogg Vorbis」と呼ばれています。"]
[]
[null,"動画コーデックは、「Theora（セオラ）」が標準で使われており、音声コーデックはVorbisの他に、MP3やAAC、可逆音声のFLACなどの符号化データも格納することができます。他にも、テキストデータや音声コーデックのみを格納することもできます。"]
[]
[null,"動画の場合、AVIとは異なり、ファイルの内容が不完全な状態（例えば、ダウンロードが完了していないファイルなど）でも、その箇所まで再生することが可能です。"]
[]
[null,"共通の拡張子は「.ogg」ですが、MP4と同様に、これでは音声ファイルなのか動画ファイルなのか区別がつかないため、音声ファイル「.oga」、動画ファイル「.ogv」とすることが多いです。"]
[]
[null,"前項でも解説しましたが、共通の拡張子は当初「.ogg」とされていましたが、「.ogx」に変更されています。ただし、非推奨ですが「.ogg」は互換性のために残されています。"]
[]
[null,"Matroska（マトリョーシカ）"]
[]
[null,"Oggの後継フォーマットで、Oggよりも高品質で、さらに格納できる符号化形式を拡張したライセンスフリーのコンテナフォーマットです。"]
[]
[null,"ロシアの入れ子式人形マトリョーシカにちなんで名付けられた形式で、その名のとおり、多種多様の動画、音声ファイル、さらに複数の字幕を格納することができます。"]
[]
[null,"AVIにはないチャプター機能や字幕の切り替え、英語音声と日本語音声を格納し、再生時に選択できるなど、DVDビデオのような機能を有しています。"]
[]
[null,"また、Matroskaの字幕はUnicodeベースであるため、Matroskaに格納した字幕は世界中で正しく再生できるという特徴があります。（Unicodeについては、文字コードとは を参照してください）"]
[]
[null,"拡張子は、動画ファイルが「.mkv」、音声のみが「.mka」、字幕のみが「.mks」となります。"]
[]
[null,"この他にも、「Real Media」や「Flash Video」などのフォーマット（コンテナ）がありますが、これらが一般的な非可逆圧縮のファイルフォーマットになります。MPEG（1と2）やReal Mediaは特殊ですが、他はいずれも複数のコーデックに対応しています。"]
[]
[null,"動画ファイルの画質は、コーデックによって決まるといっても良く、高圧縮、高画質のコーデックがこれからも開発されて行くことでしょう。"]
[]
[null,"では、解説しきれなかったコーデックについて補足しておきます。"]
[]
[null,"DivX（デイビックス）"]
[]
[null,"DivXの起源は、MS-MPEG4コーデックの開発に由来します。MS-MPEG4は前述のとおり、MPEG-4の策定が長引いたことから、Microsoft社が独自に開発して命名した動画コーデックです。"]
[]
[null,"Microsoft社は、MS-MPEG4のコンテナであるASFがMPEG-4の標準になるだろうと予測しましたが、MPEG-4のコンテナであるMP4は、Apple社のQuickTimeフォーマットをベースに開発されてしまいました。"]
[]
[null,"そのため、MS-MPEG4の次バージョンは、混乱を避けるため「WMV」となったという経緯があります。ただ、MS-MPEG4の性能が良かったため、これがきっかけとなり、その後、DivXやXvidなどの亜流（模倣）コーデックが次々と誕生したのです。"]
[]
[null,"DivXは、高い画像品質を保ちながら高圧縮化を可能にしたコーデックで、多くのプレーヤーや家電製品でDivX形式での動画再生が可能となっています。"]
[]
[null,"したがって、DivX形式のコンテナフォーマット「DivX Media Format（DMF）」も開発されており、DMFに格納された場合は、「.divx」の拡張子となります。（DMFは、AVI2.0をもとに開発）"]
[]
[null,"ただし、DivXで圧縮された符号化形式は、AVIコンテナに格納されることが推奨されており、AVI形式に格納されているのが一般的です。またバージョン7では、Matroska（MKV）を標準コンテナとしています。"]
[]
[null,"Xvid（エックスビッド）"]
[]
[null,"Xvidは、DivXから派生したコーデックで、DivXコーデックが商用製品へと戦略変更したことに反発したグループが開発したフリーの動画コーデックです。XvidはDivXを反対にした名称になります。"]
[]
[null,"Xvidコーデックによる符号化ファイルも、DivX同様にAVIコンテナやMKVコンテナに格納されるのが一般的です。"]
[]
[null,"以上が、代表的な逆圧縮のファイルフォーマットとコーデックです。"]
[]
[null,"では次に、可逆圧縮のコーデックです。前述のとおり、動画の場合ファイルサイズが膨大になるので、可逆圧縮は一般的ではありません。"]
[]
[null,"家庭用のデジタルビデオカメラなどは非可逆圧縮で保存されており、可逆圧縮は主に業務用（テレビやアニメなど）動画制作に使われています。"]
[]
[null,"したがって、可逆圧縮のコーデックはいくつかの種類がありますが、本項では代表的な一つのコーデックのみ解説したいと思います。"]
[]
[null,"Huffyuv（ハーフワイユーブイ）"]
[]
[null,"Huffyuvは、AVIコンテナに格納される可逆圧縮の動画コーデックです。huffyuvで圧縮したAVIファイルは、映像を劣化なしで保存することができます。"]
[]
[null,"ただし、圧縮率は元の非圧縮データの3分の2程度で、具体的には、720×480の解像度で、3分の動画が約1.7GBものファイルサイズになります。"]
[]
[null,"つまり、実用としては、マスターファイルとしての保存用途や、さらに非可逆コーデックで圧縮するまでの中間処理的な用途に使われるコーデックになります。"]
[]
[null,"さて、以上が代表的な動画ファイルフォーマットとコーデックになります。動画ファイルは、ほとんどすべてが非可逆圧縮形式であり、その画質はコーデックによって決まります。"]
[]
[null,"今後も、より高画質で高圧縮のコーデックが開発され、動画配信がより身近なものになってくるでしょう。しかし、コーデックには統一した規格がないために、乱立しているのが現状です。"]
[]
[null,"動画が再生できない場合など、コーデックを調べるには色々なアプリケーションソフトがありますが、「真空波動研」というフリーソフトが有名です。"]
[]
[null,"真空波動研ダウンロード（黒羽研究所）"]
[]
[null,"ソフトの使い方は割愛しますが、トップページの「つくりもの」→「生産物」からダウンロードして、そのプレーヤーソフトで動画を再生してみでください。アプリケーション上の任意の位置にカーソルを置くと、コーデック等のファイルの内容が表示されます。"]
[]
[null,"よく使われている一般的なコーデックやプレーヤーソフトの入手については、下記の 参考サイト を参照してみてください。"]
[]
[null,"ただし、むやみやたらにコーデックをインストールすると、コーデック同士が干渉してパソコンの動作に支障を来す場合があるので、必要なコーデック以外はインストールしないのが賢明です。"]
[]
[null,"また、主なコーデックをまとめた「コーデックパック」というものもありますが、プレーヤーの関連付けを変更されたり不具合が起こることもあるので、特に初心者の場合は、必要ないコーデックはインストールしないように注意しましょう。"]

{"sheet":"Sheet1","index":5,"n_rows":30,"n_cols":20,"rows_kept":30,"cut":false,"hidden":false,"merged":[]}
[]
[]
[]
[]
[]
[null,"番号","実例1","実例2","実例3","実例4","実例5",null,null,null,"番号","実例1",null,"実例2",null,"実例3",null,"実例4",null,"実例5"]
[null,1,"10-2","10-2無題",{"$f":"\"無題\" & C7","v":"無題10-2"},{"$f":"\"無題\" & H7","v":"無題10"},{"$f":"H7 & \"無題\"","v":"10無題"},"10",null,null,1,"10-1",null,"10-2無題",null,"無題10-1",null,"無題1",null,"10無題"]
[null,2,"10-1","10-1無題",{"$f":"\"無題\" & C8","v":"無題10-1"},{"$f":"\"無題\" & H8","v":"無題8"},{"$f":"H8 & \"無題\"","v":"8無題"},"8",null,null,2,"10-2",null,"10-1無題",null,"無題10-2",null,"無題10",null,"12無題"]
[null,3,"1-11","1-11無題","無題1-11","無題1","1無題","1",null,null,3,"1-1",null,"11-1無題",null,"無題1-1",null,"無題12",null,"13無題"]
[null,4,"2-15","2-15無題","無題2-15","無題3","3無題","3",null,null,4,"11-1",null,"1-11無題",null,"無題11-1",null,"無題13",null,"14無題"]
[null,5,"3-6","3-6無題","無題3-6","無題2","2無題","2",null,null,5,"1-11",null,"1-1無題",null,"無題1-11",null,"無題14",null,"15無題"]
[null,6,"3-1","3-1無題","無題3-1","無題6","6無題","6",null,null,6,"1-2",null,"12-4無題",null,"無題1-2",null,"無題15",null,"15無題"]
[null,7,"1-29","1-29無題","無題1-29","無題8","8無題","8",null,null,7,"12-4",null,"1-25無題",null,"無題12-4",null,"無題15",null,"16無題"]
[null,8,"1-25","1-25無題","無題1-25","無題12","12無題","12",null,null,8,"1-25",null,"1-29無題",null,"無題1-25",null,"無題16",null,"18無題"]
[null,9,"15-1","15-1無題","無題15-1","無題15","15無題","15",null,null,9,"1-29",null,"1-2無題",null,"無題1-29",null,"無題18",null,"1無題"]
[null,10,"12-4","12-4無題","無題12-4","無題22","22無題","22",null,null,10,"1-3",null,"1-3無題",null,"無題1-3",null,"無題2",null,"22無題"]
[null,11,"11-1","11-1無題","無題11-1","無題25","25無題","25",null,null,11,"1-5",null,"15-1無題",null,"無題1-5",null,"無題22",null,"23無題"]
[null,12,"15-3","15-3無題","無題15-3","無題9","9無題","9",null,null,12,"15-1",null,"15-3無題",null,"無題15-1",null,"無題23",null,"25無題"]
[null,13,"1-1","1-1無題","無題1-1","無題7","7無題","7",null,null,13,"15-3",null,"1-5無題",null,"無題15-3",null,"無題25",null,"27無題"]
[null,14,"2-1","2-1無題","無題2-1","無題13","13無題","13",null,null,14,"1-6",null,"1-6無題",null,"無題1-6",null,"無題27",null,"29無題"]
[null,15,"1-2","1-2無題","無題1-2","無題15","15無題","15",null,null,15,"2-1",null,"2-15無題",null,"無題2-1",null,"無題29",null,"2無題"]
[null,16,"1-3","1-3無題","無題1-3","無題4","4無題","4",null,null,16,"2-15",null,"2-1無題",null,"無題2-15",null,"無題3",null,"32無題"]
[null,17,"2-2","2-2無題","無題2-2","無題5","5無題","5",null,null,17,"2-2",null,"2-2無題",null,"無題2-2",null,"無題32",null,"3無題"]
[null,18,"2-5","2-5無題","無題2-5","無題23","23無題","23",null,null,18,"2-3",null,"2-3無題",null,"無題2-3",null,"無題4",null,"4無題"]
[null,19,"1-5","1-5無題","無題1-5","無題27","27無題","27",null,null,19,"2-5",null,"2-5無題",null,"無題2-5",null,"無題5",null,"5無題"]
[null,20,"2-3","2-3無題","無題2-3","無題29","29無題","29",null,null,20,"2-6",null,"2-6無題",null,"無題2-6",null,"無題6",null,"6無題"]
[null,21,"3-4","3-4無題","無題3-4","無題32","32無題","32",null,null,21,"3-1",null,"3-1無題",null,"無題3-1",null,"無題7",null,"7無題"]
[null,22,"3-2","3-2無題","無題3-2","無題14","14無題","14",null,null,22,"3-2",null,"3-2無題",null,"無題3-2",null,"無題8",null,"8無題"]
[null,23,"1-6","1-6無題","無題1-6","無題16","16無題","16",null,null,23,"3-4",null,"3-4無題",null,"無題3-4",null,"無題8",null,"8無題"]
[null,24,"2-6","2-6無題","無題2-6","無題18","18無題","18",null,null,24,"3-6",null,"3-6無題",null,"無題3-6",null,"無題9",null,"9無題"]